Workbook

Sheet Dt (hidden)
B1: No eliminar Hoja … :))) | H1: Cronograma | K1: Integrante | AA1: No | AB1: Campo | AC1: 1_Opcion | AD1: 2_Opcion | AF1: Avaya1719 | AP1: 2018-03-16 | AQ1: http://scienti.colciencias.gov.co:8080/gruplac/jsp/visualiza/visualizagr.jsp?nro= | CW1: =Productos!H5 -> PAZ
F2: Tipo | G2: Objetivo | H2: Actividad | I2: Mes Inicio | J2: Duracion | K2: CC | L2: Nombre | M2: Apellidos | N2: Nivel | O2: Mes | P2: Horas | Q2: Rol | R2: Vin | S2: NBC | T2: Cvlac | U2: Nombre Completo | AA2: 1 | AB2: Sedes | AC2: Bogotá | AT2: BB | AV2: =MIN(BD3:BD293) -> 4 | AW2: =MAX(BD3:BD293) -> 293 | CB2: Variables aplicadas a la Hoja de impactos | CM2: Id | CN2: IDFinal | CO2: Clase | CP2: Subclase | CQ2: Producto | CR2: Indicador | CS2: INV | CT2: IMP
C3: Dato | F3: =ROW()-3 -> 0 | G3: =CLEAN(TRIM(Objetivos!C8)) ->  | H3: NA | I3: NA | J3: NA | K3: NA | L3: NA | M3: NA | N3: NA | O3: NA | P3: NA | Q3: NA | R3: NA | S3: NA | T3: NA | U3: NA | AA3: 2 | AB3: Sedes | AC3: Campus Nueva Granada | AK3: Hoja | AN3: Hoja | AO3: FAC | AP3: Grupo | AQ3: COD | AR3: Clas | AS3: Link | AT3: Lineas | AU3: Fila Grupo | AV3: Min | AW3: Max | AX3: FAC | BA3: COD | BB3: Linea | BC3: Cel | BD3: Fila | BE3: E:Gp | BH3: Hora | BI3: Agente | BJ3: Agente | BN3: Areas Grupos UMN | BT3: No | BU3: Areas | BV3: Area1 | BW3: Area2 | CB3: No | CC3: Tipo | CD3: Duración | CE3: Tipo | CF3: Alcance | CG3: Linea | CH3: SRL | CM3: =ROW()-2 -> 1 | CN3: =100+COUNTA(CO$3:CO3) -> 101 | CO3: Productos de Generación de Nuevo Conocimiento (GNC) | CP3: Artículos en Revistas Científicas no incluidas en las listas de revistas depredadoras (ejemplo Beall-list) | CQ3: Artículo en Cuartil 1 (Q1) del SJR (Scopus) o del JCR (Web of Science) | CR3: Copia del sometimiento y copia del artículo enviado a la revista | CS3: 60 | CT3: 60
C4: Titulo | D4: =TRIM(CLEAN(General!B9)) -> Formato: actualizado a 06 Sep 2019 | F4: =ROW()-3 -> 1 | G4: =CLEAN(TRIM(Objetivos!C9)) ->  | H4: =CLEAN(TRIM(Cronograma!C8)) ->  | I4: =Cronograma!D8 -> 0 | J4: =Cronograma!E8 -> 12 | K4: =INDEX(Dt_Integ,2+($F4-1)*3,(COLUMN()-9)) -> 0 | L4: Luis Alexander | M4: 0 | N4: 0 | O4: 12 | P4: 25 | Q4: =INDEX(Dt_Integ,3+($F4-1)*3,(COLUMN()-14)) -> Investigador Principal | R4: =INDEX(Dt_Integ,3+($F4-1)*3,(COLUMN()-14)) -> 0 | S4: =INDEX(Dt_Integ,3+($F4-1)*3,(COLUMN()-14)) -> 0 | T4: =INDEX(Dt_Integ,4+($F4-1)*3,(COLUMN()-17)) -> 0 | U4: =(TRIM(L4&" "&M4)) -> Luis Alexander 0 | AA4: 3 | AB4: Sedes | AC4: Medicina | AD4: No habilitada 2018 | AK4: 3 | AL4: 1 | AM4: =COUNTIF($AN$4:$AN$806,AL4) -> 1 | AN4: 1 | AO4: CIAS | AP4: Fitoplasmas y Virus | AQ4: COL0028687 | AR4: C | AS4: https://scienti.colciencias.gov.co/gruplac/jsp/visualiza/visualizagr.jsp?nro=00000000008436 | AT4: =$AT$2&AV4&":"&$AT$2&AW4 -> BB76:BB77 | AU4: =ROW() -> 4 | AV4: =MINA(IF(AQ4=$BA$4:$BA$401,$BD$4:$BD$401)) -> 76 | AW4: =MAXA(IF(AQ4=$BA$4:$BA$401,$BD$4:$BD$401)) -> 77 | AX4: =AO4 -> CIAS | BA4: COL0069296 | BB4: Modelos de simulación | BC4: =COUNTIF(BA$4:BA4,BA4) -> 1 | BD4: =ROW() -> 4 | BE4: =COUNTIF($AQ$3:$AQ$83,BA4) -> 1 | BH4: 19:54:00 | BI4: a | BJ4: a | BK4: =DMIN(BH3:BI12,"hora",BJ3:BJ4) -> 0.4548611111 | BL4: | | BN4: Biotecnología | BT4: 1 | BU4: =BV4&"-"&BW4 -> Ciencias Naturales-Matemática | BV4: Ciencias Naturales | BW4: Matemática | BX4: =BT4 -> 1 | CB4: 1 | CC4: Fin de la pobreza | CD4: Corto (1 año) | CE4: Político | CF4: Regional | CG4: Transferencia e intercambio de conocimiento | CH4: SRL 0 – Identificación del problema. | CM4: =ROW()-2 -> 2 | CN4: =100+COUNTA(CO$3:CO4) -> 102 | CO4: Productos de Generación de Nuevo Conocimiento (GNC) | CP4: Artículos en Revistas Científicas no incluidas en las listas de revistas depredadoras (ejemplo Beall-list) | CQ4: Artículo en Cuartil 2 (Q2) del SJR (Scopus) o del JCR (Web of Science) WoS | CR4: Copia del sometimiento y copia del artículo enviado a la revista | CS4: 50 | CT4: 50
C5: Lider | D5: =TRIM(CLEAN(General!C10)) -> Luis Alexander Chirivi | F5: =ROW()-3 -> 2 | G5: =CLEAN(TRIM(Objetivos!C10)) ->  | H5: =CLEAN(TRIM(Cronograma!C9)) ->  | I5: =Cronograma!D9 -> 12 | J5: =Cronograma!E9 -> 0 | K5: Contribuciones | M5: 0 | N5: 0 | O5: 0 | P5: 0 | Q5: =INDEX(Dt_Integ,3+($F5-1)*3,(COLUMN()-14)) -> 0 | R5: 0 | T5: Coinvestigador | U5: =TRIM(L5&" "&M5) -> 0 | AA5: 4 | AB5: Sedes | AC5: Otros | AD5: No habilitada 2018 | AK5: 4 | AL5: 2 | AM5: 1 | AN5: 2 | AO5: CIAS | AP5: Grupo de investigación en Biodiversidad y ecología de abejas silvestres | AQ5: COL0031959 | AR5: B | AS5: https://scienti.colciencias.gov.co/gruplac/jsp/visualiza/visualizagr.jsp?nro=00000000001366 | AT5: =$AT$2&AV5&":"&$AT$2&AW5 -> BB172:BB176 | AU5: =ROW() -> 5 | AV5: =MINA(IF(AQ5=$BA$4:$BA$401,$BD$4:$BD$401)) -> 172 | AW5: =MAXA(IF(AQ5=$BA$4:$BA$401,$BD$4:$BD$401)) -> 176 | AX5: =AO5 -> CIAS | BA5: COL0036749 | BB5: Accesibilidad | BC5: =COUNTIF(BA$4:BA5,BA5) -> 1 | BD5: =ROW() -> 5 | BE5: 1 | BH5: 09:54:00 | BI5: b | BJ5: B | BT5: 2 | BU5: =BV5&"-"&BW5 -> Ciencias Naturales-Ciencias Físicas | BV5: Ciencias Naturales | BW5: Ciencias Físicas | BX5: =BT5 -> 2 | CB5: =CB4+1 -> 2 | CC5: Hambre Cero | CD5: Medio (2 años) | CE5: Salud | CF5: Nacional | CG5: Gestión del conocimiento para la apropiación | CH5: SRL 1 – Identificación del problema y el grado de madurez social. | CM5: 3 | CN5: =100+COUNTA(CO$3:CO5) -> 103 | CO5: Productos de Generación de Nuevo Conocimiento (GNC) | CP5: Artículos en Revistas Científicas no incluidas en las listas de revistas depredadoras (ejemplo Beall-list) | CQ5: Artículo en Cuartil 3 (Q3) del SJR (Scopus) o del JCR (Web of Science) y/o Homologada B Colciencias | CR5: Copia del sometimiento y copia del artículo enviado a la revista | CS5: 40 | CT5: 40
C6: Sede | D6: =General!H12 -> 0 | F6: 3 | G6: =CLEAN(TRIM(Objetivos!C11)) ->  | H6: =CLEAN(TRIM(Cronograma!C10)) ->  | I6: =Cronograma!D10 -> 0 | J6: =Cronograma!E10 -> 0 | K6: CvLac: | L6: 0 | M6: 0 | N6: 0 | O6: 0 | P6: 0 | Q6: 0 | R6: 0 | T6: 0 | U6: 0 0 | AA6: 1 | AB6: Facultad | AC6: Ciencias Básicas y Aplicadas | AD6: CIAS | AK6: 12 | AL6: 3 | AM6: 1 | AN6: 3 | AO6: CIAS | AP6: MATRIX | AQ6: COL0039321 | AR6: C | AS6: https://scienti.colciencias.gov.co/gruplac/jsp/visualiza/visualizagr.jsp?nro=00000000002208 | AT6: BB153:BB157 | AU6: =ROW() -> 6 | AV6: =MINA(IF(AQ6=$BA$4:$BA$401,$BD$4:$BD$401)) -> 153 | AW6: =MAXA(IF(AQ6=$BA$4:$BA$401,$BD$4:$BD$401)) -> 157 | AX6: CIAS | BA6: COL0036749 | BB6: Multimedia Analítica | BC6: =COUNTIF(BA$4:BA6,BA6) -> 2 | BD6: =ROW() -> 6 | BE6: 1 | BH6: 17:54:00 | BI6: c | BJ6: c | BT6: 3 | BU6: Ciencias Naturales-Ciencias Biológicas | BV6: Ciencias Naturales | BW6: Ciencias Biológicas | BX6: 3 | CB6: 3 | CC6: Salud y bienestar | CD6: Largo (3 años) | CE6: Tecnológico | CF6: Internacional | CG6: Participación ciudadana en CTeI | CH6: SRL 2 – Formulación del problema, soluciones propuestas e impacto potencial, grado de madurez social esperado; identificación de partes interesadas relevantes para el proyecto | CM6: 4 | CN6: =100+COUNTA(CO$3:CO6) -> 104 | CO6: Productos de Generación de Nuevo Conocimiento (GNC) | CP6: Artículos en Revistas Científicas no incluidas en las listas de revistas depredadoras (ejemplo Beall-list) | CQ6: Artículo en Cuartil 4 (Q4) del SJR (Scopus) o del JCR (Web of Science) y/o Homologada C Colciencias | CR6: Copia del sometimiento y copia del artículo enviado a la revista | CS6: 30 | CT6: 30
C7: Facultad | D7: =General!C13 -> 0 | F7: 4 | G7: =CLEAN(TRIM(Objetivos!C12)) ->  | H7: =CLEAN(TRIM(Cronograma!C11)) ->  | I7: =Cronograma!D11 -> 0 | J7: =Cronograma!E11 -> 0 | K7: Funcion : | L7: Coinvestigador | M7: Externo a la UMNG | N7: 0 | O7: 0 | P7: 0 | Q7: 0 | R7: 0 | T7: 0 | U7: Coinvestigador Externo a la UMNG | AA7: 2 | AB7: Facultad | AC7: Ciencias Económicas | AD7: ECO | AK7: 18 | AL7: 4 | AM7: 1 | AN7: 4 | AO7: CIAS | AP7: Control Biológico UMNG | AQ7: COL0032278 | AR7: A | AS7: https://scienti.colciencias.gov.co/gruplac/jsp/visualiza/visualizagr.jsp?nro=00000000001399 | AT7: BB158:BB159 | AU7: =ROW() -> 7 | AV7: =MINA(IF(AQ7=$BA$4:$BA$401,$BD$4:$BD$401)) -> 158 | AW7: =MAXA(IF(AQ7=$BA$4:$BA$401,$BD$4:$BD$401)) -> 159 | AX7: CIAS | BA7: COL0117722 | BB7: Educación y sociedad | BC7: =COUNTIF(BA$4:BA7,BA7) -> 1 | BD7: =ROW() -> 7 | BE7: 1 | BH7: 10:55:00 | BI7: a | BT7: 4 | BU7: Ciencias Naturales-Computación y Ciencias de la Información | BV7: Ciencias Naturales | BW7: Computación y Ciencias de la Información | BX7: 4 | CB7: 4 | CC7: Educación de calidad | CE7: Económico | CG7: Comunicación del conocimiento | CH7: SRL 3 – Pruebas iniciales de las soluciones propuestas junto con partes interesadas relevantes. | CM7: 5 | CN7: =100+COUNTA(CO$3:CO7) -> 105 | CO7: Productos de Generación de Nuevo Conocimiento (GNC) | CP7: Artículos en Revistas Científicas no incluidas en las listas de revistas depredadoras (ejemplo Beall-list) | CQ7: Revista colombiana indexada en Publindex en A1 (Sí no está en SJR o JCR) | CR7: Copia del sometimiento y copia del artículo enviado a la revista | CS7: 15 | CT7: 0
C8: Programa | D8: =CLEAN(General!H13) ->  | F8: 5 | G8: =CLEAN(TRIM(Objetivos!C13)) ->  | H8: =CLEAN(TRIM(Cronograma!C12)) ->  | I8: =Cronograma!D12 -> 0 | J8: =Cronograma!E12 -> 0 | K8: 0 | L8: 0 | M8: 0 | N8: 0 | O8: 12 | P8: 0 | Q8: Investigador UPN | R8: Investigador Externo | T8: 0 | U8: 0 0 | AA8: 3 | AB8: Facultad | AC8: Derecho | AD8: DER | AK8: 26 | AL8: 5 | AM8: 1 | AN8: 5 | AO8: CIAS | AP8: Grupo de Micología y Fitopatologia | AQ8: COL0013719 | AR8: A1 | AS8: https://scienti.colciencias.gov.co/gruplac/jsp/visualiza/visualizagr.jsp?nro=00000000001127 | AT8: BB30:BB34 | AU8: =ROW() -> 8 | AV8: =MINA(IF(AQ8=$BA$4:$BA$401,$BD$4:$BD$401)) -> 30 | AW8: =MAXA(IF(AQ8=$BA$4:$BA$401,$BD$4:$BD$401)) -> 34 | AX8: CIAS | BA8: COL0117722 | BB8: Estudios Disciplinares en Contabilidad | BC8: =COUNTIF(BA$4:BA8,BA8) -> 2 | BD8: =ROW() -> 8 | BE8: 1 | BH8: 11:45:00 | BI8: a | BT8: 5 | BU8: Ciencias Naturales-Ciencias Químicas | BV8: Ciencias Naturales | BW8: Ciencias Químicas | BX8: 5 | CB8: 5 | CC8: Igualdad de genero | CE8: Legal | CH8: SRL 4 – Problema validado por medio de pruebas piloto en un entorno relevantes para justificar el impacto propuesto y el grado de madurez social | CM8: 6 | CN8: =100+COUNTA(CO$3:CO8) -> 106 | CO8: Productos de Generación de Nuevo Conocimiento (GNC) | CP8: Artículos en Revistas Científicas no incluidas en las listas de revistas depredadoras (ejemplo Beall-list) | CQ8: Revista colombiana indexada en publindex en A2 (sino está en SJR o JCR) | CR8: Copia del sometimiento y copia del artículo enviado a la revista | CS8: 10 | CT8: 0
C9: Correo | D9: =TRIM(CLEAN(General!C11)) ->  | F9: 6 | G9: =CLEAN(TRIM(Objetivos!C14)) ->  | H9: =CLEAN(TRIM(Cronograma!C13)) ->  | I9: =Cronograma!D13 -> 0 | J9: =Cronograma!E13 -> 0 | K9: Contribuciones | L9: 0 | M9: 0 | N9: 0 | O9: 0 | P9: 0 | Q9: 0 | R9: 0 | T9: Investigador UDFJC | U9: 0 0 | AA9: 4 | AB9: Facultad | AC9: Educación y Humanidades | AD9: HUM | AK9: 28 | AL9: 6 | AM9: 1 | AN9: 6 | AO9: CIAS | AP9: Fitopatologia molecular | AQ9: COL0086179 | AR9: C | AS9: https://scienti.colciencias.gov.co/gruplac/jsp/visualiza/visualizagr.jsp?nro=00000000007907 | AT9: BB120:BB121 | AU9: =ROW() -> 9 | AV9: =MINA(IF(AQ9=$BA$4:$BA$401,$BD$4:$BD$401)) -> 120 | AW9: =MAXA(IF(AQ9=$BA$4:$BA$401,$BD$4:$BD$401)) -> 121 | AX9: CIAS | BA9: COL0101099 | BB9: Educación y Sociedad | BC9: =COUNTIF(BA$4:BA9,BA9) -> 1 | BD9: =ROW() -> 9 | BE9: 1 | BH9: 15:12:00 | BI9: b | BT9: 6 | BU9: Ciencias Naturales-Otras Ciencias Naturales | BV9: Ciencias Naturales | BW9: Otras Ciencias Naturales | BX9: 6 | CB9: 6 | CC9: Agua limpia y saneamiento | CE9: Cultural | CH9: SRL 5 – Soluciones propuestas validadas, ahora por las partes interesadas importantes en el área. | CM9: 7 | CN9: =100+COUNTA(CO$3:CO9) -> 107 | CO9: Productos de Generación de Nuevo Conocimiento (GNC) | CP9: Artículos en Revistas Científicas no incluidas en las listas de revistas depredadoras (ejemplo Beall-list) | CQ9: Revista colombiana indexada en publindex en B (sino está en SJR o JCR) | CR9: Copia del sometimiento y copia del artículo enviado a la revista | CS9: 8 | CT9: 0
C10: Fase | D10: =General!F12 -> No | F10: 7 | G10: =CLEAN(TRIM(Objetivos!C15)) ->  | H10: =CLEAN(TRIM(Cronograma!C14)) ->  | I10: =Cronograma!D14 -> 0 | J10: =Cronograma!E14 -> 0 | K10: CvLac: | L10: 0 | M10: 0 | N10: 0 | O10: 0 | P10: 0 | Q10: 0 | R10: 0 | T10: 0 | U10: 0 0 | AA10: 5 | AB10: Facultad | AC10: Estudios a Distancia | AD10: DIS | AK10: 30 | AL10: 7 | AM10: 1 | AN10: 7 | AO10: CIAS | AP10: Estadística, Control y Optimización | AQ10: COL0136423 | AR10: B | AS10: https://scienti.colciencias.gov.co/gruplac/jsp/visualiza/visualizagr.jsp?nro=00000000013845 | AT10: BB267:BB271 | AU10: =ROW() -> 10 | AV10: =MINA(IF(AQ10=$BA$4:$BA$401,$BD$4:$BD$401)) -> 267 | AW10: =MAXA(IF(AQ10=$BA$4:$BA$401,$BD$4:$BD$401)) -> 271 | AX10: CIAS | BA10: COL0101099 | BB10: Filosofia politica y reponsabilidad social | BC10: =COUNTIF(BA$4:BA10,BA10) -> 2 | BD10: =ROW() -> 10 | BE10: 1 | BH10: 23:12:00 | BI10: b | BT10: 7 | BU10: Ciencias Naturales-Ciencias de la Tierra y Medioambientales | BV10: Ciencias Naturales | BW10: Ciencias de la Tierra y Medioambientales | BX10: 7 | CB10: 7 | CC10: Energía asequible y no contaminante | CE10: Social | CH10: SRL 6 – Soluciones demostradas en un entorno relevante, en cooperación con las partes interasadas relevantes para obtener retroalimentación inicial subre impactos potenciales | CM10: 8 | CN10: =100+COUNTA(CO$3:CO10) -> 108 | CO10: Productos de Generación de Nuevo Conocimiento (GNC) | CP10: Artículos en Revistas Científicas no incluidas en las listas de revistas depredadoras (ejemplo Beall-list) | CQ10: Revista colombiana indexada en publindex en C (sino está en SJR o JCR) | CR10: Copia del sometimiento y copia del artículo enviado a la revista | CS10: 5 | CT10: 0
C11: Finan Antes | D11: =General!I12 -> No | F11: 8 | G11: =CLEAN(TRIM(Objetivos!C16)) ->  | H11: =CLEAN(TRIM(Cronograma!C15)) ->  | I11: =Cronograma!D15 -> 0 | J11: =Cronograma!E15 -> 0 | K11: Funcion : | L11: Auxiliar de Investigación. | M11: Estímulo a estudiante | N11: 0 | O11: 0 | P11: 0 | Q11: 0 | R11: 0 | T11: 0 | U11: Auxiliar de Investigación. Estímulo a estudiante | AA11: 6 | AB11: Facultad | AC11: Ingeniería | AD11: ING | AK11: 32 | AL11: 8 | AM11: 1 | AN11: 8 | AO11: CIAS | AP11: Grupo de Ecotoxicología, Evolución, Medio ambiente y conservación (E = mc2) | AQ11: COL0038084 | AR11: C | AS11: https://scienti.colciencias.gov.co/gruplac/jsp/visualiza/visualizagr.jsp?nro=00000000002068 | AT11: BB262:BB266 | AU11: =ROW() -> 11 | AV11: =MINA(IF(AQ11=$BA$4:$BA$401,$BD$4:$BD$401)) -> 262 | AW11: =MAXA(IF(AQ11=$BA$4:$BA$401,$BD$4:$BD$401)) -> 266 | AX11: CIAS | BA11: COL0101099 | BB11: Humanidades, cultura y universidad | BC11: =COUNTIF(BA$4:BA11,BA11) -> 3 | BD11: =ROW() -> 11 | BE11: 1 | BH11: 06:20:00 | BI11: c | BT11: 8 | BU11: Ciencias Médicas y de la Salud-Medicina Clínica | BV11: Ciencias Médicas y de la Salud | BW11: Medicina Clínica | BX11: 8 | CB11: 8 | CC11: Trabajo decente y crecimiento económico | CE11: Ambiental | CH11: SRL 7 – Refinamiento del proyecto y/o solución y, de ser necesario, aplicación de nuevas pruebas en el entorno relevante, con partes interesadas relevantes. | CM11: 9 | CN11: =100+COUNTA(CO$3:CO11) -> 109 | CO11: Productos de Generación de Nuevo Conocimiento (GNC) | CP11: Libro de Investigación | CQ11: Libro de investigación en colección indexada en Scopus o indexado en el Book Citation Index BCI (WoS) | CR11: Copia del sometimiento ante editorial Neogranadina o editorial externa y copia del libro enviado a la editorial | CS11: 60 | CT11: 60
C12: Resumen | D12: =CLEAN(TRIM(Resumen!C7&" "&Resumen!C8&" "&Resumen!C9&" "&Resumen!C15&" "&Resumen!C16&" "&Resumen!C17&" "&Resumen!C18&" "&Resumen!C19)) ->  | F12: 9 | G12: =CLEAN(TRIM(Objetivos!C17)) ->  | H12: =CLEAN(TRIM(Cronograma!C16)) ->  | I12: =Cronograma!D16 -> 0 | J12: =Cronograma!E16 -> 0 | K12: 0 | L12: 0 | M12: 0 | N12: 0 | O12: 12 | P12: 0 | Q12: 0 | R12: 0 | T12: 0 | U12: 0 0 | AA12: 7 | AB12: Facultad | AC12: Medicina y Ciencias de la Salud | AD12: MED | AK12: 41 | AL12: 9 | AM12: 1 | AN12: 9 | AO12: CIAS | AP12: Grupo de Investigación en Hidrobiología Aplicada (HIDROBIA) | AQ12: COL0048492 | AR12: C | AS12: https://scienti.colciencias.gov.co/gruplac/jsp/visualiza/visualizagr.jsp?nro=00000000005664 | AT12: BB163:BB166 | AU12: =ROW() -> 12 | AV12: =MINA(IF(AQ12=$BA$4:$BA$401,$BD$4:$BD$401)) -> 163 | AW12: =MAXA(IF(AQ12=$BA$4:$BA$401,$BD$4:$BD$401)) -> 166 | AX12: CIAS | BA12: COL0101099 | BB12: Liderazgo y gestión en educación. | BC12: =COUNTIF(BA$4:BA12,BA12) -> 4 | BD12: =ROW() -> 12 | BE12: 1 | BH12: 12:30:00 | BI12: a | BT12: 9 | BU12: Ciencias Médicas y de la Salud-Biotecnología en Salud | BV12: Ciencias Médicas y de la Salud | BW12: Biotecnología en Salud | BX12: 9 | CB12: 9 | CC12: Industria, innovación e infraestructura | CH12: SRL 8 – Soluciones propuestas, así como un plan para la adaptación social completo y certificado. | CM12: 10 | CN12: =100+COUNTA(CO$3:CO12) -> 110 | CO12: Productos de Generación de Nuevo Conocimiento (GNC) | CP12: Libro de Investigación | CQ12: Libro de investigación publicado por la Editorial Neogranadina o que cumple con los parámetros de Colciencias para que sea reconocido como producto de Generación de Nuevo Conocimiento | CR12: Copia del sometimiento ante editorial Neogranadina o editorial externa y copia del libro enviado a la editorial | CS12: 40 | CT12: 40
C13: Total Vicen | D13: =General!G64 -> 0 | F13: 10 | G13: =CLEAN(TRIM(Objetivos!C18)) ->  | H13: =CLEAN(TRIM(Cronograma!C17)) ->  | I13: =Cronograma!D17 -> 0 | J13: =Cronograma!E17 -> 0 | K13: Contribuciones | L13: 0 | M13: 0 | N13: 0 | O13: 0 | P13: 0 | Q13: 0 | R13: 0 | T13: Asistente OPS | U13: 0 0 | AA13: 8 | AB13: Facultad | AC13: Relaciones Internacionales, Estrategia y Seguridad | AD13: EES | AK13: 42 | AL13: 10 | AM13: 1 | AN13: 10 | AO13: CIAS | AP13: Agrobiología de especies vegetales promisorias de clima frío | AQ13: COL0077814 | AR13: C | AS13: https://scienti.colciencias.gov.co/gruplac/jsp/visualiza/visualizagr.jsp?nro=00000000006560 | AT13: BB29:BB29 | AU13: =ROW() -> 13 | AV13: =MINA(IF(AQ13=$BA$4:$BA$401,$BD$4:$BD$401)) -> 29 | AW13: =MAXA(IF(AQ13=$BA$4:$BA$401,$BD$4:$BD$401)) -> 29 | AX13: CIAS | BA13: COL0044859 | BB13: Interacción Humano Computador | BC13: =COUNTIF(BA$4:BA13,BA13) -> 1 | BD13: =ROW() -> 13 | BE13: 1 | BT13: 10 | BU13: Ciencias Médicas y de la Salud-Otras Ciencias Médicas | BV13: Ciencias Médicas y de la Salud | BW13: Otras Ciencias Médicas | BX13: 10 | CB13: 10 | CC13: Reducción de las desigualdades | CH13: SRL 9 – Soluciones reales del proyecto, probadas en un entorno relevante | CM13: 11 | CN13: =100+COUNTA(CO$3:CO13) -> 111 | CO13: Productos de Generación de Nuevo Conocimiento (GNC) | CP13: Capítulo de Libro de Investigación | CQ13: Capítulo incluido en libro dentro de una colección indexada en Scopus o libro indexado en el Book Citation Index (WoS) | CR13: Copia del sometimiento ante editorial Neogranadina o editorial externa (copia del proyecto editorial de libro en el que se incluiría el capítulo y del aval de la Editorial sobre ese proyecto) y copia del capítulo de libro enviado a la editorial | CS13: 40 | CT13: 40
C14: Total Pts | D14: =General!D64 -> 0 | F14: 11 | G14: =CLEAN(TRIM(Objetivos!C19)) ->  | H14: =CLEAN(TRIM(Cronograma!C18)) ->  | I14: =Cronograma!D18 -> 0 | J14: =Cronograma!E18 -> 0 | AA14: 1 | AB14: Programa | AC14: CIAS | AD14: Biología Aplicada | AE14: 2 | AK14: 43 | AL14: 11 | AM14: 1 | AN14: 11 | AO14: CIAS | AP14: Grupo Integrado de Investigaciones en Química Bioorgánica (InQuiBio) | AQ14: COL0077707 | AR14: A1 | AS14: https://scienti.colciencias.gov.co/gruplac/jsp/visualiza/visualizagr.jsp?nro=00000000008358 | AT14: BB192:BB200 | AU14: =ROW() -> 14 | AV14: =MINA(IF(AQ14=$BA$4:$BA$401,$BD$4:$BD$401)) -> 192 | AW14: =MAXA(IF(AQ14=$BA$4:$BA$401,$BD$4:$BD$401)) -> 200 | AX14: CIAS | BA14: COL0044859 | BB14: Multimedia Educativa | BC14: =COUNTIF(BA$4:BA14,BA14) -> 2 | BD14: =ROW() -> 14 | BE14: 1 | BT14: 11 | BU14: Ciencias Médicas y de la Salud-Medicina Básica | BV14: Ciencias Médicas y de la Salud | BW14: Medicina Básica | BX14: 11 | CB14: 11 | CC14: Ciudades y comunidades sostenibles | CM14: 12 | CN14: =100+COUNTA(CO$3:CO14) -> 112 | CO14: Productos de Generación de Nuevo Conocimiento (GNC) | CP14: Capítulo de Libro de Investigación | CQ14: Capítulo en libro de la Editorial Neogranadina o en libro que cumple con los parámetros de Colciencias para que sea reconocido como producto de Generación de Nuevo Conocimiento | CR14: Copia del sometimiento ante editorial Neogranadina o editorial externa (copia del proyecto editorial de libro en el que se incluiría el capítulo y del aval de la Editorial sobre ese proyecto) y copia del capítulo de libro enviado a la editorial | CS14: 30 | CT14: 30
F15: 12 | G15: =CLEAN(TRIM(Objetivos!C20)) ->  | H15: =CLEAN(TRIM(Cronograma!C19)) ->  | I15: =Cronograma!D19 -> 0 | J15: =Cronograma!E19 -> 0 | L15: Datos de Grupos de Investigación Integrantes | AA15: 2 | AB15: Programa | AC15: CIAS | AD15: Tecnologia en Gestion y Produccion horticola | AE15: 3 | AK15: 44 | AL15: 12 | AM15: 1 | AN15: 12 | AO15: CIAS | AP15: Grupo de investigación en química ambiental y tecnologías limpias - QUATELI | AQ15: COL0110436 | AR15: C | AS15: https://scienti.colciencias.gov.co/gruplac/jsp/visualiza/visualizagr.jsp?nro=00000000011141 | AT15: BB272:BB276 | AU15: =ROW() -> 15 | AV15: =MINA(IF(AQ15=$BA$4:$BA$401,$BD$4:$BD$401)) -> 272 | AW15: =MAXA(IF(AQ15=$BA$4:$BA$401,$BD$4:$BD$401)) -> 276 | AX15: CIAS | BA15: COL0044859 | BB15: Procesamiento digital de imágenes y Visión por computador | BC15: =COUNTIF(BA$4:BA15,BA15) -> 3 | BD15: =ROW() -> 15 | BE15: 1 | BT15: 12 | BU15: Ciencias Médicas y de la Salud-Ciencias de la Salud | BV15: Ciencias Médicas y de la Salud | BW15: Ciencias de la Salud | BX15: 12 | CB15: 12 | CC15: Producción y consumo responsables | CM15: 13 | CN15: =100+COUNTA(CO$3:CO15) -> 113 | CO15: Productos de Generación de Nuevo Conocimiento (GNC) | CP15: Variedad vegetal o nueva raza animal | CQ15: Publicación en gaceta de variedades vegetales protegidas o equivalente con estado de admisión | CR15: Solicitud de Certificado de obtentor de variedad vegetal expedido por el Instituto Colombiano Agropecuario (ICA) o solicitud de inscripción en el registro nacional de cultivadores | CS15: 40 | CT15: 40
F16: 13 | G16: =CLEAN(TRIM(Objetivos!C21)) ->  | H16: =CLEAN(TRIM(Cronograma!C20)) ->  | I16: =Cronograma!D20 -> 0 | J16: =Cronograma!E20 -> 0 | L16: Fila\ Columna | M16: D | AA16: 3 | AB16: Programa | AC16: CIAS | AD16: Maestría en Biología Aplicada | AE16: 33 | AK16: 56 | AL16: 13 | AM16: 1 | AN16: 13 | AO16: CIAS | AP16: ECMU (Evaluacion en Competencias y Matemáticas Universitarias) | AQ16: COL0110329 | AR16: C | AS16: https://scienti.colciencias.gov.co/gruplac/jsp/visualiza/visualizagr.jsp?nro=00000000011130 | AT16: BB117:BB119 | AU16: =ROW() -> 16 | AV16: =MINA(IF(AQ16=$BA$4:$BA$401,$BD$4:$BD$401)) -> 117 | AW16: =MAXA(IF(AQ16=$BA$4:$BA$401,$BD$4:$BD$401)) -> 119 | AX16: CIAS | BA16: COL0044859 | BB16: Sistemas Multimedia | BC16: =COUNTIF(BA$4:BA16,BA16) -> 4 | BD16: =ROW() -> 16 | BE16: 1 | BT16: 13 | BU16: Ciencias Sociales-Otras Ciencias Sociales | BV16: Ciencias Sociales | BW16: Otras Ciencias Sociales | BX16: 13 | CB16: 13 | CC16: Acción por el clima | CM16: 14 | CN16: =100+COUNTA(CO$3:CO16) -> 114 | CO16: Productos de Generación de Nuevo Conocimiento (GNC) | CP16: Nota científica | CQ16: Nota Científica Impresa o electrónica sometida en revista indexada del SJR (Scopus) o del JCR (Web of Science) que cumpla con los parámetros de Colciencias para que sea reconocido como producto de Generación de Nuevo Conocimiento | CR16: Copia del sometimiento y copia de la nota científica enviada a la revista | CS16: 30 | CT16: 30
F17: 14 | G17: =CLEAN(TRIM(Objetivos!C22)) ->  | H17: =CLEAN(TRIM(Cronograma!C21)) ->  | I17: =Cronograma!D21 -> 0 | J17: =Cronograma!E21 -> 0 | L17: General | M17: Nombre | N17: Cod | O17: Clas | P17: Fac | Q17: Linea | R17: Cvlac | S17: Ref | AA17: 3 | AB17: Programa | AC17: CIAS | AD17: Departamento de Matemáticas | AE17: 34 | AK17: 58 | AL17: 14 | AM17: 1 | AN17: 14 | AO17: CIAS | AP17: Grupo de Docencia e Investigación en Física | AQ17: COL0138796 | AR17: C | AS17: https://scienti.colciencias.gov.co/gruplac/jsp/visualiza/visualizagr.jsp?nro=00000000014082 | AT17: =$AT$2&AV17&":"&$AT$2&AW17 -> BB122:BB126 | AU17: =ROW() -> 17 | AV17: =MINA(IF(AQ17=$BA$4:$BA$401,$BD$4:$BD$401)) -> 122 | AW17: =MAXA(IF(AQ17=$BA$4:$BA$401,$BD$4:$BD$401)) -> 126 | AX17: =AO17 -> CIAS | BA17: COL0044859 | BB17: Visualización y Computación Gráfica | BC17: =COUNTIF(BA$4:BA17,BA17) -> 5 | BD17: =ROW() -> 17 | BE17: 1 | BT17: 14 | BU17: Ciencias Sociales-Psicología | BV17: Ciencias Sociales | BW17: Psicología | BX17: 14 | CB17: 14 | CC17: Vida submarina | CM17: 15 | CN17: =200+COUNTA(CO$17:CO17) -> 201 | CO17: Productos resultado de actividades de desarrollo tecnológico e innovación (DTI) | CP17: Productos tecnológicos certificados o validados | CQ17: Software aprobado para registro ante la DNDA, de acuerdo con procedimientos establecidos por la UMNG. | CR17: Programas, archivos ejecutables, manual técnico y de ususario, solicitud de registro ante la DNDA. | CS17: 20 | CT17: 20
F18: 15 | G18: =CLEAN(TRIM(Objetivos!C23)) ->  | H18: =CLEAN(TRIM(Cronograma!C22)) ->  | I18: =Cronograma!D22 -> 0 | J18: =Cronograma!E22 -> 0 | L18: 1 | M18: =General!C18 -> Agua y Energía - AyE | N18: =General!L18 -> COL0026486 | O18: =General!I19 -> C | P18: =General!#REF! ->  | Q18: =General!C20 -> 0 | R18: =General!C19 -> https://scienti.colciencias.gov.co/gruplac/jsp/visualiza/visualizagr.jsp?nro=00000000000767 | S18: =General!L20 -> DT!BB135:BB139 | AA18: 3 | AB18: Programa | AC18: CIAS | AD18: Departamento de Física | AE18: 35 | AK18: 71 | AL18: 71 | AM18: 1 | AN18: 71 | AO18: CIAS | AP18: DIVERSITAS | AQ18: COL0178619 | AR18: NR | AS18: https://scienti.colciencias.gov.co/gruplac/jsp/visualiza/visualizagr.jsp?nro=00000000018063 | AT18: =$AT$2&AV18&":"&$AT$2&AW18 -> BB306:BB311 | AU18: =ROW() -> 18 | AV18: =MINA(IF(AQ18=$BA$4:$BA$401,$BD$4:$BD$401)) -> 306 | AW18: =MAXA(IF(AQ18=$BA$4:$BA$401,$BD$4:$BD$401)) -> 311 | AX18: =AO18 -> CIAS | BA18: COL0052181 | BB18: Big Data Analytics | BC18: =COUNTIF(BA$4:BA18,BA18) -> 1 | BD18: =ROW() -> 18 | BE18: 1 | BT18: 15 | BU18: Ciencias Sociales-Economía y Negocios | BV18: Ciencias Sociales | BW18: Economía y Negocios | BX18: 15 | CB18: 15 | CC18: Vida de ecosistemas terrestres | CM18: 16 | CN18: =200+COUNTA(CO$17:CO18) -> 202 | CO18: Productos resultado de actividades de desarrollo tecnológico e innovación (DTI) | CP18: Productos tecnológicos certificados o validados | CQ18: Esquema de trazado de circuito integrado registrado ante la SIC a través de acto administrativo que resuelva la concesión favorable. | CR18: Solicitud de registro ante la SIC | CS18: 10 | CT18: 10
F19: 16 | H19: =CLEAN(TRIM(Cronograma!C23)) ->  | I19: =Cronograma!D23 -> 0 | J19: =Cronograma!E23 -> 0 | L19: 2 | M19: =General!D22 -> 0 | N19: =General!L22 -> 0 | O19: =General!I23 ->  | P19: =General!C22 -> 0 | Q19: =General!C24 -> 0 | R19: =General!C23 ->  | S19: =General!L24 -> 0 | AA19: 3 | AB19: Programa | AC19: CIAS | AD19: Departamento de Química | AE19: 36 | AK19: 72 | AL19: 72 | AM19: 1 | AN19: 72 | AO19: CIAS | AP19: Nanofab | AQ19: COL0179618 | AR19: NR | AS19: https://scienti.colciencias.gov.co/gruplac/jsp/visualiza/visualizagr.jsp?nro=00000000018163 | AT19: =$AT$2&AV19&":"&$AT$2&AW19 -> BB290:BB294 | AU19: =ROW() -> 19 | AV19: =MINA(IF(AQ19=$BA$4:$BA$401,$BD$4:$BD$401)) -> 290 | AW19: =MAXA(IF(AQ19=$BA$4:$BA$401,$BD$4:$BD$401)) -> 294 | AX19: =AO19 -> CIAS | BA19: COL0052181 | BB19: Biomecánica e Ingeniería de Rehabilitación | BC19: =COUNTIF(BA$4:BA19,BA19) -> 2 | BD19: =ROW() -> 19 | BE19: 1 | BT19: 16 | BU19: Ciencias Sociales-Derecho | BV19: Ciencias Sociales | BW19: Derecho | BX19: 16 | CB19: 16 | CC19: Paz, justicia e instituciones sólidas | CM19: 17 | CN19: =200+COUNTA(CO$17:CO19) -> 203 | CO19: Productos resultado de actividades de desarrollo tecnológico e innovación (DTI) | CP19: Productos tecnológicos certificados o validados | CQ19: Regulaciones, normas, reglamentos o legislaciones implementadas internacionalmente, acorde con parámetros de Colciencias | CR19: Copia de la norma, reglamento o legislación y certificado de la Entidad que emitió la reglamentación o normatividad | CS19: 20 | CT19: 20
F20: 17 | H20: =CLEAN(TRIM(Cronograma!C24)) ->  | I20: =Cronograma!D24 -> 0 | J20: =Cronograma!E24 -> 0 | L20: 3 | M20: =General!D26 -> 0 | N20: =General!L26 -> 0 | O20: =General!I27 ->  | P20: =General!C26 -> 0 | Q20: =General!C28 -> 0 | R20: =General!C27 ->  | S20: =General!L28 -> 0 | AA20: 3 | AB20: Programa | AC20: CIAS | AD20: Doctorado en Ciencias Aplicadas | AE20: 33 | AK20: 11 | AL20: 15 | AM20: 1 | AN20: 15 | AO20: DER | AP20: Grupo de derecho público | AQ20: COL0028918 | AR20: B | AS20: https://scienti.colciencias.gov.co/gruplac/jsp/visualiza/visualizagr.jsp?nro=00000000001079 | AT20: BB112:BB116 | AU20: =ROW() -> 20 | AV20: =MINA(IF(AQ20=$BA$4:$BA$401,$BD$4:$BD$401)) -> 112 | AW20: =MAXA(IF(AQ20=$BA$4:$BA$401,$BD$4:$BD$401)) -> 116 | AX20: DER | BA20: COL0052181 | BB20: Gestión hospitalaria | BC20: =COUNTIF(BA$4:BA20,BA20) -> 3 | BD20: =ROW() -> 20 | BE20: 1 | BT20: 17 | BU20: Ciencias Sociales-Ciencias de la Educación | BV20: Ciencias Sociales | BW20: Ciencias de la Educación | BX20: 17 | CB20: 17 | CC20: Alianzas para lograr los objetivos | CM20: 18 | CN20: =200+COUNTA(CO$17:CO20) -> 204 | CO20: Productos resultado de actividades de desarrollo tecnológico e innovación (DTI) | CP20: Productos tecnológicos certificados o validados | CQ20: Regulaciones, normas, reglamentos o legislaciones implementadas nacionalmente (no institucional), acorde con parámetros de Colciencias | CR20: Copia de la norma, reglamento o legislación y certificado de la Entidad que emitió la reglamentación o normatividad | CS20: 10 | CT20: 10
F21: 18 | H21: =CLEAN(TRIM(Cronograma!C25)) ->  | I21: =Cronograma!D25 -> 0 | J21: =Cronograma!E25 -> 0 | AA21: 4 | AB21: Programa | AC21: DER | AD21: Derecho | AE21: 16 | AK21: 47 | AL21: 16 | AM21: 1 | AN21: 16 | AO21: DER | AP21: Grupo de Derecho Privado | AQ21: COL0128047 | AR21: R | AS21: https://scienti.colciencias.gov.co/gruplac/jsp/visualiza/visualizagr.jsp?nro=00000000012964 | AT21: BB55:BB56 | AU21: =ROW() -> 21 | AV21: =MINA(IF(AQ21=$BA$4:$BA$401,$BD$4:$BD$401)) -> 55 | AW21: =MAXA(IF(AQ21=$BA$4:$BA$401,$BD$4:$BD$401)) -> 56 | AX21: DER | BA21: COL0052181 | BB21: Procesamiento de señales, datos, imagen y video | BC21: =COUNTIF(BA$4:BA21,BA21) -> 4 | BD21: =ROW() -> 21 | BE21: 1 | BT21: 18 | BU21: Ciencias Sociales-Sociología | BV21: Ciencias Sociales | BW21: Sociología | BX21: 18 | CM21: 19 | CN21: =200+COUNTA(CO$17:CO21) -> 205 | CO21: Productos resultado de actividades de desarrollo tecnológico e innovación (DTI) | CP21: Productos o procesos tecnológicos usualmente no patentables (Prototipo) | CQ21: Prototipo en estado de desarrollo TRL4 | CR21: Fotos, video del prototipo en funcionamiento, manual técnico y manual de usuario | CS21: 15 | CT21: 15
F22: 19 | H22: =CLEAN(TRIM(Cronograma!C26)) ->  | I22: =Cronograma!D26 -> 0 | J22: =Cronograma!E26 -> 0 | AA22: 5 | AB22: Programa | AC22: DER | AD22: Maestría en Derecho Procesal Penal | AE22: 47 | AK22: 68 | AL22: 17 | AM22: 1 | AN22: 17 | AO22: DER | AP22: Red de estudios sociojurídicos comparados y políticas públicas | AQ22: COL0142449 | AR22: NR | AS22: https://scienti.colciencias.gov.co/gruplac/jsp/visualiza/visualizagr.jsp?nro=00000000014449 | AT22: BB300:BB305 | AU22: =ROW() -> 22 | AV22: =MINA(IF(AQ22=$BA$4:$BA$401,$BD$4:$BD$401)) -> 300 | AW22: =MAXA(IF(AQ22=$BA$4:$BA$401,$BD$4:$BD$401)) -> 305 | AX22: DER | BA22: COL0052181 | BB22: Tele-cardiología y prevención | BC22: =COUNTIF(BA$4:BA22,BA22) -> 5 | BD22: =ROW() -> 22 | BE22: 1 | BT22: 19 | BU22: Ciencias Sociales-Ciencias Políticas | BV22: Ciencias Sociales | BW22: Ciencias Políticas | BX22: 19 | CM22: 20 | CN22: =300+COUNTA(CO$22:CO22) -> 301 | CO22: Producción resultado de actividades de apropiación social del conocimiento (ASC) | CP22: Circulación de conocimiento especializado | CQ22: Ponencia en evento Internacional de acuerdo a los requisitos de la resolución de movilidad vigente. | CR22: Copia del trabajo presentado en el evento y memorias del evento con ISSN o ISBN y/o certificado de ponente | CS22: 10 | CT22: 10
F23: 20 | H23: =CLEAN(TRIM(Cronograma!C27)) ->  | I23: =Cronograma!D27 -> 0 | J23: =Cronograma!E27 -> 0 | AA23: 6 | AB23: Programa | AC23: DER | AD23: Maestría en Derecho Administrativo | AE23: 48 | AK23: 2 | AL23: 18 | AM23: 1 | AN23: 18 | AO23: DIS | AP23: PROPPIO: Procesos organizacionales, programaticos y políticos para la promoción del desarrollo | AQ23: COL0062704 | AR23: R | AS23: https://scienti.colciencias.gov.co/gruplac/jsp/visualiza/visualizagr.jsp?nro=00000000006477 | AT23: BB149:BB152 | AU23: =ROW() -> 23 | AV23: =MINA(IF(AQ23=$BA$4:$BA$401,$BD$4:$BD$401)) -> 149 | AW23: =MAXA(IF(AQ23=$BA$4:$BA$401,$BD$4:$BD$401)) -> 152 | AX23: DIS | BA23: COL0052181 | BB23: Telemetría (IoT-Routing) | BC23: =COUNTIF(BA$4:BA23,BA23) -> 6 | BD23: =ROW() -> 23 | BE23: 1 | BT23: 20 | BU23: Ciencias Sociales-Geografía Social y Económica | BV23: Ciencias Sociales | BW23: Geografía Social y Económica | BX23: 20 | CM23: 21 | CN23: =300+COUNTA(CO$22:CO23) -> 302 | CO23: Producción resultado de actividades de apropiación social del conocimiento (ASC) | CP23: Circulación de conocimiento especializado | CQ23: Ponencia en evento nacional de acuerdo a los requisitos de la resolución de movilidad vigente. | CR23: Copia del trabajo presentado en el evento y memorias del evento con ISSN o ISBN y/o certificado de ponente | CS23: 5 | CT23: 5
F24: Col | G24: 1 | H24: =G24+1 -> 2 | I24: =H24+1 -> 3 | J24: 4 | K24: 5 | L24: 6 | M24: 7 | N24: 8 | O24: 9 | P24: 10 | Q24: 11 | R24: 12 | S24: 13 | T24: 14 | U24: 15 | V24: 16 | AA24: 7 | AB24: Programa | AC24: DER | AD24: Maestría en Instituciones Jurídicas de la Fuerza Pública | AE24: 49 | AK24: 8 | AL24: 19 | AM24: 1 | AN24: 19 | AO24: DIS | AP24: INCONDIS | AQ24: COL0127649 | AR24: NR | AS24: https://scienti.colciencias.gov.co/gruplac/jsp/visualiza/visualizagr.jsp?nro=00000000012918 | AT24: BB277:BB277 | AU24: =ROW() -> 24 | AV24: =MINA(IF(AQ24=$BA$4:$BA$401,$BD$4:$BD$401)) -> 277 | AW24: =MAXA(IF(AQ24=$BA$4:$BA$401,$BD$4:$BD$401)) -> 277 | AX24: DIS | BA24: COL0066669 | BB24: Estrategia y Seguridad | BC24: =COUNTIF(BA$4:BA24,BA24) -> 1 | BD24: =ROW() -> 24 | BE24: 1 | BT24: 21 | BU24: Ciencias Sociales-Periodismo y Comunicaciones | BV24: Ciencias Sociales | BW24: Periodismo y Comunicaciones | BX24: 21 | CM24: 22 | CN24: =300+COUNTA(CO$22:CO24) -> 303 | CO24: Producción resultado de actividades de apropiación social del conocimiento (ASC) | CP24: Participación ciudadana en CTeI | CQ24: Participación ciudadana en CTeI acorde con parámetros del modelo de medición de grupos de investigación- Colciencias | CR24: Constancia de la participación o aval de la comunidad para su inclusión en el proyecto de CTeI o espacios de encuentro | CS24: 10 | CT24: 10
AA25: 8 | AB25: Programa | AC25: DER | AD25: Especialización en Derecho Administrativo | AE25: 50 | AK25: 20 | AL25: 20 | AM25: 1 | AN25: 20 | AO25: DIS | AP25: "PYDES" Pedagogía y didáctica en la educación superior | AQ25: COL0018448 | AR25: A | AS25: https://scienti.colciencias.gov.co/gruplac/jsp/visualiza/visualizagr.jsp?nro=00000000000929 | AT25: BB201:BB203 | AU25: =ROW() -> 25 | AV25: =MINA(IF(AQ25=$BA$4:$BA$401,$BD$4:$BD$401)) -> 201 | AW25: =MAXA(IF(AQ25=$BA$4:$BA$401,$BD$4:$BD$401)) -> 203 | AX25: DIS | BA25: COL0066669 | BB25: Paz y Posconflicto | BC25: =COUNTIF(BA$4:BA25,BA25) -> 2 | BD25: =ROW() -> 25 | BE25: 1 | BT25: 22 | BU25: Ingeniería y Tecnología-Ingeniería Mecánica | BV25: Ingeniería y Tecnología | BW25: Ingeniería Mecánica | BX25: 22 | CM25: 23 | CN25: =300+COUNTA(CO$22:CO25) -> 304 | CO25: Producción resultado de actividades de apropiación social del conocimiento (ASC) | CP25: Nueva secuencia genética | CQ25: Conjunto de información molecular que haya sido publicado en revista científica especializada y en una base de datos o repositorio de acceso público acorde con los parámetros del modelo de medición de grupos de investigación - Colciencias | CR25: Certificación de la nueva secuencia genética y base de datos científica (nombre y url)) | CS25: 10 | CT25: 10
AA26: 9 | AB26: Programa | AC26: DER | AD26: Especialización en Procedimiento Penal, Constitucional y Justicia Militar | AE26: 51 | AK26: 22 | AL26: 21 | AM26: 1 | AN26: 21 | AO26: DIS | AP26: Medios, Mediaciones y Procesos en Educación a Distancia | AQ26: COL0067504 | AR26: C | AS26: https://scienti.colciencias.gov.co/gruplac/jsp/visualiza/visualizagr.jsp?nro=00000000004308 | AT26: BB92:BB97 | AU26: =ROW() -> 26 | AV26: =MINA(IF(AQ26=$BA$4:$BA$401,$BD$4:$BD$401)) -> 92 | AW26: =MAXA(IF(AQ26=$BA$4:$BA$401,$BD$4:$BD$401)) -> 97 | AX26: DIS | BA26: COL0066669 | BB26: Seguridad Física | BC26: =COUNTIF(BA$4:BA26,BA26) -> 3 | BD26: =ROW() -> 26 | BE26: 1 | BT26: 23 | BU26: Ingeniería y Tecnología-Otras Ingenierías y Tecnologías | BV26: Ingeniería y Tecnología | BW26: Otras Ingenierías y Tecnologías | BX26: 23 | CM26: 24 | CN26: =400+COUNTA(CO$26:CO26) -> 401 | CO26: Formación de Recurso Humano (FRH) | CP26: Dirección o codirección de Tesis de doctorado | CQ26: Dirección o codirección de Tesis de estudiantes en programas de Doctorado de la UMNG, con temáticas asociadas a la línea de investigación a la que pertenece el proyecto | CR26: Acta del comité de de investigacion donde se designa al director o Certificado de la unidad Academica y anteproyecto de tesis doctoral | CS26: 30 | CT26: 30
I27: Totales | K27: =SUM(K31:K52) -> 0 | Q27: =SUM(Q30:Q52) -> 0 | V27: =SUM(V30:V52) -> 0 | W27: =SUM(W30:W52) -> 0 | X27: =SUM(X30:X52) -> 0 | AA27: 10 | AB27: Programa | AC27: DER | AD27: Especialización en Derecho Sancionatorio | AE27: 52 | AK27: 39 | AL27: 22 | AM27: 1 | AN27: 22 | AO27: DIS | AP27: PIREO "Procesos de Integración, Regionalización y Estructuras Organizacionales" | AQ27: COL0066229 | AR27: C | AS27: https://scienti.colciencias.gov.co/gruplac/jsp/visualiza/visualizagr.jsp?nro=00000000004242 | AT27: BB140:BB142 | AU27: =ROW() -> 27 | AV27: =MINA(IF(AQ27=$BA$4:$BA$401,$BD$4:$BD$401)) -> 140 | AW27: =MAXA(IF(AQ27=$BA$4:$BA$401,$BD$4:$BD$401)) -> 142 | AX27: DIS | BA27: COL0066669 | BB27: Seguridad de Personas | BC27: =COUNTIF(BA$4:BA27,BA27) -> 4 | BD27: =ROW() -> 27 | BE27: 1 | BT27: 24 | BU27: Ingeniería y Tecnología-Ingeniería Química | BV27: Ingeniería y Tecnología | BW27: Ingeniería Química | BX27: 24 | CM27: 25 | CN27: =400+COUNTA(CO$26:CO27) -> 402 | CO27: Formación de Recurso Humano (FRH) | CP27: Dirección o codirección de Trabajo de maestría | CQ27: Dirección o codirección de trabajos de grado de estudiantes en programas de Maestría de la UMNG, con temáticas asociadas a línea de investigación a la que pertenece el proyecto | CR27: Acta del comité de de investigacion donde se designa al director o Certificado de la unidad Academica y anteproyecto de tesis de grado | CS27: 15 | CT27: 15
F28: Valores Presupuestales | AA28: 11 | AB28: Programa | AC28: DER | AD28: Especialización en Derechos Humanos y Sistemas de Protección | AE28: 53 | AK28: 61 | AL28: 23 | AM28: 1 | AN28: 23 | AO28: DIS | AP28: Modelos de simulación ICDIST | AQ28: COL0069296 | AR28: C | AS28: https://scienti.colciencias.gov.co/gruplac/jsp/visualiza/visualizagr.jsp?nro=00000000004423 | AT28: BB4:BB4 | AU28: =ROW() -> 28 | AV28: =MINA(IF(AQ28=$BA$4:$BA$401,$BD$4:$BD$401)) -> 4 | AW28: =MAXA(IF(AQ28=$BA$4:$BA$401,$BD$4:$BD$401)) -> 4 | AX28: DIS | BA28: COL0066669 | BB28: Seguridad y Salud en el Trabajo | BC28: =COUNTIF(BA$4:BA28,BA28) -> 5 | BD28: =ROW() -> 28 | BE28: 1 | BT28: 25 | BU28: Ingeniería y Tecnología-Ingenierías Eléctrica, Electrónica e Informática | BV28: Ingeniería y Tecnología | BW28: Ingenierías Eléctrica, Electrónica e Informática | BX28: 25 | CB28: =CB20+1 -> 18 | CC28: Ciencias básicas | CM28: 26 | CN28: =400+COUNTA(CO$26:CO28) -> 403 | CO28: Formación de Recurso Humano (FRH) | CP28: Jóven Investigador | CQ28: Vinculación por mínimo ocho meses de un Joven investigador según los criterios de la Resolución institucional que actualiza la reglamentación sobre vinculación de personal a los proyectos de investigación financiados o cofinanciados por la UMNG en los programas de CTeI o la que se encuentre vigente para el momento de la ejecución del proyecto | CR28: Contrato OPS | CS28: 10 | CT28: 10
G29: Datos de Contrapartida | L29: Datos OPS | AA29: 12 | AB29: Programa | AC29: DIS | AD29: Administración de Empresas | AE29: 17 | AK29: 67 | AL29: 24 | AM29: 1 | AN29: 24 | AO29: DIS | AP29: INAMPE | AQ29: COL0142331 | AR29: NR | AS29: https://scienti.colciencias.gov.co/gruplac/jsp/visualiza/visualizagr.jsp?nro=00000000014438 | AT29: BB297:BB299 | AU29: =ROW() -> 29 | AV29: =MINA(IF(AQ29=$BA$4:$BA$401,$BD$4:$BD$401)) -> 297 | AW29: =MAXA(IF(AQ29=$BA$4:$BA$401,$BD$4:$BD$401)) -> 299 | AX29: DIS | BA29: COL0077814 | BB29: Producción Hortícola Limpia | BC29: =COUNTIF(BA$4:BA29,BA29) -> 1 | BD29: =ROW() -> 29 | BE29: 1 | BT29: 26 | BU29: Ingeniería y Tecnología-Biotecnología Ambiental | BV29: Ingeniería y Tecnología | BW29: Biotecnología Ambiental | BX29: 26 | CB29: 19 | CC29: Otros | CM29: 27 | CN29: =400+COUNTA(CO$26:CO29) -> 404 | CO29: Formación de Recurso Humano (FRH) | CP29: Dirección o codirección de Trabajo de pregrado | CQ29: Dirección o codirección de Trabajo de estudiantes en programas de pregrado de la UMNG, con temáticas asociadas a línea de investigación a la que pertenece el proyecto. | CR29: Copia del acta sustentación del proyecto de grado | CS29: 5 | CT29: 0
F30: No | G30: Identidad | H30: =Presupuesto!E13 -> Tipo de Vinculo UMNG | I30: =Presupuesto!F13 -> Numero de meses | J30: =Presupuesto!G13 -> Número Horas / Semanal | K30: =Presupuesto!H13 -> Valor Final | L30: =Presupuesto!C29 -> Valor mensual | M30: =Presupuesto!D29 -> Factor Salarial | N30: =Presupuesto!E29 -> Tipo de vinculación | O30: mes | P30: Horas | Q30: =Presupuesto!H29 -> Valor total | R30: =Presupuesto!C50 -> Rubro / Destino | S30: =Presupuesto!D50 -> Año de Vigencia | T30: =Presupuesto!E50 -> Descripción (Entidad- Rubro) | U30: =Presupuesto!F50 -> 0 | V30: =Presupuesto!G50 -> Finaciación Vicein $ SUE | W30: =Presupuesto!H50 -> $ Contrapartida Facultad UMNG | X30: =Presupuesto!I50 -> Totales | AA30: 12 | AB30: Programa | AC30: DIS | AD30: Administración de seguridad y Salud Ocupacional | AE30: X | AK30: 13 | AL30: 25 | AM30: 1 | AN30: 25 | AO30: ECO | AP30: Grupo de Estudios en Ciencias Económicas - CIE | AQ30: COL0050294 | AR30: C | AS30: https://scienti.colciencias.gov.co/gruplac/jsp/visualiza/visualizagr.jsp?nro=00000000003322 | AT30: BB215:BB217 | AU30: =ROW() -> 30 | AV30: =MINA(IF(AQ30=$BA$4:$BA$401,$BD$4:$BD$401)) -> 215 | AW30: =MAXA(IF(AQ30=$BA$4:$BA$401,$BD$4:$BD$401)) -> 217 | AX30: ECO | BA30: COL0013719 | BB30: Biología y Epidemiología de hongos patógenos humanos. | BC30: =COUNTIF(BA$4:BA30,BA30) -> 1 | BD30: =ROW() -> 30 | BE30: 1 | BT30: 27 | BU30: Ingeniería y Tecnología-Nanotecnología | BV30: Ingeniería y Tecnología | BW30: Nanotecnología | BX30: 27 | CM30: 28 | CN30: =400+COUNTA(CO$26:CO30) -> 405 | CO30: Formación de Recurso Humano (FRH) | CP30: Tutoría de un proyecto de iniciación científica | CQ30: Tutoría de un proyecto de iniciación científica de estudiantes de la UMNG, con temáticas asociadas a línea de investigación a la que pertenece el proyecto. | CR30: Informe final y acta del Comité de investigaciones con el aval del cierre del PIC | CS30: 5 | CT30: 0
F31: =ROW()-30 -> 1 | G31: =Presupuesto!I14 -> 0 | H31: =Presupuesto!E14 -> 0 | I31: =Presupuesto!F14 -> 12 | J31: =Presupuesto!G14 -> 25 | K31: =Presupuesto!H14 -> 0 | L31: =Presupuesto!C30 -> 0 | M31: =Presupuesto!D30 -> 0 | N31: =Presupuesto!E30 -> 0 | O31: =Presupuesto!F30 -> 1 | P31: =Presupuesto!G30 -> 0 | Q31: =Presupuesto!H30 -> 0 | R31: =Presupuesto!C51 -> Personal | S31: =Presupuesto!D51 -> 1 | T31: =Presupuesto!E51 -> Horas de descarga academica UMNG | U31: =Presupuesto!F51 -> 0 | V31: =Presupuesto!G51 -> 0 | W31: =Presupuesto!H51 -> 0 | X31: =Presupuesto!I51 -> 0 | AA31: 13 | AB31: Programa | AC31: DIS | AD31: Contaduría Pública | AE31: 18 | AK31: 17 | AL31: 26 | AM31: 1 | AN31: 26 | AO31: ECO | AP31: Grupo de Estudios Macroeconómicos | AQ31: COL0027367 | AR31: C | AS31: https://scienti.colciencias.gov.co/gruplac/jsp/visualiza/visualizagr.jsp?nro=00000000000855 | AT31: BB257:BB259 | AU31: =ROW() -> 31 | AV31: =MINA(IF(AQ31=$BA$4:$BA$401,$BD$4:$BD$401)) -> 257 | AW31: =MAXA(IF(AQ31=$BA$4:$BA$401,$BD$4:$BD$401)) -> 259 | AX31: ECO | BA31: COL0013719 | BB31: Diversidad, Ecología y Bioprospección | BC31: =COUNTIF(BA$4:BA31,BA31) -> 2 | BD31: =ROW() -> 31 | BE31: 1 | BT31: 28 | BU31: Ingeniería y Tecnología-Ingeniería Civil | BV31: Ingeniería y Tecnología | BW31: Ingeniería Civil | BX31: 28 | CM31: 29 | CN31: =500+COUNTA(CO$31:CO31) -> 501 | CO31: Gestión de la Investigación (GI) | CP31: Presentación de nuevo proyecto en la misma temática financiado o cofinanciado por entidad académica o científica. | CQ31: Nueva propuesta conducente al ingreso de recursos externos en efectivo a la UMNG, superiores a la contrapartida en especie comprometida por la UMNG. Debe estar sometida a alguna convocatoria externa arbitrada por pares y acompañarse de carta de aval de la UMNG, previa realización del procedimiento de calidad o normatividad vigente para proyectos externos. | CR31: Carta de aval de institucional y registro de sometimiento a la convocatoria externa o a la entidad financiadora o coordinadora de la convocatoria | CS31: 10 | CT31: 10
F32: =ROW()-30 -> 2 | G32: =Presupuesto!I15 -> Contribuciones | H32: =Presupuesto!E15 -> 0 | I32: =Presupuesto!F15 -> 0 | J32: =Presupuesto!G15 -> 0 | K32: =Presupuesto!H15 -> 0 | L32: =Presupuesto!C31 -> 0 | M32: =Presupuesto!D31 -> 0 | N32: =Presupuesto!E31 -> 0 | O32: =Presupuesto!F31 -> 0 | P32: =Presupuesto!G31 -> 0 | Q32: =Presupuesto!H31 -> 0 | R32: =Presupuesto!C52 -> 0 | S32: =Presupuesto!D52 -> 1 | T32: =Presupuesto!E52 -> 0 | U32: =Presupuesto!F52 -> 0 | V32: =Presupuesto!G52 -> 0 | W32: =Presupuesto!H52 -> 0 | X32: =Presupuesto!I52 -> 0 | AA32: 14 | AB32: Programa | AC32: DIS | AD32: Ingeniería Civil | AE32: 19 | AK32: 40 | AL32: 27 | AM32: 1 | AN32: 27 | AO32: ECO | AP32: Grupo de estudios contemporáneos en contabilidad, gestión y organizaciones - GECCGO | AQ32: COL0028767 | AR32: B | AS32: https://scienti.colciencias.gov.co/gruplac/jsp/visualiza/visualizagr.jsp?nro=00000000001069 | AT32: BB204:BB205 | AU32: =ROW() -> 32 | AV32: =MINA(IF(AQ32=$BA$4:$BA$401,$BD$4:$BD$401)) -> 204 | AW32: =MAXA(IF(AQ32=$BA$4:$BA$401,$BD$4:$BD$401)) -> 205 | AX32: ECO | BA32: COL0013719 | BB32: Fitopatología | BC32: =COUNTIF(BA$4:BA32,BA32) -> 3 | BD32: =ROW() -> 32 | BE32: 1 | BT32: 29 | BU32: Ingeniería y Tecnología-Ingeniería de los Materiales | BV32: Ingeniería y Tecnología | BW32: Ingeniería de los Materiales | BX32: 29 | CM32: 30 | CN32: =500+COUNTA(CO$31:CO32) -> 502 | CO32: Gestión de la Investigación (GI) | CP32: Presentación de nuevo proyecto en la misma temática, financiado por entidad académica o científica internacional y en cooperación internacional. | CQ32: ="Nueva propuesta conducente a ingreso a la UMNG de recursos externos en efectivo, superiores a la contrapartida en especie comprometida por la UMNG por un valor mayor o igual a "&$CU$33&" SMMLV. Debe estar sometido a alguna convocatoria externa" -> Nueva propuesta conducente a ingreso a la UMNG de recursos externos en efectivo, superiores a la contrapartida en especie comprometida por la UMNG por un valor mayor o igual a 200 SMMLV. Debe estar sometido a alguna convocatoria externa | CR32: Carta de aval de institucional y registro de sometimiento a la convocatoria externa o a la entidad financiadora o coordinadora de la convocatoria | CS32: 30 | CT32: 30
F33: 3 | G33: =Presupuesto!I16 -> CvLac: | H33: =Presupuesto!E16 -> 0 | I33: =Presupuesto!F16 -> 0 | J33: =Presupuesto!G16 -> 0 | K33: =Presupuesto!H16 -> 0 | L33: =Presupuesto!C32 -> 0 | M33: =Presupuesto!D32 -> 0 | N33: =Presupuesto!E32 -> 0 | O33: =Presupuesto!F32 -> 0 | P33: =Presupuesto!G32 -> 0 | Q33: =Presupuesto!H32 -> 0 | R33: =Presupuesto!C53 -> 0 | S33: =Presupuesto!D53 -> 1 | T33: =Presupuesto!E53 -> 0 | U33: =Presupuesto!F53 -> 0 | V33: =Presupuesto!G53 -> 0 | W33: =Presupuesto!H53 -> 0 | X33: =Presupuesto!I53 -> 0 | AA33: 15 | AB33: Programa | AC33: DIS | AD33: Ingeniería Industrial | AE33: 20 | AK33: 64 | AL33: 28 | AM33: 1 | AN33: 28 | AO33: ECO | AP33: GECS (Grupo de Estudios en Educación, Contabilidad y Sociedad) | AQ33: COL0117722 | AR33: R | AS33: https://scienti.colciencias.gov.co/gruplac/jsp/visualiza/visualizagr.jsp?nro=00000000011887 | AT33: BB7:BB8 | AU33: =ROW() -> 33 | AV33: =MINA(IF(AQ33=$BA$4:$BA$401,$BD$4:$BD$401)) -> 7 | AW33: =MAXA(IF(AQ33=$BA$4:$BA$401,$BD$4:$BD$401)) -> 8 | AX33: ECO | BA33: COL0013719 | BB33: Genómica y bioinformática | BC33: =COUNTIF(BA$4:BA33,BA33) -> 4 | BD33: =ROW() -> 33 | BE33: 1 | BT33: 30 | BU33: Ingeniería y Tecnología-Ingeniería Ambiental | BV33: Ingeniería y Tecnología | BW33: Ingeniería Ambiental | BX33: 30 | CM33: 31 | CN33: =500+COUNTA(CO$31:CO33) -> 503 | CO33: Gestión de la Investigación (GI) | CP33: Presentación de nuevo proyecto en la misma temática financiado por entidad académica o científica internacional. | CQ33: ="Nueva propuesta conducente a ingreso a la UMNG de recursos externos en efectivo, superiores a la contrapartida en especie comprometida por la UMNG por un valor mayor o igual a "&CU33&" SMMLV. Debe estar sometido a alguna convocatoria externa internacional" -> Nueva propuesta conducente a ingreso a la UMNG de recursos externos en efectivo, superiores a la contrapartida en especie comprometida por la UMNG por un valor mayor o igual a 200 SMMLV. Debe estar sometido a alguna convocatoria externa internacional | CR33: Carta de aval de institucional y registro de sometimiento a la convocatoria externa o a la entidad financiadora o coordinadora de la convocatoria | CS33: 40 | CT33: 40 | CU33: =IF(CW1="IMP",350,200) -> 200
F34: 4 | G34: =Presupuesto!I17 -> Funcion : | H34: =Presupuesto!E17 -> 0 | I34: =Presupuesto!F17 -> 0 | J34: =Presupuesto!G17 -> 0 | K34: =Presupuesto!H17 -> 0 | L34: =Presupuesto!C33 -> 0 | M34: =Presupuesto!D33 -> 0 | N34: =Presupuesto!E33 -> 0 | O34: =Presupuesto!F33 -> 0 | P34: =Presupuesto!G33 -> 0 | Q34: =Presupuesto!H33 -> 0 | R34: =Presupuesto!C54 -> 0 | S34: =Presupuesto!D54 -> 1 | T34: =Presupuesto!E54 -> 0 | U34: =Presupuesto!F54 -> 0 | V34: =Presupuesto!G54 -> 0 | W34: =Presupuesto!H54 -> 0 | X34: =Presupuesto!I54 -> 0 | AA34: 16 | AB34: Programa | AC34: DIS | AD34: Ingeniería Informática | AE34: 21 | AK34: 21 | AL34: 29 | AM34: 1 | AN34: 29 | AO34: EES | AP34: Estudios Internacionales y Políticos | AQ34: COL0066768 | AR34: C | AS34: https://scienti.colciencias.gov.co/gruplac/jsp/visualiza/visualizagr.jsp?nro=00000000004270 | AT34: BB143:BB148 | AU34: =ROW() -> 34 | AV34: =MINA(IF(AQ34=$BA$4:$BA$401,$BD$4:$BD$401)) -> 143 | AW34: =MAXA(IF(AQ34=$BA$4:$BA$401,$BD$4:$BD$401)) -> 148 | AX34: EES | BA34: COL0013719 | BB34: Susceptibilidad a Antifungícos | BC34: =COUNTIF(BA$4:BA34,BA34) -> 5 | BD34: =ROW() -> 34 | BE34: 1 | BT34: 31 | BU34: Ingeniería y Tecnología-Biotecnología Industrial | BV34: Ingeniería y Tecnología | BW34: Biotecnología Industrial | BX34: 31 | CM34: 32 | CN34: =500+COUNTA(CO$31:CO34) -> 504 | CO34: Gestión de la Investigación (GI) | CP34: Proyecto ejecutado con cooperación nacional. | CQ34: Ejecución del proyecto, sometido a la presente convocatoria, en la modalidad de cooperación a través de convenio especial de cooperación o instrumento contractual equivalente, con instituciones de carácter nacional que cumplan con el criterio de evaluación de colaboración externa, enunciado en los presentes términos de referencia. | CR34: Convenio perfeccionado y acta de inicio y presupuestal firmadas. | CS34: 5 | CT34: 5
F35: 5 | G35: =Presupuesto!I18 -> 0 | H35: =Presupuesto!E18 -> Investigador Externo | I35: =Presupuesto!F18 -> 12 | J35: =Presupuesto!G18 -> 0 | K35: =Presupuesto!H18 -> 0 | L35: =Presupuesto!C34 -> 0 | M35: =Presupuesto!D34 -> 0 | N35: =Presupuesto!E34 -> 0 | O35: =Presupuesto!F34 -> 0 | P35: =Presupuesto!G34 -> 0 | Q35: =Presupuesto!H34 -> 0 | R35: =Presupuesto!C55 -> 0 | S35: =Presupuesto!D55 -> 1 | T35: =Presupuesto!E55 -> 0 | U35: =Presupuesto!F55 -> 0 | V35: =Presupuesto!G55 -> 0 | W35: =Presupuesto!H55 -> 0 | X35: =Presupuesto!I55 -> 0 | AA35: 16 | AB35: Programa | AC35: DIS | AD35: Relaciones Internacionales y Estudios Políticos | AE35: X | AK35: 53 | AL35: 30 | AM35: 1 | AN35: 30 | AO35: EES | AP35: Sociedad, Estrategia y Seguridad | AQ35: COL0066669 | AR35: C | AS35: https://scienti.colciencias.gov.co/gruplac/jsp/visualiza/visualizagr.jsp?nro=00000000004263 | AT35: BB24:BB28 | AU35: =ROW() -> 35 | AV35: =MINA(IF(AQ35=$BA$4:$BA$401,$BD$4:$BD$401)) -> 24 | AW35: =MAXA(IF(AQ35=$BA$4:$BA$401,$BD$4:$BD$401)) -> 28 | AX35: EES | BA35: COL0065804 | BB35: Desarrollos mecatrónicos | BC35: =COUNTIF(BA$4:BA35,BA35) -> 1 | BD35: =ROW() -> 35 | BE35: 1 | BT35: 32 | BU35: Ingeniería y Tecnología-Ingeniería Médica | BV35: Ingeniería y Tecnología | BW35: Ingeniería Médica | BX35: 32 | CM35: 33 | CN35: =500+COUNTA(CO$31:CO35) -> 505 | CO35: Gestión de la Investigación (GI) | CP35: Proyecto ejecutado con cooperación internacional | CQ35: Ejecución del proyecto, sometido a la presente convocatoria, en la modalidad de cooperación a través de convenio especial de cooperación o instrumento contractual equivalente, con instituciones de carácter internacional en la que mínimo una de ellas tiene domicilio en el exterior y que cumplan con el criterio de evaluación de colaboración externa, enunciado en los presentes términos de referencia. | CR35: Convenio perfeccionado y acta de inicio y presupuestal firmadas. | CS35: 10 | CT35: 10
F36: 6 | G36: =Presupuesto!I19 -> Contribuciones | H36: =Presupuesto!E19 -> 0 | I36: =Presupuesto!F19 -> 0 | J36: =Presupuesto!G19 -> 0 | K36: =Presupuesto!H19 -> 0 | L36: =Presupuesto!C35 -> 0 | M36: =Presupuesto!D35 -> 0 | N36: =Presupuesto!E35 -> 0 | O36: =Presupuesto!F35 -> 0 | P36: =Presupuesto!G35 -> 0 | Q36: =Presupuesto!H35 -> 0 | R36: =Presupuesto!C56 -> 0 | S36: =Presupuesto!D56 -> 1 | T36: =Presupuesto!E56 -> 0 | U36: =Presupuesto!F56 -> 0 | V36: =Presupuesto!G56 -> 0 | W36: =Presupuesto!H56 -> 0 | X36: =Presupuesto!I56 -> 0 | AA36: 17 | AB36: Programa | AC36: DIS | AD36: Ingeniería Informática | AE36: X | AK36: 9 | AL36: 31 | AM36: =COUNTIF($AN$4:$AN$806,AL36) -> 1 | AN36: 31 | AO36: HUM | AP36: LIDERAZGO | AQ36: COL0015722 | AR36: A | AS36: https://scienti.colciencias.gov.co/gruplac/jsp/visualiza/visualizagr.jsp?nro=00000000000744 | AT36: BB177:BB178 | AU36: =ROW() -> 36 | AV36: =MINA(IF(AQ36=$BA$4:$BA$401,$BD$4:$BD$401)) -> 177 | AW36: =MAXA(IF(AQ36=$BA$4:$BA$401,$BD$4:$BD$401)) -> 178 | AX36: HUM | BA36: COL0065804 | BB36: Energías Renovables | BC36: =COUNTIF(BA$4:BA36,BA36) -> 2 | BD36: =ROW() -> 36 | BE36: 1 | BT36: 33 | BU36: Ciencias Agrícolas-Biotecnología Agrícola | BV36: Ciencias Agrícolas | BW36: Biotecnología Agrícola | BX36: 33
F37: 7 | G37: =Presupuesto!I20 -> CvLac: | H37: =Presupuesto!E20 -> 0 | I37: =Presupuesto!F20 -> 0 | J37: =Presupuesto!G20 -> 0 | K37: =Presupuesto!H20 -> 0 | L37: =Presupuesto!C36 -> 0 | M37: =Presupuesto!D36 -> 0 | N37: =Presupuesto!E36 -> 0 | O37: =Presupuesto!F36 -> 0 | P37: =Presupuesto!G36 -> 0 | Q37: =Presupuesto!H36 -> 0 | R37: =Presupuesto!C57 -> 0 | S37: =Presupuesto!D57 -> 1 | T37: =Presupuesto!E57 -> 0 | U37: =Presupuesto!F57 -> 0 | V37: =Presupuesto!G57 -> 0 | W37: =Presupuesto!H57 -> 0 | X37: =Presupuesto!I57 -> 0 | AA37: 17 | AB37: Programa | AC37: DIS | AD37: Especialización en Alta Gerencia | AE37: 54 | AK37: 23 | AL37: 32 | AM37: 1 | AN37: 32 | AO37: HUM | AP37: HUMANITAS | AQ37: COL0101099 | AR37: B | AS37: https://scienti.colciencias.gov.co/gruplac/jsp/visualiza/visualizagr.jsp?nro=00000000010165 | AT37: BB9:BB12 | AU37: =ROW() -> 37 | AV37: =MINA(IF(AQ37=$BA$4:$BA$401,$BD$4:$BD$401)) -> 9 | AW37: =MAXA(IF(AQ37=$BA$4:$BA$401,$BD$4:$BD$401)) -> 12 | AX37: HUM | BA37: COL0065804 | BB37: Materiales y Procesos de Manufactura | BC37: =COUNTIF(BA$4:BA37,BA37) -> 3 | BD37: =ROW() -> 37 | BE37: 1 | BT37: 34 | BU37: Ciencias Agrícolas-Ciencias Veterinarias | BV37: Ciencias Agrícolas | BW37: Ciencias Veterinarias | BX37: 34
F38: 8 | G38: =Presupuesto!I21 -> Funcion : | H38: =Presupuesto!E21 -> 0 | I38: =Presupuesto!F21 -> 0 | J38: =Presupuesto!G21 -> 0 | K38: =Presupuesto!H21 -> 0 | L38: =Presupuesto!C37 -> 0 | M38: =Presupuesto!D37 -> 0 | N38: =Presupuesto!E37 -> 0 | O38: =Presupuesto!F37 -> 0 | P38: =Presupuesto!G37 -> 0 | Q38: =Presupuesto!H37 -> 0 | R38: =Presupuesto!C58 -> 0 | S38: =Presupuesto!D58 -> 1 | T38: =Presupuesto!E58 -> 0 | U38: =Presupuesto!F58 -> 0 | V38: =Presupuesto!G58 -> 0 | W38: =Presupuesto!H58 -> 0 | X38: =Presupuesto!I58 -> 0 | AA38: 18 | AB38: Programa | AC38: ECO | AD38: Administración de Empresas | AE38: X | AK38: 38 | AL38: 33 | AM38: 1 | AN38: 33 | AO38: HUM | AP38: Cultura y Desarrollo Humano | AQ38: COL0002896 | AR38: R | AS38: https://scienti.colciencias.gov.co/gruplac/jsp/visualiza/visualizagr.jsp?nro=00000000000740 | AT38: BB38:BB40 | AU38: =ROW() -> 38 | AV38: =MINA(IF(AQ38=$BA$4:$BA$401,$BD$4:$BD$401)) -> 38 | AW38: =MAXA(IF(AQ38=$BA$4:$BA$401,$BD$4:$BD$401)) -> 40 | AX38: HUM | BA38: COL0002896 | BB38: Bioética Educación y Cultura | BC38: =COUNTIF(BA$4:BA38,BA38) -> 1 | BD38: =ROW() -> 38 | BE38: 1 | BT38: 35 | BU38: Ciencias Agrícolas-Ciencias Animales y Lechería | BV38: Ciencias Agrícolas | BW38: Ciencias Animales y Lechería | BX38: 35
F39: 9 | G39: =Presupuesto!I22 -> 0 | H39: =Presupuesto!E22 -> 0 | I39: =Presupuesto!F22 -> 12 | J39: =Presupuesto!G22 -> 0 | K39: =Presupuesto!H22 -> 0 | L39: =Presupuesto!C38 -> 0 | M39: =Presupuesto!D38 -> 0 | N39: =Presupuesto!E38 -> 0 | O39: =Presupuesto!F38 -> 0 | P39: =Presupuesto!G38 -> 0 | Q39: =Presupuesto!H38 -> 0 | R39: =Presupuesto!C59 -> 0 | S39: =Presupuesto!D59 -> 1 | T39: =Presupuesto!E59 -> 0 | U39: =Presupuesto!F59 -> 0 | V39: =Presupuesto!G59 -> 0 | W39: =Presupuesto!H59 -> 0 | X39: =Presupuesto!I59 -> 0 | AA39: 18 | AB39: Programa | AC39: ECO | AD39: Contaduría Pública | AE39: X | AK39: 50 | AL39: 34 | AM39: 1 | AN39: 34 | AO39: HUM | AP39: BioethicsGroup | AQ39: COL0031824 | AR39: A | AS39: https://scienti.colciencias.gov.co/gruplac/jsp/visualiza/visualizagr.jsp?nro=00000000001353 | AT39: BB81:BB84 | AU39: =ROW() -> 39 | AV39: =MINA(IF(AQ39=$BA$4:$BA$401,$BD$4:$BD$401)) -> 81 | AW39: =MAXA(IF(AQ39=$BA$4:$BA$401,$BD$4:$BD$401)) -> 84 | AX39: HUM | BA39: COL0002896 | BB39: Educación y Sociedad | BC39: =COUNTIF(BA$4:BA39,BA39) -> 2 | BD39: =ROW() -> 39 | BE39: 1 | BT39: 36 | BU39: Ciencias Agrícolas-Otras Ciencias Agrícolas | BV39: Ciencias Agrícolas | BW39: Otras Ciencias Agrícolas | BX39: 36
F40: 10 | G40: =Presupuesto!I23 -> Contribuciones | H40: =Presupuesto!E23 -> 0 | I40: =Presupuesto!F23 -> 0 | J40: =Presupuesto!G23 -> 0 | K40: =Presupuesto!H23 -> 0 | L40: =Presupuesto!C39 -> 0 | M40: =Presupuesto!D39 -> 0 | N40: =Presupuesto!E39 -> 0 | O40: =Presupuesto!F39 -> 0 | P40: =Presupuesto!G39 -> 0 | Q40: =Presupuesto!H39 -> 0 | R40: =Presupuesto!C60 -> 0 | S40: =Presupuesto!D60 -> 1 | T40: =Presupuesto!E60 -> 0 | U40: =Presupuesto!F60 -> 0 | V40: =Presupuesto!G60 -> 0 | W40: =Presupuesto!H60 -> 0 | X40: =Presupuesto!I60 -> 0 | AA40: 18 | AB40: Programa | AC40: ECO | AD40: Economía | AE40: X | AK40: 5 | AL40: 35 | AM40: 1 | AN40: 35 | AO40: ING | AP40: Grupo de Investigación en Multimedia -GIM- | AQ40: COL0044859 | AR40: C | AS40: https://scienti.colciencias.gov.co/gruplac/jsp/visualiza/visualizagr.jsp?nro=00000000002706 | AT40: BB13:BB17 | AU40: =ROW() -> 40 | AV40: =MINA(IF(AQ40=$BA$4:$BA$401,$BD$4:$BD$401)) -> 13 | AW40: =MAXA(IF(AQ40=$BA$4:$BA$401,$BD$4:$BD$401)) -> 17 | AX40: ING | BA40: COL0002896 | BB40: Educación y cultura | BC40: =COUNTIF(BA$4:BA40,BA40) -> 3 | BD40: =ROW() -> 40 | BE40: 1 | BT40: 37 | BU40: Ciencias Agrícolas-Agricultura, Silvicultura y Pesca | BV40: Ciencias Agrícolas | BW40: Agricultura, Silvicultura y Pesca | BX40: 37
F41: 11 | L41: =Presupuesto!C40 -> 0 | M41: =Presupuesto!D40 -> 0 | N41: =Presupuesto!E40 -> 0 | O41: =Presupuesto!F40 -> 0 | P41: =Presupuesto!G40 -> 0 | Q41: =Presupuesto!H40 -> 0 | R41: =Presupuesto!C61 -> 0 | S41: =Presupuesto!D61 -> 1 | T41: =Presupuesto!E61 -> 0 | U41: =Presupuesto!F61 -> 0 | V41: =Presupuesto!G61 -> 0 | W41: =Presupuesto!H61 -> 0 | X41: =Presupuesto!I61 -> 0 | AA41: 18 | AB41: Programa | AC41: ECO | AD41: Tecnología en Contabilidad y Tributaria | AE41: X | AK41: 10 | AL41: 36 | AM41: 1 | AN41: 36 | AO41: ING | AP41: GEOTECNIA | AQ41: COL0005439 | AR41: C | AS41: https://scienti.colciencias.gov.co/gruplac/jsp/visualiza/visualizagr.jsp?nro=00000000000739 | AT41: BB98:BB102 | AU41: =ROW() -> 41 | AV41: =MINA(IF(AQ41=$BA$4:$BA$401,$BD$4:$BD$401)) -> 98 | AW41: =MAXA(IF(AQ41=$BA$4:$BA$401,$BD$4:$BD$401)) -> 102 | AX41: ING | BA41: COL0047566 | BB41: Educación en ingeniería | BC41: =COUNTIF(BA$4:BA41,BA41) -> 1 | BD41: =ROW() -> 41 | BE41: 1 | BT41: 38 | BU41: Humanidades-Arte | BV41: Humanidades | BW41: Arte | BX41: 38
F42: 12 | L42: =Presupuesto!C41 -> 0 | M42: =Presupuesto!D41 -> 0 | N42: =Presupuesto!E41 -> 0 | O42: =Presupuesto!F41 -> 0 | P42: =Presupuesto!G41 -> 0 | Q42: =Presupuesto!H41 -> 0 | R42: =Presupuesto!C62 -> 0 | S42: =Presupuesto!D62 -> 1 | T42: =Presupuesto!E62 -> 0 | U42: =Presupuesto!F62 -> 0 | V42: =Presupuesto!G62 -> 0 | W42: =Presupuesto!H62 -> 0 | X42: =Presupuesto!I62 -> 0 | AA42: 18 | AB42: Programa | AC42: ECO | AD42: Maestría en Gestión de Organizaciones | AE42: 24 | AK42: 14 | AL42: 37 | AM42: 1 | AN42: 37 | AO42: ING | AP42: TIGUM: Grupo de Investigacion en Telemedicina Universidad Militar | AQ42: COL0052181 | AR42: C | AS42: https://scienti.colciencias.gov.co/gruplac/jsp/visualiza/visualizagr.jsp?nro=00000000003508 | AT42: BB18:BB23 | AU42: =ROW() -> 42 | AV42: =MINA(IF(AQ42=$BA$4:$BA$401,$BD$4:$BD$401)) -> 18 | AW42: =MAXA(IF(AQ42=$BA$4:$BA$401,$BD$4:$BD$401)) -> 23 | AX42: ING | BA42: COL0047566 | BB42: Geomatica | BC42: =COUNTIF(BA$4:BA42,BA42) -> 2 | BD42: =ROW() -> 42 | BE42: 1 | BT42: 39 | BU42: Humanidades-Otras Humanidades | BV42: Humanidades | BW42: Otras Humanidades | BX42: 39
F43: 13 | L43: =Presupuesto!C42 -> 0 | M43: =Presupuesto!D42 -> 0 | N43: =Presupuesto!E42 -> 0 | O43: =Presupuesto!F42 -> 0 | P43: =Presupuesto!G42 -> 0 | Q43: =Presupuesto!H42 -> 0 | R43: =Presupuesto!C63 -> 0 | S43: =Presupuesto!D63 -> 1 | T43: =Presupuesto!E63 -> 0 | U43: =Presupuesto!F63 -> 0 | V43: =Presupuesto!G63 -> 0 | W43: =Presupuesto!H63 -> 0 | X43: =Presupuesto!I63 -> 0 | AA43: 19 | AB43: Programa | AC43: ECO | AD43: Especialización en Alta Gerencia | AE43: 25 | AK43: 16 | AL43: 38 | AM43: 1 | AN43: 38 | AO43: ING | AP43: VOLTA - Grupo de Materiales, Corrosión, Degradación y Protección (GMCDP) | AQ43: COL0065804 | AR43: A1 | AS43: https://scienti.colciencias.gov.co/gruplac/jsp/visualiza/visualizagr.jsp?nro=00000000004193 | AT43: BB35:BB37 | AU43: =ROW() -> 43 | AV43: =MINA(IF(AQ43=$BA$4:$BA$401,$BD$4:$BD$401)) -> 35 | AW43: =MAXA(IF(AQ43=$BA$4:$BA$401,$BD$4:$BD$401)) -> 37 | AX43: ING | BA43: COL0047566 | BB43: Gerencia de proyectos | BC43: =COUNTIF(BA$4:BA43,BA43) -> 3 | BD43: =ROW() -> 43 | BE43: 1 | BT43: 40 | BU43: Humanidades-Otras historias | BV43: Humanidades | BW43: Otras historias | BX43: 40
F44: 14 | L44: =Presupuesto!C43 -> 0 | M44: =Presupuesto!D43 -> 0 | N44: =Presupuesto!E43 -> 0 | O44: =Presupuesto!F43 -> 0 | P44: =Presupuesto!G43 -> 0 | Q44: =Presupuesto!H43 -> 0 | R44: =Presupuesto!C64 -> 0 | S44: =Presupuesto!D64 -> 1 | T44: =Presupuesto!E64 -> 0 | U44: =Presupuesto!F64 -> 0 | V44: =Presupuesto!G64 -> 0 | W44: =Presupuesto!H64 -> 0 | X44: =Presupuesto!I64 -> 0 | AA44: 20 | AB44: Programa | AC44: ECO | AD44: Especialización en Administración Aeronáutica y Aeroespacial | AE44: 26 | AK44: 27 | AL44: 39 | AM44: 1 | AN44: 39 | AO44: ING | AP44: PRODUCCION, INNOVACION Y TECNOLOGIA | AQ44: COL0049999 | AR44: C | AS44: https://scienti.colciencias.gov.co/gruplac/jsp/visualiza/visualizagr.jsp?nro=00000000003290 | AT44: BB129:BB134 | AU44: =ROW() -> 44 | AV44: =MINA(IF(AQ44=$BA$4:$BA$401,$BD$4:$BD$401)) -> 129 | AW44: =MAXA(IF(AQ44=$BA$4:$BA$401,$BD$4:$BD$401)) -> 134 | AX44: ING | BA44: COL0047566 | BB44: Procesos estocásticos | BC44: =COUNTIF(BA$4:BA44,BA44) -> 4 | BD44: =ROW() -> 44 | BE44: 1 | BT44: 41 | BU44: Humanidades-Historia y Arqueología | BV44: Humanidades | BW44: Historia y Arqueología | BX44: 41
F45: 15 | R45: =Presupuesto!C65 -> 0 | S45: =Presupuesto!D65 -> 1 | T45: =Presupuesto!E65 -> 0 | U45: =Presupuesto!F65 -> 0 | V45: =Presupuesto!G65 -> 0 | W45: =Presupuesto!H65 -> 0 | X45: =Presupuesto!I65 -> 0 | AA45: 21 | AB45: Programa | AC45: ECO | AD45: Especialización en Control Interno | AE45: 27 | AK45: 29 | AL45: 40 | AM45: 1 | AN45: 40 | AO45: ING | AP45: GIDAM | AQ45: COL0116636 | AR45: C | AS45: https://scienti.colciencias.gov.co/gruplac/jsp/visualiza/visualizagr.jsp?nro=00000000011773 | AT45: BB50:BB54 | AU45: =ROW() -> 45 | AV45: =MINA(IF(AQ45=$BA$4:$BA$401,$BD$4:$BD$401)) -> 50 | AW45: =MAXA(IF(AQ45=$BA$4:$BA$401,$BD$4:$BD$401)) -> 54 | AX45: ING | BA45: COL0047566 | BB45: Productividad e impacto ambiental en proyectos de ingenieria civil (construcción sostenible) | BC45: =COUNTIF(BA$4:BA45,BA45) -> 5 | BD45: =ROW() -> 45 | BE45: 1 | BT45: 42 | BU45: Humanidades-Idiomas y Literatura | BV45: Humanidades | BW45: Idiomas y Literatura | BX45: 42
F46: 16 | R46: =Presupuesto!C66 -> 0 | S46: =Presupuesto!D66 -> 1 | T46: =Presupuesto!E66 -> 0 | U46: =Presupuesto!F66 -> 0 | V46: =Presupuesto!G66 -> 0 | W46: =Presupuesto!H66 -> 0 | X46: =Presupuesto!I66 -> 0 | AA46: 22 | AB46: Programa | AC46: ECO | AD46: Especialización en Gestión de Desarrollo Administrativo | AE46: 28 | AK46: 31 | AL46: 41 | AM46: 1 | AN46: 41 | AO46: ING | AP46: DAVINCI | AQ46: COL0036025 | AR46: A | AS46: https://scienti.colciencias.gov.co/gruplac/jsp/visualiza/visualizagr.jsp?nro=00000000001843 | AT46: BB211:BB214 | AU46: =ROW() -> 46 | AV46: =MINA(IF(AQ46=$BA$4:$BA$401,$BD$4:$BD$401)) -> 211 | AW46: =MAXA(IF(AQ46=$BA$4:$BA$401,$BD$4:$BD$401)) -> 214 | AX46: ING | BA46: COL0050982 | BB46: Expansión de células stem | BC46: =COUNTIF(BA$4:BA46,BA46) -> 1 | BD46: =ROW() -> 46 | BE46: 1
F47: 17 | R47: =Presupuesto!C67 -> 0 | S47: =Presupuesto!D67 -> 1 | T47: =Presupuesto!E67 -> 0 | U47: =Presupuesto!F67 -> 0 | V47: =Presupuesto!G67 -> 0 | W47: =Presupuesto!H67 -> 0 | X47: =Presupuesto!I67 -> 0 | AA47: 23 | AB47: Programa | AC47: ECO | AD47: Especialización en Gerencia en Comercio Internacional | AE47: 29 | AK47: 33 | AL47: 42 | AM47: 1 | AN47: 42 | AO47: ING | AP47: Estructuras y sísmica | AQ47: COL0016999 | AR47: C | AS47: https://scienti.colciencias.gov.co/gruplac/jsp/visualiza/visualizagr.jsp?nro=00000000000737 | AT47: BB245:BB249 | AU47: =ROW() -> 47 | AV47: =MINA(IF(AQ47=$BA$4:$BA$401,$BD$4:$BD$401)) -> 245 | AW47: =MAXA(IF(AQ47=$BA$4:$BA$401,$BD$4:$BD$401)) -> 249 | AX47: ING | BA47: COL0050982 | BB47: Inmunoregulación | BC47: =COUNTIF(BA$4:BA47,BA47) -> 2 | BD47: =ROW() -> 47 | BE47: 1
F48: 18 | R48: =Presupuesto!C68 -> 0 | S48: =Presupuesto!D68 -> 1 | T48: =Presupuesto!E68 -> 0 | U48: =Presupuesto!F68 -> 0 | V48: =Presupuesto!G68 -> 0 | W48: =Presupuesto!H68 -> 0 | X48: =Presupuesto!I68 -> 0 | AA48: 24 | AB48: Programa | AC48: ECO | AD48: Especialización en Finanzas y Administración Pública | AE48: 30 | AK48: 34 | AL48: 43 | AM48: 1 | AN48: 43 | AO48: ING | AP48: INGENIERÍA, GEOMÁTICA Y EDUCACIÓN (IGE) | AQ48: COL0047566 | AR48: C | AS48: https://scienti.colciencias.gov.co/gruplac/jsp/visualiza/visualizagr.jsp?nro=00000000003044 | AT48: BB41:BB45 | AU48: =ROW() -> 48 | AV48: =MINA(IF(AQ48=$BA$4:$BA$401,$BD$4:$BD$401)) -> 41 | AW48: =MAXA(IF(AQ48=$BA$4:$BA$401,$BD$4:$BD$401)) -> 45 | AX48: ING | BA48: COL0050982 | BB48: Investigación en Cáncer | BC48: =COUNTIF(BA$4:BA48,BA48) -> 3 | BD48: =ROW() -> 48 | BE48: 1
F49: 19 | R49: =Presupuesto!C69 -> 0 | S49: =Presupuesto!D69 -> 1 | T49: =Presupuesto!E69 -> 0 | U49: =Presupuesto!F69 -> 0 | V49: =Presupuesto!G69 -> 0 | W49: =Presupuesto!H69 -> 0 | X49: =Presupuesto!I69 -> 0 | AA49: 25 | AB49: Programa | AC49: ECO | AD49: Especialización en Mercadeo de Servicios | AE49: 31 | AK49: 37 | AL49: 44 | AM49: 1 | AN49: 44 | AO49: ING | AP49: ACCEDER | AQ49: COL0036749 | AR49: C | AS49: https://scienti.colciencias.gov.co/gruplac/jsp/visualiza/visualizagr.jsp?nro=00000000012996 | AT49: BB5:BB6 | AU49: =ROW() -> 49 | AV49: =MINA(IF(AQ49=$BA$4:$BA$401,$BD$4:$BD$401)) -> 5 | AW49: =MAXA(IF(AQ49=$BA$4:$BA$401,$BD$4:$BD$401)) -> 6 | AX49: ING | BA49: COL0050982 | BB49: Mesénquima | BC49: =COUNTIF(BA$4:BA49,BA49) -> 4 | BD49: =ROW() -> 49 | BE49: 1
F50: 20 | R50: =Presupuesto!C70 -> 0 | S50: =Presupuesto!D70 -> 1 | T50: =Presupuesto!E70 -> 0 | U50: =Presupuesto!F70 -> 0 | V50: =Presupuesto!G70 -> 0 | W50: =Presupuesto!H70 -> 0 | X50: =Presupuesto!I70 -> 0 | AA50: 26 | AB50: Programa | AC50: ECO | AD50: Especialización en Revisoría Fiscal y Auditoría Internacional | AE50: 32 | AK50: 49 | AL50: 45 | AM50: 1 | AN50: 45 | AO50: ING | AP50: Agua y Energía - AyE | AQ50: COL0026486 | AR50: C | AS50: https://scienti.colciencias.gov.co/gruplac/jsp/visualiza/visualizagr.jsp?nro=00000000000767 | AT50: BB135:BB139 | AU50: =ROW() -> 50 | AV50: =MINA(IF(AQ50=$BA$4:$BA$401,$BD$4:$BD$401)) -> 135 | AW50: =MAXA(IF(AQ50=$BA$4:$BA$401,$BD$4:$BD$401)) -> 139 | AX50: ING | BA50: COL0116636 | BB50: Desarrollo de software y hardware en sistemas embarcables | BC50: =COUNTIF(BA$4:BA50,BA50) -> 1 | BD50: =ROW() -> 50 | BE50: 1
F51: 21 | R51: =Presupuesto!C86 -> 0 | S51: =Presupuesto!D86 -> 0 | T51: =Presupuesto!E86 -> 0 | U51: =Presupuesto!F86 -> 0 | V51: =Presupuesto!G86 -> 0 | W51: =Presupuesto!H86 -> 0 | X51: =Presupuesto!I86 -> 0 | AA51: 27 | AB51: Programa | AC51: EES | AD51: Relaciones Internacionales y Estudios Políticos | AE51: 12 | AK51: 52 | AL51: 46 | AM51: 1 | AN51: 46 | AO51: ING | AP51: GISSIC: Grupo de Investigacion en Seguridad y Sistemas de Comunicaciones | AQ51: COL0052163 | AR51: A | AS51: https://scienti.colciencias.gov.co/gruplac/jsp/visualiza/visualizagr.jsp?nro=00000000003506 | AT51: BB206:BB210 | AU51: =ROW() -> 51 | AV51: =MINA(IF(AQ51=$BA$4:$BA$401,$BD$4:$BD$401)) -> 206 | AW51: =MAXA(IF(AQ51=$BA$4:$BA$401,$BD$4:$BD$401)) -> 210 | AX51: ING | BA51: COL0116636 | BB51: Procesamiento digital de señales e imágenes | BC51: =COUNTIF(BA$4:BA51,BA51) -> 2 | BD51: =ROW() -> 51 | BE51: 1
F52: 22 | AA52: 28 | AB52: Programa | AC52: EES | AD52: Administración de la Seguridad y Salud Ocupacional | AE52: 13 | AK52: 54 | AL52: 47 | AM52: 1 | AN52: 47 | AO52: ING | AP52: GAV | AQ52: COL0068762 | AR52: A | AS52: https://scienti.colciencias.gov.co/gruplac/jsp/visualiza/visualizagr.jsp?nro=00000000004391 | AT52: BB78:BB80 | AU52: =ROW() -> 52 | AV52: =MINA(IF(AQ52=$BA$4:$BA$401,$BD$4:$BD$401)) -> 78 | AW52: =MAXA(IF(AQ52=$BA$4:$BA$401,$BD$4:$BD$401)) -> 80 | AX52: ING | BA52: COL0116636 | BB52: Producción sostenible | BC52: =COUNTIF(BA$4:BA52,BA52) -> 3 | BD52: =ROW() -> 52 | BE52: 1
AA53: 31 | AB53: Programa | AC53: EES | AD53: Maestría en Relaciones y Negocios Internacionales | AE53: 44 | AK53: 57 | AL53: 48 | AM53: 1 | AN53: 48 | AO53: ING | AP53: Energia alternativa, Centro Multidisciplinario de Investigación | AQ53: COL0117052 | AR53: C | AS53: https://scienti.colciencias.gov.co/gruplac/jsp/visualiza/visualizagr.jsp?nro=00000000011817 | AT53: BB66:BB70 | AU53: =ROW() -> 53 | AV53: =MINA(IF(AQ53=$BA$4:$BA$401,$BD$4:$BD$401)) -> 66 | AW53: =MAXA(IF(AQ53=$BA$4:$BA$401,$BD$4:$BD$401)) -> 70 | AX53: ING | BA53: COL0116636 | BB53: Robótica móvil | BC53: =COUNTIF(BA$4:BA53,BA53) -> 4 | BD53: =ROW() -> 53 | BE53: 1
M54: Recopilación deTextos | AA54: 32 | AB54: Programa | AC54: EES | AD54: Especialización en Administración de la Seguridad | AE54: 45 | AK54: 60 | AL54: 49 | AM54: 1 | AN54: 49 | AO54: ING | AP54: GI-iTEC - Grupo de Investigación e innovación Tecnológica en Electrónica y Comunicaciones | AQ54: COL0143731 | AR54: C | AS54: https://scienti.colciencias.gov.co/gruplac/jsp/visualiza/visualizagr.jsp?nro=00000000014576 | AT54: BB160:BB162 | AU54: =ROW() -> 54 | AV54: =MINA(IF(AQ54=$BA$4:$BA$401,$BD$4:$BD$401)) -> 160 | AW54: =MAXA(IF(AQ54=$BA$4:$BA$401,$BD$4:$BD$401)) -> 162 | AX54: ING | BA54: COL0116636 | BB54: Sistemas de interacción humano-máquina con actuación convencional y no convencional | BC54: =COUNTIF(BA$4:BA54,BA54) -> 5 | BD54: =ROW() -> 54 | BE54: 1
F55: No | G55: Impacto | H55: Categoria | I55: Plazo | L55: No | M55: No. Hoja | N55: Hoja | O55: Letra | P55: No | Q55: Texto | R55: Diferencia | AA55: 33 | AB55: Programa | AC55: EES | AD55: Especialización en Alta Gerencia de la Seguridad y Defensa | AE55: 46 | AK55: 66 | AL55: 50 | AM55: 1 | AN55: 50 | AO55: ING | AP55: LA TRAMOYA | AQ55: COL0126777 | AR55: C | AS55: https://scienti.colciencias.gov.co/gruplac/jsp/visualiza/visualizagr.jsp?nro=00000000012813 | AT55: BB186:BB191 | AU55: =ROW() -> 55 | AV55: =MINA(IF(AQ55=$BA$4:$BA$401,$BD$4:$BD$401)) -> 186 | AW55: =MAXA(IF(AQ55=$BA$4:$BA$401,$BD$4:$BD$401)) -> 191 | AX55: ING | BA55: COL0128047 | BB55: Derecho de la responsabilidad y de seguros | BC55: =COUNTIF(BA$4:BA55,BA55) -> 1 | BD55: =ROW() -> 55 | BE55: 1
F56: =ROW()-55 -> 1 | G56: =CLEAN(TRIM(Impactos!C8)) -> Impacto principal | H56: =Impactos!F8 -> Paz, justicia e instituciones sólidas | I56: =Impactos!#REF! ->  | L56: =COUNTIF(N$56:N56,N56) -> 1 | M56: 3 | N56: =NbHoja(M56) -> Resumen | O56: C | P56: 1 | Q56: =CLEAN(TRIM(INDIRECT($N56&"!"&$O56&(P56+R56),1))) ->  | R56: 6 | AA56: 34 | AB56: Programa | AC56: HUM | AD56: Especialización en Docencia Universitaria | AE56: 55 | AK56: 70 | AL56: 51 | AM56: 1 | AN56: 51 | AO56: ING | AP56: GREST | AQ56: COL0151789 | AR56: C | AS56: https://scienti.colciencias.gov.co/gruplac/jsp/visualiza/visualizagr.jsp?nro=00000000015386 | AT56: BB179:BB185 | AU56: =ROW() -> 56 | AV56: =MINA(IF(AQ56=$BA$4:$BA$401,$BD$4:$BD$401)) -> 179 | AW56: =MAXA(IF(AQ56=$BA$4:$BA$401,$BD$4:$BD$401)) -> 185 | AX56: ING | BA56: COL0128047 | BB56: Derecho económico y de los negocios. | BC56: =COUNTIF(BA$4:BA56,BA56) -> 2 | BD56: =ROW() -> 56 | BE56: 1
F57: =ROW()-55 -> 2 | G57: =CLEAN(TRIM(Impactos!E9)) -> Lineas de apropiación social | H57: =Impactos!D9 -> Nacional | I57: =Impactos!#REF! ->  | L57: =COUNTIF(N$56:N57,N57) -> 2 | M57: 3 | N57: =NbHoja(M57) -> Resumen | O57: =O56 -> C | P57: =P56+1 -> 2 | Q57: =CLEAN(TRIM(INDIRECT($N57&"!"&$O57&(P57+R57),1))) ->  | R57: =R56 -> 6 | AA57: 34 | AB57: Programa | AC57: HUM | AD57: Maestría en Educación | AE57: 55 | AK57: 1 | AL57: 52 | AM57: 1 | AN57: 52 | AO57: MED | AP57: CATCH | AQ57: COL0049659 | AR57: C | AS57: https://scienti.colciencias.gov.co/gruplac/jsp/visualiza/visualizagr.jsp?nro=00000000003253 | AT57: BB260:BB261 | AU57: =ROW() -> 57 | AV57: =MINA(IF(AQ57=$BA$4:$BA$401,$BD$4:$BD$401)) -> 260 | AW57: =MAXA(IF(AQ57=$BA$4:$BA$401,$BD$4:$BD$401)) -> 261 | AX57: MED | BA57: COL0067371 | BB57: Desarrollo de diagnósticos físico matemáticos de la morfofisiología celular e histológica con base en geometría fractal y euclidiana. | BC57: =COUNTIF(BA$4:BA57,BA57) -> 1 | BD57: =ROW() -> 57 | BE57: 1
F58: 3 | G58: =CLEAN(TRIM(Impactos!C13)) -> Estado actual del SRL | H58: =Impactos!F13 -> 0 | I58: =Impactos!G13 -> 0 | L58: =COUNTIF(N$56:N58,N58) -> 3 | M58: 3 | N58: Resumen | O58: =O57 -> C | P58: =P57+1 -> 3 | R58: =R57 -> 6 | AA58: 35 | AB58: Programa | AC58: HUM | AD58: Doctorado de Bioética | AE58: 55 | AK58: 6 | AL58: 53 | AM58: 1 | AN58: 53 | AO58: MED | AP58: BONE | AQ58: COL0047762 | AR58: C | AS58: https://scienti.colciencias.gov.co/gruplac/jsp/visualiza/visualizagr.jsp?nro=00000000003064 | AT58: BB110:BB111 | AU58: =ROW() -> 58 | AV58: =MINA(IF(AQ58=$BA$4:$BA$401,$BD$4:$BD$401)) -> 110 | AW58: =MAXA(IF(AQ58=$BA$4:$BA$401,$BD$4:$BD$401)) -> 111 | AX58: MED | BA58: COL0067371 | BB58: Desarrollo de diagnósticos físico matemáticos de la morfofisiología y la dinámica cardiaca fetal y de adultos | BC58: =COUNTIF(BA$4:BA58,BA58) -> 2 | BD58: =ROW() -> 58 | BE58: 1
F59: 4 | G59: =CLEAN(TRIM(Impactos!C10)) -> Tener en cuenta :Fomentar la participación ciudadana en la construcción de política pública en CTI, fortaleciendo las capacidades de la sociedad para tomar decisiones que contribuyan a la resolución de conflictos que involucran conocimientos científico-tecnológicos. | H59: =Impactos!F10 -> 0 | I59: =Impactos!G10 -> 0 | L59: =COUNTIF(N$56:N59,N59) -> 4 | M59: 3 | N59: Resumen | O59: C | P59: 4 | R59: 6 | AA59: 36 | AB59: Programa | AC59: ING | AD59: Ingeniería Ambiental | AE59: 4 | AK59: 7 | AL59: 54 | AM59: 1 | AN59: 54 | AO59: MED | AP59: Grupo de Psoriasis e Inmunodermatologia | AQ59: COL0126015 | AR59: C | AS59: https://scienti.colciencias.gov.co/gruplac/jsp/visualiza/visualizagr.jsp?nro=00000000012737 | AT59: BB218:BB219 | AU59: =ROW() -> 59 | AV59: =MINA(IF(AQ59=$BA$4:$BA$401,$BD$4:$BD$401)) -> 218 | AW59: =MAXA(IF(AQ59=$BA$4:$BA$401,$BD$4:$BD$401)) -> 219 | AX59: MED | BA59: COL0067371 | BB59: Física y matemáticas aplicadas | BC59: =COUNTIF(BA$4:BA59,BA59) -> 3 | BD59: =ROW() -> 59 | BE59: 1
F60: 5 | G60: =CLEAN(TRIM(Impactos!C14)) -> SRL Comprometido al finalizar el proyecto | H60: =Impactos!F14 -> 0 | I60: =Impactos!G14 -> 0 | L60: =COUNTIF(N$56:N60,N60) -> 5 | M60: 3 | N60: Resumen | O60: C | P60: 5 | R60: 6 | AA60: 37 | AB60: Programa | AC60: ING | AD60: Ingeniería Biomédica | AE60: 5 | AK60: 15 | AL60: 55 | AM60: 1 | AN60: 55 | AO60: MED | AP60: Grupo para el estudio de enfermedades respiratorias en niños. Respira | AQ60: COL0107771 | AR60: C | AS60: https://scienti.colciencias.gov.co/gruplac/jsp/visualiza/visualizagr.jsp?nro=00000000010842 | AT60: BB240:BB244 | AU60: =ROW() -> 60 | AV60: =MINA(IF(AQ60=$BA$4:$BA$401,$BD$4:$BD$401)) -> 240 | AW60: =MAXA(IF(AQ60=$BA$4:$BA$401,$BD$4:$BD$401)) -> 244 | AX60: MED | BA60: COL0067371 | BB60: Predicciones en infectología | BC60: =COUNTIF(BA$4:BA60,BA60) -> 4 | BD60: =ROW() -> 60 | BE60: 1
F61: 6 | G61: =CLEAN(TRIM(Impactos!C15)) ->  | H61: =Impactos!F15 -> 0 | I61: =Impactos!G15 -> 0 | L61: =COUNTIF(N$56:N61,N61) -> 6 | M61: 3 | N61: Resumen | O61: C | P61: 6 | R61: 6 | AA61: 38 | AB61: Programa | AC61: ING | AD61: Ingeniería Civil | AE61: 6 | AK61: 19 | AL61: 56 | AM61: 1 | AN61: 56 | AO61: MED | AP61: Salud y Comportamiento | AQ61: COL0033239 | AR61: NR | AS61: https://scienti.colciencias.gov.co/gruplac/jsp/visualiza/visualizagr.jsp?nro=00000000001536 | AT61: BB278:BB280 | AU61: =ROW() -> 61 | AV61: =MINA(IF(AQ61=$BA$4:$BA$401,$BD$4:$BD$401)) -> 278 | AW61: =MAXA(IF(AQ61=$BA$4:$BA$401,$BD$4:$BD$401)) -> 280 | AX61: MED | BA61: COL0067371 | BB61: Predicciones físicas y matemáticas en economía | BC61: =COUNTIF(BA$4:BA61,BA61) -> 5 | BD61: =ROW() -> 61 | BE61: 1
F62: 7 | G62: =CLEAN(TRIM(Impactos!C18)) -> Descripción de los Beneficiario(s) del impacto del proyecto | H62: =Impactos!F18 -> 0 | I62: =Impactos!G18 -> 0 | L62: =COUNTIF(N$56:N62,N62) -> 7 | M62: 3 | N62: Resumen | O62: C | P62: 7 | R62: 6 | AA62: 39 | AB62: Programa | AC62: ING | AD62: Ingeniería Industrial | AE62: 7 | AK62: 24 | AL62: 57 | AM62: 1 | AN62: 57 | AO62: MED | AP62: GRUPO NEUROCIENCIAS HMC | AQ62: COL0138698 | AR62: B | AS62: https://scienti.colciencias.gov.co/gruplac/jsp/visualiza/visualizagr.jsp?nro=00000000014072 | AT62: BB220:BB233 | AU62: =ROW() -> 62 | AV62: =MINA(IF(AQ62=$BA$4:$BA$401,$BD$4:$BD$401)) -> 220 | AW62: =MAXA(IF(AQ62=$BA$4:$BA$401,$BD$4:$BD$401)) -> 233 | AX62: MED | BA62: COL0067371 | BB62: Teorías físicas y Matemáticas aplicadas al desarrollo de diagnósticos de la dinámica y morfología cardíaca | BC62: =COUNTIF(BA$4:BA62,BA62) -> 6 | BD62: =ROW() -> 62 | BE62: 1
F63: 8 | G63: =CLEAN(TRIM(Impactos!C19)) ->  | H63: =Impactos!F19 -> 0 | I63: =Impactos!G19 -> 0 | L63: =COUNTIF(N$56:N63,N63) -> 8 | M63: 3 | N63: Resumen | O63: C | P63: 8 | R63: 6 | AA63: 40 | AB63: Programa | AC63: ING | AD63: Ingeniería en Mecatrónica | AE63: 8 | AK63: 25 | AL63: 58 | AM63: 1 | AN63: 58 | AO63: MED | AP63: Grupo de Investigacion en Dermatologia HMC | AQ63: COL0116439 | AR63: C | AS63: https://scienti.colciencias.gov.co/gruplac/jsp/visualiza/visualizagr.jsp?nro=00000000011753 | AT63: BB167:BB171 | AU63: =ROW() -> 63 | AV63: =MINA(IF(AQ63=$BA$4:$BA$401,$BD$4:$BD$401)) -> 167 | AW63: =MAXA(IF(AQ63=$BA$4:$BA$401,$BD$4:$BD$401)) -> 171 | AX63: MED | BA63: COL0067371 | BB63: teorías físicas y Matemáticas aplicadas a la prediccion de epidemias | BC63: =COUNTIF(BA$4:BA63,BA63) -> 7 | BD63: =ROW() -> 63 | BE63: 1
F64: 9 | G64: =CLEAN(TRIM(Impactos!C20)) -> Descripción del impacto esperado. | H64: =Impactos!F20 -> 0 | I64: =Impactos!G20 -> 0 | L64: =COUNTIF(N$56:N64,N64) -> 9 | M64: 3 | N64: Resumen | O64: C | P64: 9 | R64: 6 | AA64: 41 | AB64: Programa | AC64: ING | AD64: Ingeniería en Multimedia | AE64: 9 | AK64: 35 | AL64: 59 | AM64: 1 | AN64: 59 | AO64: MED | AP64: Células Stem Adultas | AQ64: COL0050982 | AR64: C | AS64: https://scienti.colciencias.gov.co/gruplac/jsp/visualiza/visualizagr.jsp?nro=00000000005735 | AT64: BB46:BB49 | AU64: =ROW() -> 64 | AV64: =MINA(IF(AQ64=$BA$4:$BA$401,$BD$4:$BD$401)) -> 46 | AW64: =MAXA(IF(AQ64=$BA$4:$BA$401,$BD$4:$BD$401)) -> 49 | AX64: MED | BA64: COL0067371 | BB64: teorías físicas y Matemáticas aplicadas al de diagnósticos de Morfología y fisiología celular | BC64: =COUNTIF(BA$4:BA64,BA64) -> 8 | BD64: =ROW() -> 64 | BE64: 1
F65: 10 | G65: =CLEAN(TRIM(Impactos!C21)) ->  | H65: =Impactos!F21 -> 0 | I65: =Impactos!G21 -> 0 | L65: =COUNTIF(N$56:N65,N65) -> 10 | M65: 3 | N65: Resumen | O65: =O64 -> C | P65: 10 | R65: =R64 -> 6 | AA65: 42 | AB65: Programa | AC65: ING | AD65: Ingenieria en Telecomunicaciones | AE65: 10 | AK65: 36 | AL65: 60 | AM65: 1 | AN65: 60 | AO65: MED | AP65: Grupo de Salud Oral y Cirugia Maxilofacial | AQ65: COL0129689 | AR65: C | AS65: https://scienti.colciencias.gov.co/gruplac/jsp/visualiza/visualizagr.jsp?nro=00000000013172 | AT65: BB89:BB91 | AU65: =ROW() -> 65 | AV65: =MINA(IF(AQ65=$BA$4:$BA$401,$BD$4:$BD$401)) -> 89 | AW65: =MAXA(IF(AQ65=$BA$4:$BA$401,$BD$4:$BD$401)) -> 91 | AX65: MED | BA65: COL0067371 | BB65: teorías físicas y Matemáticas aplicadas al desarrollo de predicciones en inmunología y biología molecular para el desarrollo de vacunas | BC65: =COUNTIF(BA$4:BA65,BA65) -> 9 | BD65: =ROW() -> 65 | BE65: 1
F66: 11 | G66: =CLEAN(TRIM(Impactos!C16)) -> Evolución del impacto alcanzado como resultado de proyectos anteriores | H66: =Impactos!F16 -> 0 | I66: =Impactos!G16 -> 0 | L66: =COUNTIF(N$56:N66,N66) -> 11 | M66: 3 | N66: Resumen | O66: C | P66: 11 | R66: 6 | AA66: 43 | AB66: Programa | AC66: ING | AD66: Tecnología en Electrónica y Comunicaciones | AE66: 11 | AK66: 45 | AL66: 61 | AM66: 1 | AN66: 61 | AO66: MED | AP66: Kokhlias. | AQ66: COL0125134 | AR66: C | AS66: https://scienti.colciencias.gov.co/gruplac/jsp/visualiza/visualizagr.jsp?nro=00000000012649 | AT66: BB103:BB109 | AU66: =ROW() -> 66 | AV66: =MINA(IF(AQ66=$BA$4:$BA$401,$BD$4:$BD$401)) -> 103 | AW66: =MAXA(IF(AQ66=$BA$4:$BA$401,$BD$4:$BD$401)) -> 109 | AX66: MED | BA66: COL0117052 | BB66: Ambiental | BC66: =COUNTIF(BA$4:BA66,BA66) -> 1 | BD66: =ROW() -> 66 | BE66: 1
F67: 12 | G67: =CLEAN(TRIM(Impactos!C17)) ->  | H67: =Impactos!F17 -> 0 | I67: =Impactos!G17 -> 0 | L67: =COUNTIF(N$56:N67,N67) -> 12 | M67: 3 | N67: Resumen | O67: C | P67: 12 | R67: 6 | AA67: 44 | AB67: Programa | AC67: ING | AD67: Maestría en Ingeniería Mecatrónica | AE67: 34 | AK67: 46 | AL67: 62 | AM67: 1 | AN67: 62 | AO67: MED | AP67: Grupo de Rehabilitacion HOMIC-UMNG | AQ67: COL0120281 | AR67: NR | AS67: https://scienti.colciencias.gov.co/gruplac/jsp/visualiza/visualizagr.jsp?nro=00000000012152 | AT67: BB281:BB286 | AU67: =ROW() -> 67 | AV67: =MINA(IF(AQ67=$BA$4:$BA$401,$BD$4:$BD$401)) -> 281 | AW67: =MAXA(IF(AQ67=$BA$4:$BA$401,$BD$4:$BD$401)) -> 286 | AX67: MED | BA67: COL0117052 | BB67: Arte y Tecnología | BC67: =COUNTIF(BA$4:BA67,BA67) -> 2 | BD67: =ROW() -> 67 | BE67: 1
F68: 13 | G68: =CLEAN(TRIM(Impactos!C22)) ->  | H68: =Impactos!F22 -> 0 | I68: =Impactos!G22 -> 0 | L68: =COUNTIF(N$56:N68,N68) -> 13 | M68: 3 | N68: Resumen | O68: C | P68: 13 | R68: 6 | AA68: 45 | AB68: Programa | AC68: ING | AD68: Maestría en Ingeniería Civil | AE68: 35 | AK68: 48 | AL68: 63 | AM68: =COUNTIF($AN$4:$AN$806,AL68) -> 1 | AN68: 63 | AO68: MED | AP68: Grupo de Investigacion en Urologia HMC | AQ68: COL0116538 | AR68: C | AS68: https://scienti.colciencias.gov.co/gruplac/jsp/visualiza/visualizagr.jsp?nro=00000000011763 | AT68: BB234:BB239 | AU68: =ROW() -> 68 | AV68: =MINA(IF(AQ68=$BA$4:$BA$401,$BD$4:$BD$401)) -> 234 | AW68: =MAXA(IF(AQ68=$BA$4:$BA$401,$BD$4:$BD$401)) -> 239 | AX68: MED | BA68: COL0117052 | BB68: Energía | BC68: =COUNTIF(BA$4:BA68,BA68) -> 3 | BD68: =ROW() -> 68 | BE68: =COUNTIF($AQ$3:$AQ$83,BA68) -> 1
F69: 14 | G69: =CLEAN(TRIM(Impactos!C23)) ->  | H69: =Impactos!F23 -> 0 | I69: =Impactos!G23 -> 0 | L69: =COUNTIF(N$56:N69,N69) -> 14 | M69: 3 | N69: Resumen | O69: C | P69: 14 | R69: 6 | AA69: 46 | AB69: Programa | AC69: ING | AD69: Maestría en Logística Integral | AE69: 36 | AK69: 51 | AL69: 64 | AM69: 1 | AN69: 64 | AO69: MED | AP69: Epidemiología molecular de enfermedades endocrinas | AQ69: COL0045848 | AR69: NR | AS69: https://scienti.colciencias.gov.co/gruplac/jsp/visualiza/visualizagr.jsp?nro=00000000002874 | AT69: BB287:BB289 | AU69: =ROW() -> 69 | AV69: =MINA(IF(AQ69=$BA$4:$BA$401,$BD$4:$BD$401)) -> 287 | AW69: =MAXA(IF(AQ69=$BA$4:$BA$401,$BD$4:$BD$401)) -> 289 | AX69: MED | BA69: COL0117052 | BB69: Gestión e Innovación | BC69: =COUNTIF(BA$4:BA69,BA69) -> 4 | BD69: =ROW() -> 69 | BE69: 1
F70: 15 | G70: =CLEAN(TRIM(Impactos!C24)) ->  | H70: =Impactos!F24 -> 0 | I70: =Impactos!G24 -> 0 | L70: =COUNTIF(N$56:N70,N70) -> 15 | M70: 3 | N70: Resumen | O70: C | P70: 15 | Q70: - | R70: 6 | AA70: 47 | AB70: Programa | AC70: ING | AD70: Maestría en Gerencia de Proyectos | AE70: 37 | AK70: 55 | AL70: 65 | AM70: 1 | AN70: 65 | AO70: MED | AP70: Insight | AQ70: COL0067371 | AR70: C | AS70: https://scienti.colciencias.gov.co/gruplac/jsp/visualiza/visualizagr.jsp?nro=00000000006698 | AT70: BB57:BB65 | AU70: =ROW() -> 70 | AV70: =MINA(IF(AQ70=$BA$4:$BA$401,$BD$4:$BD$401)) -> 57 | AW70: =MAXA(IF(AQ70=$BA$4:$BA$401,$BD$4:$BD$401)) -> 65 | AX70: MED | BA70: COL0117052 | BB70: Materiales | BC70: =COUNTIF(BA$4:BA70,BA70) -> 5 | BD70: =ROW() -> 70 | BE70: 1
F71: 16 | G71: =CLEAN(TRIM(Impactos!C25)) ->  | H71: =Impactos!F25 -> 0 | I71: =Impactos!G25 -> 0 | L71: =COUNTIF(N$56:N71,N71) -> 16 | M71: 3 | N71: Resumen | O71: C | P71: 16 | R71: 6 | AA71: 47 | AB71: Programa | AC71: ING | AD71: Maestría en Ingeniería Mecatrónica | AE71: x | AK71: 59 | AL71: 66 | AM71: 1 | AN71: 66 | AO71: MED | AP71: EDUMECIS | AQ71: COL0152463 | AR71: R | AS71: https://scienti.colciencias.gov.co/gruplac/jsp/visualiza/visualizagr.jsp?nro=00000000015421 | AT71: =$AT$2&AV71&":"&$AT$2&AW71 -> BB85:BB88 | AU71: =ROW() -> 71 | AV71: =MINA(IF(AQ71=$BA$4:$BA$401,$BD$4:$BD$401)) -> 85 | AW71: =MAXA(IF(AQ71=$BA$4:$BA$401,$BD$4:$BD$401)) -> 88 | AX71: =AO71 -> MED | BA71: COL0152319 | BB71: Epidemiología Clínica | BC71: =COUNTIF(BA$4:BA71,BA71) -> 1 | BD71: =ROW() -> 71 | BE71: 1
F72: 17 | G72: =CLEAN(TRIM(Impactos!C26)) ->  | H72: =Impactos!F26 -> 0 | I72: =Impactos!G26 -> 0 | L72: =COUNTIF(N$56:N72,N72) -> 17 | M72: 3 | N72: Resumen | O72: C | P72: 17 | Q72: Planteamiento y justificación de la propuesta. | R72: 6 | AA72: 48 | AB72: Programa | AC72: ING | AD72: Especialización en Geomática | AE72: 38 | AK72: 62 | AL72: 67 | AM72: 1 | AN72: 67 | AO72: MED | AP72: BioGenEtica & BioDerecho | AQ72: COL0096032 | AR72: C | AS72: https://scienti.colciencias.gov.co/gruplac/jsp/visualiza/visualizagr.jsp?nro=00000000009651 | AT72: BB253:BB256 | AU72: =ROW() -> 72 | AV72: =MINA(IF(AQ72=$BA$4:$BA$401,$BD$4:$BD$401)) -> 253 | AW72: =MAXA(IF(AQ72=$BA$4:$BA$401,$BD$4:$BD$401)) -> 256 | AX72: MED | BA72: COL0152319 | BB72: Epidemiología General. | BC72: =COUNTIF(BA$4:BA72,BA72) -> 2 | BD72: =ROW() -> 72 | BE72: 1
F73: 18 | G73: =CLEAN(TRIM(Impactos!C27)) ->  | H73: =Impactos!F27 -> 0 | I73: =Impactos!G27 -> 0 | L73: =COUNTIF(N$56:N73,N73) -> 18 | M73: 3 | N73: Resumen | O73: C | P73: 18 | R73: 6 | AA73: 49 | AB73: Programa | AC73: ING | AD73: Especialización en Gerencia de la Calidad | AE73: 39 | AK73: 69 | AL73: 70 | AM73: 1 | AN73: 68 | AO73: MED | AP73: GAFRED | AQ73: COL0149359 | AR73: R | AS73: https://scienti.colciencias.gov.co/gruplac/jsp/visualiza/visualizagr.jsp?nro=00000000015141 | AT73: BB250:BB252 | AU73: =ROW() -> 73 | AV73: =MINA(IF(AQ73=$BA$4:$BA$401,$BD$4:$BD$401)) -> 250 | AW73: =MAXA(IF(AQ73=$BA$4:$BA$401,$BD$4:$BD$401)) -> 252 | AX73: MED | BA73: COL0152319 | BB73: Formación del Recurso Humano en Salud en Epidemiología y Salud Colectiva | BC73: =COUNTIF(BA$4:BA73,BA73) -> 3 | BD73: =ROW() -> 73 | BE73: 1
F74: 19 | G74: =CLEAN(TRIM(Impactos!C28)) ->  | H74: =Impactos!F28 -> 0 | I74: =Impactos!G28 -> 0 | L74: =COUNTIF(N$56:N74,N74) -> 19 | M74: 3 | N74: Resumen | O74: C | P74: 19 | R74: 6 | AA74: 50 | AB74: Programa | AC74: ING | AD74: Especialización en Gerencia en Logística Integral | AE74: 40 | AK74: 71 | AL74: 71 | AM74: 1 | AN74: 69 | AO74: MED | AP74: Grupo de inmunología Clínica Aplicada (GICA) | AQ74: COL0152472 | AR74: C | AS74: https://scienti.colciencias.gov.co/gruplac/jsp/visualiza/visualizagr.jsp?nro=00000000015414 | AT74: BB127:BB128 | AU74: =ROW() -> 74 | AV74: =MINA(IF(AQ74=$BA$4:$BA$401,$BD$4:$BD$401)) -> 127 | AW74: =MAXA(IF(AQ74=$BA$4:$BA$401,$BD$4:$BD$401)) -> 128 | AX74: MED | BA74: COL0152319 | BB74: Las Tecnologías de la Información y de la comunicación en Epidemiología y Salud Colectiva | BC74: =COUNTIF(BA$4:BA74,BA74) -> 4 | BD74: =ROW() -> 74 | BE74: 1
F75: 20 | G75: =CLEAN(TRIM(Impactos!C29)) ->  | H75: =Impactos!F29 -> 0 | I75: =Impactos!G29 -> 0 | L75: =COUNTIF(N$56:N75,N75) -> 20 | M75: 3 | N75: Resumen | O75: C | P75: 20 | R75: 6 | AA75: 51 | AB75: Programa | AC75: ING | AD75: Especialización en Gerencia Integral de Proyectos | AE75: 41 | AK75: 70 | AL75: 70 | AM75: 1 | AN75: 70 | AO75: MED | AP75: Epidemiología y Salud Colectiva | AQ75: COL0152319 | AR75: C | AS75: https://scienti.colciencias.gov.co/gruplac/jsp/visualiza/visualizagr.jsp?nro=00000000015438 | AT75: =$AT$2&AV75&":"&$AT$2&AW75 -> BB71:BB75 | AU75: =ROW() -> 75 | AV75: =MINA(IF(AQ75=$BA$4:$BA$401,$BD$4:$BD$401)) -> 71 | AW75: =MAXA(IF(AQ75=$BA$4:$BA$401,$BD$4:$BD$401)) -> 75 | AX75: =AO75 -> MED | BA75: COL0152319 | BB75: Medicina tradicional complementaria. | BC75: =COUNTIF(BA$4:BA75,BA75) -> 5 | BD75: =ROW() -> 75 | BE75: 1
L76: =COUNTIF(N$56:N76,N76) -> 21 | M76: 3 | N76: Resumen | O76: C | P76: 21 | R76: 6 | AA76: 52 | AB76: Programa | AC76: ING | AD76: Especialización en Ingeniería de Pavimentos | AE76: 42 | AK76: 73 | AL76: 73 | AM76: 1 | AN76: 73 | AO76: MED | AP76: Grupo de investigaciones sobre agentes radiológicos, biológicos y químicos | AQ76: COL0191078 | AR76: NR | AS76: https://scienti.colciencias.gov.co/gruplac/jsp/visualiza/visualizagr.jsp?nro=00000000019309 | AT76: BB295:BB296 | AU76: =ROW() -> 76 | AV76: =MINA(IF(AQ76=$BA$4:$BA$401,$BD$4:$BD$401)) -> 295 | AW76: =MAXA(IF(AQ76=$BA$4:$BA$401,$BD$4:$BD$401)) -> 296 | AX76: MED | BA76: COL0028687 | BB76: Fitoplasmas | BC76: =COUNTIF(BA$4:BA76,BA76) -> 1 | BD76: =ROW() -> 76 | BE76: 1
L77: =COUNTIF(N$56:N77,N77) -> 22 | M77: 3 | N77: Resumen | O77: C | P77: 22 | R77: 6 | AA77: 53 | AB77: Programa | AC77: ING | AD77: Especialización en Planeación Ambiental y Manejo Integral de los Recursos Naturales | AE77: 43 | BA77: COL0028687 | BB77: Virus | BC77: =COUNTIF(BA$4:BA77,BA77) -> 2 | BD77: =ROW() -> 77 | BE77: 1
C78: No | D78: Nombre Inst | E78: Grupo | F78: Clasif | G78: Investig | H78: Presupuesto | I78: Alcance | J78: Link | L78: =COUNTIF(N$56:N78,N78) -> 23 | M78: 3 | N78: Resumen | O78: C | P78: 23 | R78: 6 | AA78: 53 | AB78: Programa | AC78: ING | AD78: Doctorado en Ciencias Aplicadas | AE78: 43 | BA78: COL0068762 | BB78: Ingeniería Sostenible | BC78: =COUNTIF(BA$4:BA78,BA78) -> 1 | BD78: =ROW() -> 78 | BE78: 1
C79: 1 | D79: =General!C32 -> 0 | E79: =General!C33 -> 0 | F79: =General!I33 -> NA | G79: =General!C34 -> 0 | H79: =General!I34 -> 0 | I79: =General!G35 -> 0 | J79: =General!C36 -> 0 | L79: =COUNTIF(N$56:N79,N79) -> 24 | M79: 3 | N79: Resumen | O79: =O78 -> C | P79: =P78+1 -> 24 | R79: =R78 -> 6 | AA79: 54 | AB79: Programa | AC79: MED | AD79: Medicina | AE79: 14 | AP79: Grupo | AQ79: No | BA79: COL0068762 | BB79: Inteligencia artificial y procesamiento de señales | BC79: =COUNTIF(BA$4:BA79,BA79) -> 2 | BD79: =ROW() -> 79 | BE79: 1
C80: 2 | D80: =General!C38 -> 0 | E80: =General!C39 -> 0 | F80: =General!I39 -> 0 | G80: =General!C40 -> 0 | H80: =General!I40 -> 0 | I80: =General!G41 -> 0 | J80: =General!C42 -> 0 | L80: =COUNTIF(N$56:N80,N80) -> 25 | M80: 3 | N80: Resumen | O80: C | P80: 25 | R80: 6 | AA80: 55 | AB80: Programa | AC80: MED | AD80: Tecnología en Atención Prehospitalaria | AE80: 15 | AP80: ACCEDER | AQ80: 44 | BA80: COL0068762 | BB80: Tecnologías de la información y las comunicaciones (TIC) | BC80: =COUNTIF(BA$4:BA80,BA80) -> 3 | BD80: =ROW() -> 80 | BE80: 1
C81: 3 | D81: =General!C44 -> 0 | E81: =General!C45 -> 0 | F81: =General!I45 -> 0 | G81: =General!C46 -> 0 | H81: =General!I46 -> 0 | I81: =General!G47 -> 0 | J81: =General!C48 -> 0 | L81: =COUNTIF(N$56:N81,N81) -> 26 | M81: 3 | N81: Resumen | O81: C | P81: 26 | R81: 6 | AA81: 1 | AB81: Tipo Proyecto | AC81: PAZ | AD81: Investigación en Paz y Pos-acuerdo. SUE | AE81: =AC81 -> PAZ | AP81: Agrobiología de especies vegetales promisorias de clima frío | AQ81: 10 | BA81: COL0031824 | BB81: Bioética Global y Complejidad | BC81: =COUNTIF(BA$4:BA81,BA81) -> 1 | BD81: =ROW() -> 81 | BE81: 1
L82: =COUNTIF(N$56:N82,N82) -> 27 | M82: 3 | N82: Resumen | O82: =O81 -> C | P82: =P81+1 -> 27 | R82: =R81 -> 6 | AB82: Tipo Proyecto | AC82: INV | AD82: Investigación Científica | AE82: INV | AP82: BioethicsGroup | AQ82: 34 | BA82: COL0031824 | BB82: Bioética Médica y salud pública | BC82: =COUNTIF(BA$4:BA82,BA82) -> 2 | BD82: =ROW() -> 82 | BE82: 1
L83: =COUNTIF(N$56:N83,N83) -> 28 | M83: 3 | N83: Resumen | O83: C | P83: 28 | R83: 6 | AA83: 2 | AB83: Tipo Proyecto | AC83: IMP | AD83: Alto Impacto | AE83: IMP | AP83: BioGenEtica & BioDerecho | AQ83: 67 | BA83: COL0031824 | BB83: Bioética, Biopolítica y Biojurídica | BC83: =COUNTIF(BA$4:BA83,BA83) -> 3 | BD83: =ROW() -> 83 | BE83: 1
L84: =COUNTIF(N$56:N84,N84) -> 29 | M84: 3 | N84: Resumen | O84: C | P84: 29 | R84: 6 | AA84: 1 | AB84: Función | AC84: Investigador Principal | AD84: Investigador Principal o lider del proyecto | AE84: IP | AP84: BONE | AQ84: 53 | BA84: COL0031824 | BB84: Bioética, educación y cultura | BC84: =COUNTIF(BA$4:BA84,BA84) -> 4 | BD84: =ROW() -> 84 | BE84: 1
L85: =COUNTIF(N$56:N85,N85) -> 1 | M85: 4 | N85: Estado_del_arte | O85: =O84 -> C | P85: =P84+1 -> 30 | Q85: Este es un titulo Inicial. | R85: -23 | AA85: 2 | AB85: Función | AC85: Coinvestigador | AD85: Investigador que apoya al lider del proyecto | AE85: CO | AP85: CATCH | AQ85: 52 | BA85: COL0152463 | BB85: Currículo y evaluación | BC85: =COUNTIF(BA$4:BA85,BA85) -> 1 | BD85: =ROW() -> 85 | BE85: 1
L86: =COUNTIF(N$56:N86,N86) -> 2 | M86: 4 | N86: Estado_del_arte | O86: =O85 -> C | P86: =P85+1 -> 31 | R86: -23 | AA86: 3 | AB86: Función | AC86: Investigador UNAL | AD86: Investigador de la Universidad Nacional de Colombia | AE86: UNAL | AP86: Células Stem Adultas | AQ86: 59 | BA86: COL0152463 | BB86: Docencia y pedagogía | BC86: =COUNTIF(BA$4:BA86,BA86) -> 2 | BD86: =ROW() -> 86 | BE86: 1
L87: =COUNTIF(N$56:N87,N87) -> 3 | M87: 4 | N87: Estado_del_arte | O87: C | P87: 32 | R87: -23 | AA87: 4 | AB87: Función | AC87: Investigador UDFJC | AD87: Investigador de la Universidad Distrita Francisco José de Caldas | AE87: UDFJC | AP87: Cultura y Desarrollo Humano | AQ87: 33 | BA87: COL0152463 | BB87: Investigación clinica | BC87: =COUNTIF(BA$4:BA87,BA87) -> 3 | BD87: =ROW() -> 87 | BE87: 1
L88: =COUNTIF(N$56:N88,N88) -> 4 | M88: 4 | N88: Estado_del_arte | O88: C | P88: 33 | R88: -23 | AA88: 5 | AB88: Función | AC88: Investigador UPN | AD88: Investigador de la Universidad Pedagógica Nacional | AE88: UPN | AP88: DAVINCI | AQ88: 41 | BA88: COL0152463 | BB88: Proyección Social y contexto de formación en Salud Pública | BC88: =COUNTIF(BA$4:BA88,BA88) -> 4 | BD88: =ROW() -> 88 | BE88: 1
L89: =COUNTIF(N$56:N89,N89) -> 5 | M89: 4 | N89: Estado_del_arte | O89: C | P89: 34 | R89: -23 | AA89: 6 | AB89: Función | AC89: Investigador CMC | AD89: Investigador de la Universidad Colegio Mayor de Cundinamarca | AE89: CMC | AP89: Desarrollo e integración de estrategias alternativas para la protección de cultivos de importancia económica, con énfasis en control biológico. | AQ89: 4 | BA89: COL0129689 | BB89: Cirugía Ortognática y Distracción Osteogénica | BC89: =COUNTIF(BA$4:BA89,BA89) -> 1 | BD89: =ROW() -> 89 | BE89: 1
L90: =COUNTIF(N$56:N90,N90) -> 6 | M90: 4 | N90: Estado_del_arte | O90: C | P90: 35 | R90: -23 | AA90: 7 | AB90: Función | AC90: Auxiliar de Investigación. | AD90: Estudiante apoya el proyecto | AE90: EST | AP90: DIVERSITAS | AQ90: 71 | BA90: COL0129689 | BB90: Implantología y Cirugía Reconstructiva | BC90: =COUNTIF(BA$4:BA90,BA90) -> 2 | BD90: =ROW() -> 90 | BE90: 1
L91: =COUNTIF(N$56:N91,N91) -> 7 | M91: 4 | N91: Estado_del_arte | O91: C | P91: 36 | R91: -23 | AA91: 8 | AB91: Función | AC91: Asesor | AD91: Asesor externo no vinculado a ninguna entidad | AE91: AR | AP91: ECMU (Evaluacion en Competencias y Matemáticas Universitarias) | AQ91: 13 | BA91: COL0129689 | BB91: Infecciones, Patología y Cirugía Dentoalveolar | BC91: =COUNTIF(BA$4:BA91,BA91) -> 3 | BD91: =ROW() -> 91 | BE91: 1
L92: =COUNTIF(N$56:N92,N92) -> 8 | M92: 4 | N92: Estado_del_arte | O92: C | P92: 37 | R92: -23 | AA92: 1 | AB92: Vinculo | AC92: Doc. Carrera TC | AD92: Docente de Carrera Tiempo Completo | AE92: DTC | AP92: EDUMECIS | AQ92: 66 | BA92: COL0067504 | BB92: Gestión Tecnológica | BC92: =COUNTIF(BA$4:BA92,BA92) -> 1 | BD92: =ROW() -> 92 | BE92: 1
L93: =COUNTIF(N$56:N93,N93) -> 9 | M93: 4 | N93: Estado_del_arte | O93: C | P93: 38 | R93: -23 | AA93: 2 | AB93: Vinculo | AC93: Doc. Carrera MT | AD93: Docente de Carrera Medio Tiempo | AE93: DMT | AP93: Energia alternativa, Centro Multidisciplinario de Investigación | AQ93: 48 | BA93: COL0067504 | BB93: Gestión del conocimiento | BC93: =COUNTIF(BA$4:BA93,BA93) -> 2 | BD93: =ROW() -> 93 | BE93: 1
L94: =COUNTIF(N$56:N94,N94) -> 10 | M94: 4 | N94: Estado_del_arte | O94: =O93 -> C | P94: =P93+1 -> 39 | R94: -23 | AA94: 3 | AB94: Vinculo | AC94: Doc. Ocasional | AD94: Docente de Ocasional | AE94: OCA | AP94: Epidemiología molecular de enfermedades endocrinas | AQ94: 64 | BA94: COL0067504 | BB94: Los Estilos de enseñanza y Aprendizaje | BC94: =COUNTIF(BA$4:BA94,BA94) -> 3 | BD94: =ROW() -> 94 | BE94: 1
L95: =COUNTIF(N$56:N95,N95) -> 11 | M95: 4 | N95: Estado_del_arte | O95: C | P95: 40 | R95: -23 | AA95: 4 | AB95: Vinculo | AC95: OPS - Prestación Servicios | AD95: Asistente de Investigacion contratado OPS | AE95: OPS | AP95: Epidemiología y Salud Colectiva | AQ95: 70 | BA95: COL0067504 | BB95: Mercadeo Cuántico | BC95: =COUNTIF(BA$4:BA95,BA95) -> 4 | BD95: =ROW() -> 95 | BE95: 1
L96: =COUNTIF(N$56:N96,N96) -> 12 | M96: 4 | N96: Estado_del_arte | O96: C | P96: 41 | R96: -23 | AA96: 5 | AB96: Vinculo | AC96: Estudiante | AD96: Estudiante activo de pregrado o postgrado | AE96: EST | AP96: Estadística, Control y Optimización | AQ96: 7 | BA96: COL0067504 | BB96: Mineria Web | BC96: =COUNTIF(BA$4:BA96,BA96) -> 5 | BD96: =ROW() -> 96 | BE96: 1
L97: =COUNTIF(N$56:N97,N97) -> 13 | M97: 4 | N97: Estado_del_arte | O97: C | P97: 42 | R97: -23 | AA97: 6 | AB97: Vinculo | AC97: Externo a la UMNG | AD97: Docentes Investigadores externos sin vinculo lavoral al U. | AE97: EXT | AP97: Estructuras y sísmica | AQ97: 42 | BA97: COL0067504 | BB97: Salud Pública, Bioética e Ingeniería | BC97: =COUNTIF(BA$4:BA97,BA97) -> 6 | BD97: =ROW() -> 97 | BE97: 1
L98: =COUNTIF(N$56:N98,N98) -> 14 | M98: 4 | N98: Estado_del_arte | O98: C | P98: 43 | R98: -23 | AA98: 1 | AB98: NBC | AC98: 11 | AD98: Programas y certificaciones básicas | AE98: 11 | AP98: Estudios Internacionales y Políticos | AQ98: 29 | BA98: COL0005439 | BB98: Modelación numérica | BC98: =COUNTIF(BA$4:BA98,BA98) -> 1 | BD98: =ROW() -> 98 | BE98: 1
L99: =COUNTIF(N$56:N99,N99) -> 15 | M99: 4 | N99: Estado_del_arte | O99: C | P99: 44 | R99: -23 | AA99: 2 | AB99: NBC | AC99: 21 | AD99: Alfabetización y aritmética elemental | AE99: 21 | AP99: Fitopatologia molecular | AQ99: 6 | BA99: COL0005439 | BB99: Ordenación del territorio | BC99: =COUNTIF(BA$4:BA99,BA99) -> 2 | BD99: =ROW() -> 99 | BE99: 1
L100: =COUNTIF(N$56:N100,N100) -> 16 | M100: 4 | N100: Estado_del_arte | O100: C | P100: 45 | R100: -23 | AA100: 3 | AB100: NBC | AC100: 31 | AD100: Competencias personales y desarrollo | AE100: 31 | AP100: Fitoplasmas y Virus | AQ100: 1 | BA100: COL0005439 | BB100: Pavimentos | BC100: =COUNTIF(BA$4:BA100,BA100) -> 3 | BD100: =ROW() -> 100 | BE100: 1
L101: =COUNTIF(N$56:N101,N101) -> 17 | M101: 4 | N101: Estado_del_arte | O101: C | P101: 46 | R101: -23 | AA101: 4 | AB101: NBC | AC101: 111 | AD101: Ciencias de la educación | AE101: 111 | AP101: GAFRED | AQ101: 68 | BA101: COL0005439 | BB101: Suelos | BC101: =COUNTIF(BA$4:BA101,BA101) -> 4 | BD101: =ROW() -> 101 | BE101: 1
L102: =COUNTIF(N$56:N102,N102) -> 18 | M102: 4 | N102: Estado_del_arte | O102: C | P102: 47 | R102: -23 | AA102: 5 | AB102: NBC | AC102: 112 | AD102: Formación para docentes de educación pre-primaría | AE102: 112 | AP102: GAV | AQ102: 47 | BA102: COL0005439 | BB102: Transportes | BC102: =COUNTIF(BA$4:BA102,BA102) -> 5 | BD102: =ROW() -> 102 | BE102: 1
L103: =COUNTIF(N$56:N103,N103) -> 19 | M103: 4 | N103: Estado_del_arte | O103: C | P103: 48 | R103: -23 | AA103: 6 | AB103: NBC | AC103: 113 | AD103: Formación para docentes sin asignatura de especialización | AE103: 113 | AP103: GECS (Grupo de Investigación en Contabilidad y Sociedad) | AQ103: 28 | BA103: COL0125134 | BB103: Ayudas Auditivas Implantables | BC103: =COUNTIF(BA$4:BA103,BA103) -> 1 | BD103: =ROW() -> 103 | BE103: 1
L104: =COUNTIF(N$56:N104,N104) -> 20 | M104: 4 | N104: Estado_del_arte | O104: C | P104: 49 | R104: -23 | AA104: 7 | AB104: NBC | AC104: 114 | AD104: Formación para docentes con asignatura de especialización | AE104: 114 | AP104: GEOTECNIA | AQ104: 36 | BA104: COL0125134 | BB104: Base de cráneo | BC104: =COUNTIF(BA$4:BA104,BA104) -> 2 | BD104: =ROW() -> 104 | BE104: 1
L105: =COUNTIF(N$56:N105,N105) -> 21 | M105: 4 | N105: Estado_del_arte | O105: C | P105: 50 | R105: -23 | AA105: 8 | AB105: NBC | AC105: 211 | AD105: Técnicas audiovisuales y producción para medios de comunicación | AE105: 211 | AP105: GIDAM | AQ105: 40 | BA105: COL0125134 | BB105: Cáncer Laríngeo | BC105: =COUNTIF(BA$4:BA105,BA105) -> 3 | BD105: =ROW() -> 105 | BE105: 1
L106: =COUNTIF(N$56:N106,N106) -> 22 | M106: 4 | N106: Estado_del_arte | O106: C | P106: 51 | R106: -23 | AA106: 9 | AB106: NBC | AC106: 212 | AD106: Diseño industrial, de modas e interiores | AE106: 212 | AP106: GI-iTEC - Grupo de Investigación e innovación Tecnológica en Electrónica y Comunicaciones | AQ106: 49 | BA106: COL0125134 | BB106: Enfermedad de Meniere | BC106: =COUNTIF(BA$4:BA106,BA106) -> 4 | BD106: =ROW() -> 106 | BE106: 1
L107: =COUNTIF(N$56:N107,N107) -> 23 | M107: 4 | N107: Estado_del_arte | O107: C | P107: 52 | R107: -23 | AA107: 10 | AB107: NBC | AC107: 213 | AD107: Bellas artes | AE107: 213 | AP107: GISSIC: Grupo de Investigacion en Seguridad y Sistemas de Comunicaciones | AQ107: 46 | BA107: COL0125134 | BB107: Oído Crónico | BC107: =COUNTIF(BA$4:BA107,BA107) -> 5 | BD107: =ROW() -> 107 | BE107: 1
L108: =COUNTIF(N$56:N108,N108) -> 24 | M108: 4 | N108: Estado_del_arte | O108: C | P108: 53 | R108: -23 | AA108: 11 | AB108: NBC | AC108: 214 | AD108: Artesanías | AE108: 214 | AP108: GREST | AQ108: 51 | BA108: COL0125134 | BB108: Rinosinusitis Crónica | BC108: =COUNTIF(BA$4:BA108,BA108) -> 6 | BD108: =ROW() -> 108 | BE108: 1
L109: =COUNTIF(N$56:N109,N109) -> 25 | M109: 4 | N109: Estado_del_arte | O109: C | P109: 54 | R109: -23 | AA109: 12 | AB109: NBC | AC109: 215 | AD109: Música y artes escénicas | AE109: 215 | AP109: Grupo de Derecho Privado | AQ109: 16 | BA109: COL0125134 | BB109: Trauma de guerra en Otorrinolaringología | BC109: =COUNTIF(BA$4:BA109,BA109) -> 7 | BD109: =ROW() -> 109 | BE109: 1
L110: =COUNTIF(N$56:N110,N110) -> 26 | M110: 4 | N110: Estado_del_arte | O110: C | P110: 55 | R110: -23 | AA110: 13 | AB110: NBC | AC110: 221 | AD110: Religión y Teología | AE110: 221 | AP110: Grupo de derecho público | AQ110: 15 | BA110: COL0047762 | BB110: Desarrollo de modelos de ingeniería de tejido humano | BC110: =COUNTIF(BA$4:BA110,BA110) -> 1 | BD110: =ROW() -> 110 | BE110: 1
L111: =COUNTIF(N$56:N111,N111) -> 27 | M111: 4 | N111: Estado_del_arte | O111: C | P111: 56 | R111: -23 | AA111: 14 | AB111: NBC | AC111: 222 | AD111: Historia y arqueología | AE111: 222 | AP111: Grupo de Docencia e Investigación en Física | AQ111: 14 | BA111: COL0047762 | BB111: Metabolismo Oseo - Bone Metabolism | BC111: =COUNTIF(BA$4:BA111,BA111) -> 2 | BD111: =ROW() -> 111 | BE111: 1
L112: =COUNTIF(N$56:N112,N112) -> 28 | M112: 4 | N112: Estado_del_arte | O112: C | P112: 57 | R112: -23 | AA112: 15 | AB112: NBC | AC112: 223 | AD112: Filosofía y ética | AE112: 223 | AP112: Grupo de Ecotoxicología, Evolución, Medio ambiente y conservación (E = mc2) | AQ112: 8 | BA112: COL0028918 | BB112: Constitución, Derecho Público y Estado | BC112: =COUNTIF(BA$4:BA112,BA112) -> 1 | BD112: =ROW() -> 112 | BE112: 1
L113: =COUNTIF(N$56:N113,N113) -> 29 | M113: 4 | N113: Estado_del_arte | O113: C | P113: 58 | R113: -23 | AA113: 16 | AB113: NBC | AC113: 231 | AD113: Adquisición del lenguaje | AE113: 231 | AP113: Grupo de estudios contemporáneos en contabilidad, gestión y organizaciones - GECCGO | AQ113: 27 | BA113: COL0028918 | BB113: Derecho Historia y Filosofía | BC113: =COUNTIF(BA$4:BA113,BA113) -> 2 | BD113: =ROW() -> 113 | BE113: 1
L114: =COUNTIF(N$56:N114,N114) -> 30 | M114: 4 | N114: Estado_del_arte | O114: C | P114: 59 | R114: -23 | AA114: 17 | AB114: NBC | AC114: 232 | AD114: Literatura y lingüística | AE114: 232 | AP114: Grupo de Estudios en Ciencias Económicas - CIE | AQ114: 25 | BA114: COL0028918 | BB114: Derecho Internacional, Derechos Humanos, Derecho Internacional Humanitario | BC114: =COUNTIF(BA$4:BA114,BA114) -> 3 | BD114: =ROW() -> 114 | BE114: 1
L115: =COUNTIF(N$56:N115,N115) -> 31 | M115: 4 | N115: Estado_del_arte | O115: C | P115: 60 | R115: -23 | AA115: 18 | AB115: NBC | AC115: 311 | AD115: Economía | AE115: 311 | AP115: Grupo de Estudios Macroeconómicos | AQ115: 26 | BA115: COL0028918 | BB115: Derecho Penal y Justicia Militar | BC115: =COUNTIF(BA$4:BA115,BA115) -> 4 | BD115: =ROW() -> 115 | BE115: 1
L116: =COUNTIF(N$56:N116,N116) -> 32 | M116: 4 | N116: Estado_del_arte | O116: C | P116: 61 | R116: -23 | AA116: 19 | AB116: NBC | AC116: 312 | AD116: Ciencias políticas y educación cívica | AE116: 312 | AP116: Grupo de inmunología Clínica Aplicada (GICA) | AQ116: 69 | BA116: COL0028918 | BB116: Derecho, Educación y Sociedad | BC116: =COUNTIF(BA$4:BA116,BA116) -> 5 | BD116: =ROW() -> 116 | BE116: 1
L117: =COUNTIF(N$56:N117,N117) -> 1 | M117: 6 | N117: Metodología | O117: =O116 -> C | P117: =P116+1 -> 62 | R117: -55 | AA117: 20 | AB117: NBC | AC117: 313 | AD117: Psicología | AE117: 313 | AP117: Grupo de investigación en Biodiversidad y ecología de abejas silvestres | AQ117: 2 | BA117: COL0110329 | BB117: Didáctica de las matemáticas universitarias | BC117: =COUNTIF(BA$4:BA117,BA117) -> 1 | BD117: =ROW() -> 117 | BE117: 1
L118: =COUNTIF(N$56:N118,N118) -> 2 | M118: 6 | N118: Metodología | O118: =O117 -> C | P118: =P117+1 -> 63 | R118: -55 | AA118: 21 | AB118: NBC | AC118: 314 | AD118: Sociología y estudios culturales | AE118: 314 | AP118: Grupo de Investigacion en Dermatologia HMC | AQ118: 58 | BA118: COL0110329 | BB118: Diseño curricular y evaluación en matemáticas universitarias | BC118: =COUNTIF(BA$4:BA118,BA118) -> 2 | BD118: =ROW() -> 118 | BE118: 1
L119: =COUNTIF(N$56:N119,N119) -> 3 | M119: 6 | N119: Metodología | O119: C | P119: 64 | R119: -55 | AA119: 22 | AB119: NBC | AC119: 321 | AD119: Periodismo y reportajes | AE119: 321 | AP119: Grupo de Investigación en Hidrobiología Aplicada (HIDROBIA) | AQ119: 9 | BA119: COL0110329 | BB119: Herramientas virtuales y enseñanza de las matemáticas universitarias | BC119: =COUNTIF(BA$4:BA119,BA119) -> 3 | BD119: =ROW() -> 119 | BE119: 1
L120: =COUNTIF(N$56:N120,N120) -> 4 | M120: 6 | N120: Metodología | O120: C | P120: 65 | R120: -55 | AA120: 23 | AB120: NBC | AC120: 322 | AD120: Bibliotecología, información y archivología | AE120: 322 | AP120: Grupo de Investigación en Multimedia -GIM- | AQ120: 35 | BA120: COL0086179 | BB120: Búsqueda de marcadores genéticos y estudio de genes ligados a la resistencia a Fusarium en clavel. | BC120: =COUNTIF(BA$4:BA120,BA120) -> 1 | BD120: =ROW() -> 120 | BE120: 1
L121: =COUNTIF(N$56:N121,N121) -> 5 | M121: 6 | N121: =NbHoja(M121) -> Metodología | O121: C | P121: 66 | Q121: =CLEAN(TRIM(INDIRECT($N121&"!"&$O121&(P121+R121),1))) ->  | R121: -55 | AA121: 24 | AB121: NBC | AC121: 411 | AD121: Contabilidad e impuestos | AE121: 411 | AP121: Grupo de investigación en química ambiental y tecnologías limpias - QUATELI | AQ121: 12 | BA121: COL0086179 | BB121: Producción de nuevas variedades de clavel resistentes a parasitos vasculares. | BC121: =COUNTIF(BA$4:BA121,BA121) -> 2 | BD121: =ROW() -> 121 | BE121: 1
L122: =COUNTIF(N$56:N122,N122) -> 6 | M122: 6 | N122: Metodología | O122: C | P122: 67 | R122: -55 | AA122: 25 | AB122: NBC | AC122: 412 | AD122: Gestión financiera, administración bancaria y seguros | AE122: 412 | AP122: Grupo de Investigacion en Urologia HMC | AQ122: 63 | BA122: COL0138796 | BB122: Docencia y Didactica de la Física Universitaria | BC122: =COUNTIF(BA$4:BA122,BA122) -> 1 | BD122: =ROW() -> 122 | BE122: 1
L123: =COUNTIF(N$56:N123,N123) -> 7 | M123: 6 | N123: Metodología | O123: C | P123: 68 | R123: -55 | AA123: 26 | AB123: NBC | AC123: 413 | AD123: Gestión y administración | AE123: 413 | AP123: Grupo de investigaciones sobre agentes radiológicos, biológicos y químicos | AQ123: 73 | BA123: COL0138796 | BB123: Física Atómica, Molecular y de Agregados | BC123: =COUNTIF(BA$4:BA123,BA123) -> 2 | BD123: =ROW() -> 123 | BE123: 1
L124: =COUNTIF(N$56:N124,N124) -> 8 | M124: 6 | N124: Metodología | O124: C | P124: 69 | R124: -55 | AA124: 27 | AB124: NBC | AC124: 414 | AD124: Mercadotecnia y publicidad | AE124: 414 | AP124: Grupo de Micología y Fitopatologia | AQ124: 5 | BA124: COL0138796 | BB124: Magnetismo y Aplicaciones | BC124: =COUNTIF(BA$4:BA124,BA124) -> 3 | BD124: =ROW() -> 124 | BE124: 1
L125: =COUNTIF(N$56:N125,N125) -> 9 | M125: 6 | N125: Metodología | O125: C | P125: 70 | R125: -55 | AA125: 28 | AB125: NBC | AC125: 415 | AD125: Secretariado y trabajo de oficina | AE125: 415 | AP125: Grupo de Psoriasis e Inmunodermatologia | AQ125: 54 | BA125: COL0138796 | BB125: Nanotecnología y Sensórica | BC125: =COUNTIF(BA$4:BA125,BA125) -> 4 | BD125: =ROW() -> 125 | BE125: 1
L126: =COUNTIF(N$56:N126,N126) -> 10 | M126: 6 | N126: Metodología | O126: C | P126: 71 | R126: -55 | AA126: 29 | AB126: NBC | AC126: 416 | AD126: Ventas al por mayor y al por menor | AE126: 416 | AP126: Grupo de Rehabilitacion HOMIC-UMNG | AQ126: 62 | BA126: COL0138796 | BB126: Uso de radiación ionizante para la producción de imágenes médicas | BC126: =COUNTIF(BA$4:BA126,BA126) -> 5 | BD126: =ROW() -> 126 | BE126: 1
L127: =COUNTIF(N$56:N127,N127) -> 11 | M127: 6 | N127: Metodología | O127: C | P127: 72 | R127: -55 | AA127: 30 | AB127: NBC | AC127: 417 | AD127: Competencias laborales | AE127: 417 | AP127: Grupo de Salud Oral y Cirugia Maxilofacial | AQ127: 60 | BA127: COL0152472 | BB127: Autoinmunidad y Artritis Reumatoide | BC127: =COUNTIF(BA$4:BA127,BA127) -> 1 | BD127: =ROW() -> 127 | BE127: 1
L128: =COUNTIF(N$56:N128,N128) -> 12 | M128: 6 | N128: Metodología | O128: =O127 -> C | P128: =P127+1 -> 73 | R128: -55 | AA128: 31 | AB128: NBC | AC128: 421 | AD128: Derecho | AE128: 421 | AP128: Grupo Integrado de Investigaciones en Química y Biología (InQuiBio) | AQ128: 11 | BA128: COL0152472 | BB128: Espondiloartritis Axial y Artritis Psoriásica | BC128: =COUNTIF(BA$4:BA128,BA128) -> 2 | BD128: =ROW() -> 128 | BE128: 1
L129: =COUNTIF(N$56:N129,N129) -> 13 | M129: 6 | N129: Metodología | O129: C | P129: 74 | R129: -55 | AA129: 32 | AB129: NBC | AC129: 511 | AD129: Biología | AE129: 511 | AP129: GRUPO NEUROCIENCIAS HMC | AQ129: 57 | BA129: COL0049999 | BB129: Calidad y Gestión en la Educación | BC129: =COUNTIF(BA$4:BA129,BA129) -> 1 | BD129: =ROW() -> 129 | BE129: 1
L130: =COUNTIF(N$56:N130,N130) -> 14 | M130: 6 | N130: Metodología | O130: C | P130: 75 | R130: -55 | AA130: 33 | AB130: NBC | AC130: 512 | AD130: Bioquímica | AE130: 512 | AP130: Grupo para el estudio de enfermedades respiratorias en nińos. Respira | AQ130: 55 | BA130: COL0049999 | BB130: Gestión y Proyectos | BC130: =COUNTIF(BA$4:BA130,BA130) -> 2 | BD130: =ROW() -> 130 | BE130: 1
L131: =COUNTIF(N$56:N131,N131) -> 15 | M131: 6 | N131: Metodología | O131: C | P131: 76 | R131: -55 | AA131: 34 | AB131: NBC | AC131: 521 | AD131: Ciencias del medio ambiente | AE131: 521 | AP131: HUMANITAS | AQ131: 32 | BA131: COL0049999 | BB131: Innovación | BC131: =COUNTIF(BA$4:BA131,BA131) -> 3 | BD131: =ROW() -> 131 | BE131: 1
L132: =COUNTIF(N$56:N132,N132) -> 16 | M132: 6 | N132: Metodología | O132: C | P132: 77 | R132: -55 | AA132: 35 | AB132: NBC | AC132: 522 | AD132: Medio ambiente natural y vida silvestre | AE132: 522 | AP132: INAMPE | AQ132: 24 | BA132: COL0049999 | BB132: Productividad | BC132: =COUNTIF(BA$4:BA132,BA132) -> 4 | BD132: =ROW() -> 132 | BE132: =COUNTIF($AQ$3:$AQ$83,BA132) -> 1
L133: =COUNTIF(N$56:N133,N133) -> 17 | M133: 6 | N133: Metodología | O133: C | P133: 78 | R133: -55 | AA133: 36 | AB133: NBC | AC133: 531 | AD133: Química | AE133: 531 | AP133: INCONDIS | AQ133: 19 | BA133: COL0049999 | BB133: Sostenibilidad y Medio Ambiente | BC133: =COUNTIF(BA$4:BA133,BA133) -> 5 | BD133: =ROW() -> 133 | BE133: 1
L134: =COUNTIF(N$56:N134,N134) -> 18 | M134: 6 | N134: Metodología | O134: C | P134: 79 | R134: -55 | AA134: 37 | AB134: NBC | AC134: 532 | AD134: Ciencias de la tierra | AE134: 532 | AP134: INGENIERÍA, GEOMÁTICA Y EDUCACIÓN (IGE) | AQ134: 43 | BA134: COL0049999 | BB134: Tecnología | BC134: =COUNTIF(BA$4:BA134,BA134) -> 6 | BD134: =ROW() -> 134 | BE134: 1
L135: =COUNTIF(N$56:N135,N135) -> 19 | M135: 6 | N135: Metodología | O135: C | P135: 80 | R135: -55 | AA135: 38 | AB135: NBC | AC135: 533 | AD135: Física | AE135: 533 | AP135: Insight | AQ135: 65 | BA135: COL0026486 | BB135: Biorefinerias | BC135: =COUNTIF(BA$4:BA135,BA135) -> 1 | BD135: =ROW() -> 135 | BE135: 1
L136: =COUNTIF(N$56:N136,N136) -> 20 | M136: 6 | N136: Metodología | O136: C | P136: 81 | R136: -55 | AA136: 39 | AB136: NBC | AC136: 541 | AD136: Matemáticas | AE136: 541 | AP136: Kokhlias. | AQ136: 61 | BA136: COL0026486 | BB136: Ciudades Sostenibles | BC136: =COUNTIF(BA$4:BA136,BA136) -> 2 | BD136: =ROW() -> 136 | BE136: 1
L137: =COUNTIF(N$56:N137,N137) -> 21 | M137: 6 | N137: Metodología | O137: C | P137: 82 | R137: -55 | AA137: 40 | AB137: NBC | AC137: 542 | AD137: Estadística | AE137: 542 | AP137: LA TRAMOYA | AQ137: 50 | BA137: COL0026486 | BB137: Ingeniería Offshore. | BC137: =COUNTIF(BA$4:BA137,BA137) -> 3 | BD137: =ROW() -> 137 | BE137: 1
L138: =COUNTIF(N$56:N138,N138) -> 22 | M138: 6 | N138: Metodología | O138: C | P138: 83 | R138: -55 | AA138: 41 | AB138: NBC | AC138: 611 | AD138: Uso de computadores | AE138: 611 | AP138: LIDERAZGO | AQ138: 31 | BA138: COL0026486 | BB138: Ingeniería de recursos hídricos y energéticos. | BC138: =COUNTIF(BA$4:BA138,BA138) -> 4 | BD138: =ROW() -> 138 | BE138: 1
L139: =COUNTIF(N$56:N139,N139) -> 23 | M139: 6 | N139: Metodología | O139: C | P139: 84 | R139: -55 | AA139: 42 | AB139: NBC | AC139: 612 | AD139: Diseño y administración de redes y bases de datos | AE139: 612 | AP139: MATRIX | AQ139: 3 | BA139: COL0026486 | BB139: Procesos físico-químicos y de oxidación avanzada | BC139: =COUNTIF(BA$4:BA139,BA139) -> 5 | BD139: =ROW() -> 139 | BE139: 1
L140: =COUNTIF(N$56:N140,N140) -> 24 | M140: 6 | N140: Metodología | O140: C | P140: 85 | R140: -55 | AA140: 43 | AB140: NBC | AC140: 613 | AD140: Desarrollo y análisis de software y aplicaciones | AE140: 613 | AP140: Medios, Mediaciones y Procesos en Educación a Distancia | AQ140: 21 | BA140: COL0066229 | BB140: (EO) Estructuras Organizacionales | BC140: =COUNTIF(BA$4:BA140,BA140) -> 1 | BD140: =ROW() -> 140 | BE140: 1
L141: =COUNTIF(N$56:N141,N141) -> 25 | M141: 6 | N141: Metodología | O141: C | P141: 86 | R141: -55 | AA141: 44 | AB141: NBC | AC141: 711 | AD141: Ingeniería y procesos químicos | AE141: 711 | AP141: Modelos de simulación ICDIST | AQ141: 23 | BA141: COL0066229 | BB141: (PI) Procesos de Integración | BC141: =COUNTIF(BA$4:BA141,BA141) -> 2 | BD141: =ROW() -> 141 | BE141: 1
L142: =COUNTIF(N$56:N142,N142) -> 26 | M142: 6 | N142: Metodología | O142: C | P142: 87 | R142: -55 | AA142: 45 | AB142: NBC | AC142: 712 | AD142: Tecnología de protección del medio ambiente | AE142: 712 | AP142: Nanofab | AQ142: 72 | BA142: COL0066229 | BB142: (R) Regionalización | BC142: =COUNTIF(BA$4:BA142,BA142) -> 3 | BD142: =ROW() -> 142 | BE142: 1
L143: =COUNTIF(N$56:N143,N143) -> 27 | M143: 6 | N143: Metodología | O143: C | P143: 88 | R143: -55 | AA143: 46 | AB143: NBC | AC143: 713 | AD143: Electricidad y energía | AE143: 713 | AP143: PIREO "Procesos de Integración, Regionalización y Estructuras Organizacionales" | AQ143: 22 | BA143: COL0066768 | BB143: Derecho de las relaciones internacionales | BC143: =COUNTIF(BA$4:BA143,BA143) -> 1 | BD143: =ROW() -> 143 | BE143: 1
L144: =COUNTIF(N$56:N144,N144) -> 28 | M144: 6 | N144: Metodología | O144: C | P144: 89 | R144: -55 | AA144: 47 | AB144: NBC | AC144: 714 | AD144: Electrónica y automatización | AE144: 714 | AP144: PRODUCCION, INNOVACION Y TECNOLOGIA | AQ144: 39 | BA144: COL0066768 | BB144: Economia y negocios internacionales | BC144: =COUNTIF(BA$4:BA144,BA144) -> 2 | BD144: =ROW() -> 144 | BE144: 1
L145: =COUNTIF(N$56:N145,N145) -> 29 | M145: 6 | N145: Metodología | O145: C | P145: 90 | R145: -55 | AA145: 48 | AB145: NBC | AC145: 715 | AD145: Mecánica y profesiones afines a la metalistería | AE145: 715 | AP145: PROPPIO: Procesos organizacionales, programaticos y políticos para la promoción del desarrollo | AQ145: 18 | BA145: COL0066768 | BB145: Estudios políticos | BC145: =COUNTIF(BA$4:BA145,BA145) -> 3 | BD145: =ROW() -> 145 | BE145: 1
L146: =COUNTIF(N$56:N146,N146) -> 30 | M146: 6 | N146: Metodología | O146: C | P146: 91 | R146: -55 | AA146: 49 | AB146: NBC | AC146: 716 | AD146: Vehículos, barcos y aeronaves motorizadas | AE146: 716 | AP146: PYDES Pedagogía y didáctica en la educación superior | AQ146: 20 | BA146: COL0066768 | BB146: Estudios regionales | BC146: =COUNTIF(BA$4:BA146,BA146) -> 4 | BD146: =ROW() -> 146 | BE146: 1
L147: =COUNTIF(N$56:N147,N147) -> 31 | M147: 6 | N147: Metodología | O147: C | P147: 92 | R147: -55 | AA147: 50 | AB147: NBC | AC147: 721 | AD147: Procesamiento de alimentos | AE147: 721 | AP147: Red de estudios sociojurídicos comparados y políticas públicas | AQ147: 17 | BA147: COL0066768 | BB147: Historia internacional | BC147: =COUNTIF(BA$4:BA147,BA147) -> 5 | BD147: =ROW() -> 147 | BE147: 1
L148: =COUNTIF(N$56:N148,N148) -> 32 | M148: 6 | N148: Metodología | O148: C | P148: 93 | R148: -55 | AA148: 51 | AB148: NBC | AC148: 722 | AD148: Materiales (vidrio, papel, plástico y madera) | AE148: 722 | AP148: Salud y Comportamiento | AQ148: 56 | BA148: COL0066768 | BB148: Relaciones internacionales | BC148: =COUNTIF(BA$4:BA148,BA148) -> 6 | BD148: =ROW() -> 148 | BE148: 1
L149: =COUNTIF(N$56:N149,N149) -> 33 | M149: 6 | N149: Metodología | O149: C | P149: 94 | R149: -55 | AA149: 52 | AB149: NBC | AC149: 723 | AD149: Producción textiles (ropa, calzado y artículos de cuero) | AE149: 723 | AP149: Sociedad, Estrategia y Seguridad | AQ149: 30 | BA149: COL0062704 | BB149: Procesos Organizacionales (Prospectiva de las Organizaciones), Programáticos y Políticos para la Promoción del Desarrollo. | BC149: =COUNTIF(BA$4:BA149,BA149) -> 1 | BD149: =ROW() -> 149 | BE149: 1
L150: =COUNTIF(N$56:N150,N150) -> 34 | M150: 6 | N150: Metodología | O150: C | P150: 95 | R150: -55 | AA150: 53 | AB150: NBC | AC150: 724 | AD150: Minería y extracción | AE150: 724 | AP150: TIGUM: Grupo de Investigacion en Telemedicina Universidad Militar | AQ150: 37 | BA150: COL0062704 | BB150: Prospectiva de las Organizaciones | BC150: =COUNTIF(BA$4:BA150,BA150) -> 2 | BD150: =ROW() -> 150 | BE150: 1
L151: =COUNTIF(N$56:N151,N151) -> 1 | M151: 12 | N151: Presupuesto | O151: =O150 -> C | P151: =P150+1 -> 96 | Q151: Título de la Propuesta : | R151: -89 | AA151: 54 | AB151: NBC | AC151: 731 | AD151: Arquitectura y urbanismo | AE151: 731 | AP151: Tratamiento de agua | AQ151: 45 | BA151: COL0062704 | BB151: Responsabilidad Ambiental | BC151: =COUNTIF(BA$4:BA151,BA151) -> 3 | BD151: =ROW() -> 151 | BE151: 1
L152: =COUNTIF(N$56:N152,N152) -> 2 | M152: 12 | N152: Presupuesto | O152: =O151 -> C | P152: =P151+1 -> 97 | Q152: Lider responsable | R152: -89 | AA152: 55 | AB152: NBC | AC152: 732 | AD152: Construcción e ingeniería civil | AE152: 732 | AP152: VOLTA - GMCDP | AQ152: 38 | BA152: COL0062704 | BB152: Responsabilidad Social Empresarial | BC152: =COUNTIF(BA$4:BA152,BA152) -> 4 | BD152: =ROW() -> 152 | BE152: 1
L153: =COUNTIF(N$56:N153,N153) -> 3 | M153: 12 | N153: Presupuesto | O153: C | P153: 98 | R153: -89 | AA153: 56 | AB153: NBC | AC153: 811 | AD153: Producción agrícola y ganadera | AE153: 811 | BA153: COL0039321 | BB153: Analisis de Matrices | BC153: =COUNTIF(BA$4:BA153,BA153) -> 1 | BD153: =ROW() -> 153 | BE153: 1
L154: =COUNTIF(N$56:N154,N154) -> 4 | M154: 12 | N154: Presupuesto | O154: C | P154: 99 | R154: -89 | AA154: 57 | AB154: NBC | AC154: 812 | AD154: Horticultura | AE154: 812 | BA154: COL0039321 | BB154: Filosofía de la Ciencia: Filosofía de la Física | BC154: =COUNTIF(BA$4:BA154,BA154) -> 2 | BD154: =ROW() -> 154 | BE154: 1
L155: =COUNTIF(N$56:N155,N155) -> 5 | M155: 12 | N155: Presupuesto | O155: C | P155: 100 | R155: -89 | AA155: 58 | AB155: NBC | AC155: 821 | AD155: Silvicultura | AE155: 821 | BA155: COL0039321 | BB155: Leyes de conservacion hiperbolica | BC155: =COUNTIF(BA$4:BA155,BA155) -> 3 | BD155: =ROW() -> 155 | BE155: 1
L156: =COUNTIF(N$56:N156,N156) -> 6 | M156: 12 | N156: Presupuesto | O156: C | P156: 101 | Q156: Personal de planta o ocasional que integra al proyecto de investigación. | R156: -89 | AA156: 59 | AB156: NBC | AC156: 831 | AD156: Pesca | AE156: 831 | BA156: COL0039321 | BB156: Matematicas aplicadas | BC156: =COUNTIF(BA$4:BA156,BA156) -> 4 | BD156: =ROW() -> 156 | BE156: 1
L157: =COUNTIF(N$56:N157,N157) -> 7 | M157: 12 | N157: Presupuesto | O157: C | P157: 102 | Q157: Sueldo Neto | R157: -89 | AA157: 60 | AB157: NBC | AC157: 841 | AD157: Veterinaria | AE157: 841 | BA157: COL0039321 | BB157: Solución numérica de ecuaciones diferenciales parciales | BC157: =COUNTIF(BA$4:BA157,BA157) -> 5 | BD157: =ROW() -> 157 | BE157: 1
L158: =COUNTIF(N$56:N158,N158) -> 8 | M158: 12 | N158: Presupuesto | O158: C | P158: 103 | R158: -89 | AA158: 61 | AB158: NBC | AC158: 911 | AD158: Odontología | AE158: 911 | BA158: COL0032278 | BB158: Biología y Ecología de plagas y enemigos naturales de cultivos de importancia económica | BC158: =COUNTIF(BA$4:BA158,BA158) -> 1 | BD158: =ROW() -> 158 | BE158: 1
L159: =COUNTIF(N$56:N159,N159) -> 9 | M159: 12 | N159: Presupuesto | O159: C | P159: 104 | R159: -89 | AA159: 62 | AB159: NBC | AC159: 912 | AD159: Medicina | AE159: 912 | BA159: COL0032278 | BB159: Generación de recomendaciones para el manejo integrado de plagas, mediante el diseño de modelos de simulación de agroecosistemas | BC159: =COUNTIF(BA$4:BA159,BA159) -> 2 | BD159: =ROW() -> 159 | BE159: 1
L160: =COUNTIF(N$56:N160,N160) -> 10 | M160: 12 | N160: Presupuesto | O160: C | P160: 105 | R160: -89 | AA160: 63 | AB160: NBC | AC160: 913 | AD160: Enfermería y partería | AE160: 913 | BA160: COL0143731 | BB160: Electrónica y Telecomunicaciones en Salud | BC160: =COUNTIF(BA$4:BA160,BA160) -> 1 | BD160: =ROW() -> 160 | BE160: 1
L161: =COUNTIF(N$56:N161,N161) -> 11 | M161: 12 | N161: Presupuesto | O161: C | P161: 106 | R161: -89 | AA161: 64 | AB161: NBC | AC161: 914 | AD161: Tecnología de diagnóstico y tratamiento médico | AE161: 914 | BA161: COL0143731 | BB161: Espectro Radioeléctrico | BC161: =COUNTIF(BA$4:BA161,BA161) -> 2 | BD161: =ROW() -> 161 | BE161: 1
L162: =COUNTIF(N$56:N162,N162) -> 12 | M162: 12 | N162: Presupuesto | O162: C | P162: 107 | R162: -89 | AA162: 65 | AB162: NBC | AC162: 915 | AD162: Terapia y rehabilitación | AE162: 915 | BA162: COL0143731 | BB162: Sistemas virtuales de comunicación | BC162: =COUNTIF(BA$4:BA162,BA162) -> 3 | BD162: =ROW() -> 162 | BE162: 1
L163: =COUNTIF(N$56:N163,N163) -> 13 | M163: 12 | N163: Presupuesto | O163: C | P163: 108 | R163: -89 | AA163: 66 | AB163: NBC | AC163: 916 | AD163: Farmacia | AE163: 916 | BA163: COL0048492 | BB163: Biología Molecular de organismos acuáticos, con énfasis en especies de interés comercial y amenazadas. | BC163: =COUNTIF(BA$4:BA163,BA163) -> 1 | BD163: =ROW() -> 163 | BE163: 1
L164: =COUNTIF(N$56:N164,N164) -> 14 | M164: 12 | N164: Presupuesto | O164: C | P164: 109 | R164: -89 | AA164: 67 | AB164: NBC | AC164: 917 | AD164: Medicina y terapia tradicional y complementaria | AE164: 917 | BA164: COL0048492 | BB164: Dinámica ecológica del zooplancton en el océano pacífico colombiano. cruceros 2007-2010 de la serie erfen (estudio regional del fenómeno el niño). | BC164: =COUNTIF(BA$4:BA164,BA164) -> 2 | BD164: =ROW() -> 164 | BE164: 1
L165: =COUNTIF(N$56:N165,N165) -> 15 | M165: 12 | N165: Presupuesto | O165: C | P165: 110 | R165: -89 | AA165: 68 | AB165: NBC | AC165: 921 | AD165: Asistencia a adultos mayores y discapacitados | AE165: 921 | BA165: COL0048492 | BB165: Estudios Morfológicos, Tróficos, Ecológicos, Bióticos y Abióticos de Humedales Colombianos, con énfasis en la Sabana de Bogotá. | BC165: =COUNTIF(BA$4:BA165,BA165) -> 3 | BD165: =ROW() -> 165 | BE165: 1
L166: =COUNTIF(N$56:N166,N166) -> 16 | M166: 12 | N166: Presupuesto | O166: C | P166: 111 | R166: -89 | AA166: 69 | AB166: NBC | AC166: 922 | AD166: Asistencia a la infancia y servicios para jóvenes | AE166: 922 | BA166: COL0048492 | BB166: Estudios morfológicos, nutricionales, ontogénicos y de cultivo de organismos acuáticos de interés comercial. | BC166: =COUNTIF(BA$4:BA166,BA166) -> 4 | BD166: =ROW() -> 166 | BE166: 1
L167: =COUNTIF(N$56:N167,N167) -> 17 | M167: 12 | N167: Presupuesto | O167: C | P167: 112 | R167: -89 | AA167: 70 | AB167: NBC | AC167: 923 | AD167: Trabajo social y orientación | AE167: 923 | BA167: COL0116439 | BB167: Cirugía Dermatologica | BC167: =COUNTIF(BA$4:BA167,BA167) -> 1 | BD167: =ROW() -> 167 | BE167: 1
L168: =COUNTIF(N$56:N168,N168) -> 18 | M168: 12 | N168: Presupuesto | O168: C | P168: 113 | Q168: Sumatoria del calculo de personal de planta "Valor contrapartida Facultades":Diligenciado VICEIN | R168: -89 | AA168: 71 | AB168: NBC | AC168: 1011 | AD168: Servicios domésticos | AE168: 1011 | BA168: COL0116439 | BB168: Dermatologia Pediatrica | BC168: =COUNTIF(BA$4:BA168,BA168) -> 2 | BD168: =ROW() -> 168 | BE168: 1
L169: =COUNTIF(N$56:N169,N169) -> 19 | M169: 12 | N169: Presupuesto | O169: C | P169: 114 | R169: -89 | AA169: 72 | AB169: NBC | AC169: 1012 | AD169: Peluquería y tratamientos de belleza | AE169: 1012 | BA169: COL0116439 | BB169: Fotobiologia y Fototerapia | BC169: =COUNTIF(BA$4:BA169,BA169) -> 3 | BD169: =ROW() -> 169 | BE169: 1
L170: =COUNTIF(N$56:N170,N170) -> 20 | M170: 12 | N170: Presupuesto | O170: C | P170: 115 | Q170: Asistentes externos o temporales contratados OPS y Estimulo Estudiantes. | R170: -89 | AA170: 73 | AB170: NBC | AC170: 1013 | AD170: Hotelería, restaurantes y servicios de banquetes | AE170: 1013 | BA170: COL0116439 | BB170: Leishmaniasis | BC170: =COUNTIF(BA$4:BA170,BA170) -> 4 | BD170: =ROW() -> 170 | BE170: 1
L171: =COUNTIF(N$56:N171,N171) -> 21 | M171: 12 | N171: Presupuesto | O171: C | P171: 116 | Q171: Salario Minimo Legal Vigente (SMIV) : | R171: -89 | AA171: 74 | AB171: NBC | AC171: 1014 | AD171: Deportes | AE171: 1014 | BA171: COL0116439 | BB171: Psoriasis | BC171: =COUNTIF(BA$4:BA171,BA171) -> 5 | BD171: =ROW() -> 171 | BE171: 1
L172: =COUNTIF(N$56:N172,N172) -> 22 | M172: 12 | N172: Presupuesto | O172: C | P172: 117 | R172: -89 | AA172: 75 | AB172: NBC | AC172: 1015 | AD172: Viajes, turismo y actividades recreativas | AE172: 1015 | BA172: COL0031959 | BB172: Análisis de redes de interacción planta-polinizador a partir de técnicas palinológicas | BC172: =COUNTIF(BA$4:BA172,BA172) -> 1 | BD172: =ROW() -> 172 | BE172: 1
L173: =COUNTIF(N$56:N173,N173) -> 23 | M173: 12 | N173: Presupuesto | O173: C | P173: 118 | Q173: Valor mensual | R173: -89 | AA173: 76 | AB173: NBC | AC173: 1021 | AD173: Saneamiento de la comunidad | AE173: 1021 | BA173: COL0031959 | BB173: Cría de especies del género Bombus para su utilización como polinizadores en cultivos de la sabana Cundi-boyacense. | BC173: =COUNTIF(BA$4:BA173,BA173) -> 2 | BD173: =ROW() -> 173 | BE173: 1
L174: =COUNTIF(N$56:N174,N174) -> 24 | M174: 12 | N174: Presupuesto | O174: C | P174: 119 | Q174: 0 | R174: -89 | AA174: 77 | AB174: NBC | AC174: 1022 | AD174: Salud y protección laboral | AE174: 1022 | BA174: COL0031959 | BB174: Diversidad, biología y taxonomia de polinizadores colombianos | BC174: =COUNTIF(BA$4:BA174,BA174) -> 3 | BD174: =ROW() -> 174 | BE174: 1
L175: =COUNTIF(N$56:N175,N175) -> 25 | M175: 12 | N175: Presupuesto | O175: C | P175: 120 | Q175: 0 | R175: -89 | AA175: 78 | AB175: NBC | AC175: 1031 | AD175: Educación militar y de defensa | AE175: 1031 | BA175: COL0031959 | BB175: Ecología de la polinización: estudios del uso sostenible de especies de abejas silvestres como polinizadores de hortalizas y frutales | BC175: =COUNTIF(BA$4:BA175,BA175) -> 4 | BD175: =ROW() -> 175 | BE175: 1
AA176: 79 | AB176: NBC | AC176: 1032 | AD176: Protección de las personas y de la propiedad | AE176: 1032 | BA176: COL0031959 | BB176: Modelos biológicos y ecológicos de insectos benéficos | BC176: =COUNTIF(BA$4:BA176,BA176) -> 5 | BD176: =ROW() -> 176 | BE176: 1
AA177: 80 | AB177: NBC | AC177: 1041 | AD177: Servicios de transporte | AE177: 1041 | BA177: COL0015722 | BB177: Bioética, Biopolítica y biojurídica | BC177: =COUNTIF(BA$4:BA177,BA177) -> 1 | BD177: =ROW() -> 177 | BE177: 1
AA178: 1 | AB178: Nivel | AC178: 1 | AD178: Postdoctorado | AE178: =AC178 -> 1 | BA178: COL0015722 | BB178: Liderazgo | BC178: =COUNTIF(BA$4:BA178,BA178) -> 2 | BD178: =ROW() -> 178 | BE178: 1
AA179: 2 | AB179: Nivel | AC179: 2 | AD179: Doctorado | AE179: =AC179 -> 2 | BA179: COL0151789 | BB179: Aprovechamiento de residuos orgánicos | BC179: =COUNTIF(BA$4:BA179,BA179) -> 1 | BD179: =ROW() -> 179 | BE179: 1
AA180: 3 | AB180: Nivel | AC180: 3 | AD180: Maestría | AE180: 3 | BA180: COL0151789 | BB180: Ecosostenibilidad en procesos de producción | BC180: =COUNTIF(BA$4:BA180,BA180) -> 2 | BD180: =ROW() -> 180 | BE180: 1
AA181: 4 | AB181: Nivel | AC181: 4 | AD181: Esp. universitaria | AE181: 4 | BA181: COL0151789 | BB181: Estética del videojuego | BC181: =COUNTIF(BA$4:BA181,BA181) -> 3 | BD181: =ROW() -> 181 | BE181: 1
AA182: 5 | AB182: Nivel | AC182: 5 | AD182: Esp. Técnica Profesional | AE182: 5 | BA182: COL0151789 | BB182: Ingeniería del terreno, geodesia y geofísica | BC182: =COUNTIF(BA$4:BA182,BA182) -> 4 | BD182: =ROW() -> 182 | BE182: 1
AA183: 6 | AB183: Nivel | AC183: 6 | AD183: Esp. Tecnológica | AE183: 6 | BA183: COL0151789 | BB183: Museología | BC183: =COUNTIF(BA$4:BA183,BA183) -> 5 | BD183: =ROW() -> 183 | BE183: 1
AA184: 7 | AB184: Nivel | AC184: 7 | AD184: Universitario | AE184: 7 | BA184: COL0151789 | BB184: Prevención y control de la contaminación | BC184: =COUNTIF(BA$4:BA184,BA184) -> 6 | BD184: =ROW() -> 184 | BE184: 1
AA185: 8 | AB185: Nivel | AC185: 8 | AD185: Tecnológico | AE185: 8 | BA185: COL0151789 | BB185: Sensórica y sistemas inteligentes | BC185: =COUNTIF(BA$4:BA185,BA185) -> 7 | BD185: =ROW() -> 185 | BE185: 1
AA186: 9 | AB186: Nivel | AC186: 9 | AD186: Técnico profesional | AE186: 9 | BA186: COL0126777 | BB186: Animación 2D y 3D | BC186: =COUNTIF(BA$4:BA186,BA186) -> 1 | BD186: =ROW() -> 186 | BE186: 1
AA187: 10 | AB187: Nivel | AC187: 10 | AD187: Estudiante pregrado | AE187: 10 | BA187: COL0126777 | BB187: Audio y video | BC187: =COUNTIF(BA$4:BA187,BA187) -> 2 | BD187: =ROW() -> 187 | BE187: 1
AA188: 1 | AB188: A | AC188: 100 | AD188: Puede aplicar al maximo de presupuesto dependiendo los puntos comprometidos | BA188: COL0126777 | BB188: Desarrollo Multimedia | BC188: =COUNTIF(BA$4:BA188,BA188) -> 3 | BD188: =ROW() -> 188 | BE188: 1
AA189: 8 | AB189: A1 | AC189: 100 | AD189: Puede aplicar al maximo de presupuesto dependiendo los puntos comprometidos | BA189: COL0126777 | BB189: Museografía y Museología | BC189: =COUNTIF(BA$4:BA189,BA189) -> 4 | BD189: =ROW() -> 189 | BE189: 1
AA190: 9 | AB190: B | AC190: 100 | AD190: Puede aplicar al maximo de presupuesto dependiendo los puntos comprometidos | BA190: COL0126777 | BB190: Narrativas digitales | BC190: =COUNTIF(BA$4:BA190,BA190) -> 5 | BD190: =ROW() -> 190 | BE190: 1
AA191: 10 | AB191: C | AC191: 100 | AD191: Puede aplicar al maximo de presupuesto dependiendo los puntos comprometidos | BA191: COL0126777 | BB191: Patrimonio | BC191: =COUNTIF(BA$4:BA191,BA191) -> 6 | BD191: =ROW() -> 191 | BE191: 1
AA192: 11 | AB192: D | AC192: 50 | AD192: Puede aplicar hasta 50 millones de presupuesto dependiendo los puntos comprometidos | BA192: COL0077707 | BB192: (Eco)Fisiología vegetal | BC192: =COUNTIF(BA$4:BA192,BA192) -> 1 | BD192: =ROW() -> 192 | BE192: 1
AA193: 2 | AB193: R | AC193: 25 | AD193: Puede aplicar hasta 25 millones de presupuesto dependiendo los puntos comprometidos | BA193: COL0077707 | BB193: Bioprospección de Comunidades Vegetales | BC193: =COUNTIF(BA$4:BA193,BA193) -> 2 | BD193: =ROW() -> 193 | BE193: 1
AA194: 2 | AB194: NR | AC194: 25 | AD194: Puede aplicar hasta 25 millones de presupuesto dependiendo los puntos comprometidos | BA194: COL0077707 | BB194: Búsqueda Biodirigida y Síntesis de Sustancias Bioactivas | BC194: =COUNTIF(BA$4:BA194,BA194) -> 3 | BD194: =ROW() -> 194 | BE194: 1
AA195: 12 | AB195: NA | AC195: 25 | AD195: Puede aplicar hasta 25 millones de presupuesto dependiendo los puntos comprometidos | BA195: COL0077707 | BB195: Ecología Química y Redes Tróficas | BC195: =COUNTIF(BA$4:BA195,BA195) -> 4 | BD195: =ROW() -> 195 | BE195: 1
AA196: 1 | AB196: Nivel_Inst | AC196: 1 | AD196: Distrital | BA196: COL0077707 | BB196: Fitoquímica Analítica | BC196: =COUNTIF(BA$4:BA196,BA196) -> 5 | BD196: =ROW() -> 196 | BE196: =COUNTIF($AQ$3:$AQ$83,BA196) -> 1
AA197: 2 | AB197: Nivel_Inst | AC197: 2 | AD197: Nacional | BA197: COL0077707 | BB197: Metabolómica | Fisiología Molecular | Ecología Metabólica | Respuestas Metabólicas | BC197: =COUNTIF(BA$4:BA197,BA197) -> 6 | BD197: =ROW() -> 197 | BE197: 1
AA198: 3 | AB198: Nivel_Inst | AC198: 3 | AD198: Internacional | BA198: COL0077707 | BB198: Modelado Molecular, Bio- y Quimio-informática | BC198: =COUNTIF(BA$4:BA198,BA198) -> 7 | BD198: =ROW() -> 198 | BE198: 1
BA199: COL0077707 | BB199: Química Ambiental | BC199: =COUNTIF(BA$4:BA199,BA199) -> 8 | BD199: =ROW() -> 199 | BE199: 1
BA200: COL0077707 | BB200: Química Bioorgánica y Bioquímica | BC200: =COUNTIF(BA$4:BA200,BA200) -> 9 | BD200: =ROW() -> 200 | BE200: 1
... 113 more rows

Sheet General
A1: 1 | H1: =IFERROR(VLOOKUP($C$7,Dt!AD81:AE83,2,0),"INV") -> PAZ | I1: =IFERROR(VLOOKUP($C$13,Dt!$AC$6:$AD$13,2,0),"NT") -> NT | X1: Número de Paginas del documento final , se puede ajustar.
B2: PRESENTACIÓN DE PROYECTOS DE INVESTIGACIÓN | H2: Fecha de Emisión: 2019/03/18 | I2: IN-IV-F-14 | S2: . | X2: 11 | AA2: NN | AB2: No. Grupo
H3: Revisión N°: 4 | I3: ="Página "&A1&" de "&Dt_TPG -> Página 1 de 11 | S3: Documento de Prueba 06 Marzo 2018 | AA3: 44 | AB3: =VLOOKUP($AA3,Dt!$AN$3:$AR$76,3,0) -> ACCEDER
AA4: 45 | AB4: =VLOOKUP($AA4,Dt!$AN$3:$AR$76,3,0) -> Agua y Energía - AyE
A5: 1.- | B5: Información general del proyecto. | I5: ="Vrs.- "&TEXT(DAY($U$5),"00")&"."&(TEXT(MONTH($U$5),"00"))&U7 -> Vrs.- 05.09 | S5: Fecha Actualización | U5: =I73 -> 2019-09-05 | X5: Hoy es | AA5: 10 | AB5: =VLOOKUP($AA5,Dt!$AN$3:$AR$76,3,0) -> Agrobiología de especies vegetales promisorias de clima frío
AA6: 34 | AB6: =VLOOKUP($AA6,Dt!$AN$3:$AR$76,3,0) -> BioethicsGroup
B7: Convocatoria: | C7: Investigación en Paz y Pos-acuerdo. SUE | G7: Código o Radicado | X7: =NOW() -> 2019-09-06T16:08:49.710 | AA7: 67 | AB7: =VLOOKUP($AA7,Dt!$AN$3:$AR$76,3,0) -> BioGenEtica & BioDerecho
AA8: 53 | AB8: =VLOOKUP($AA8,Dt!$AN$3:$AR$76,3,0) -> BONE
B9: Formato: actualizado a 06 Sep 2019 | S9: =Cel_Fac -> NT | AA9: 52 | AB9: =VLOOKUP($AA9,Dt!$AN$3:$AR$76,3,0) -> CATCH
B10: Líder: | C10: Luis Alexander Chirivi | G10: Teléfonos : | X10: 2019-03-18 | AA10: 59 | AB10: =VLOOKUP($AA10,Dt!$AN$3:$AR$76,3,0) -> Células Stem Adultas
B11: Correo: | G11: Sede: | AA11: 33 | AB11: =VLOOKUP($AA11,Dt!$AN$3:$AR$76,3,0) -> Cultura y Desarrollo Humano
B12: Este proyecto es continuación de un proyecto anterior | F12: No | G12: El proyecto tiene o ha tenido financiación | I12: No | AA12: 41 | AB12: =VLOOKUP($AA12,Dt!$AN$3:$AR$76,3,0) -> DAVINCI
B13: Facultad del Líder investigador | G13: Programa del Líder investigador | L13: Clasificación Grupo Máximo | AA13: 4 | AB13: =VLOOKUP($AA13,Dt!$AN$3:$AR$76,3,0) -> Control Biológico UMNG
B14: Palabras Clave | G14: Áreas Colciencias | X14: 42796 | AA14: 71 | AB14: =VLOOKUP($AA14,Dt!$AN$3:$AR$76,3,0) -> DIVERSITAS
S15: 2 | AA15: 13 | AB15: =VLOOKUP($AA15,Dt!$AN$3:$AR$76,3,0) -> ECMU (Evaluacion en Competencias y Matemáticas Universitarias)
A16: 2.- | B16: Información de Grupos de Investigación UMNG asociados al proyecto | AA16: 66 | AB16: =VLOOKUP($AA16,Dt!$AN$3:$AR$76,3,0) -> EDUMECIS
AA17: 48 | AB17: =VLOOKUP($AA17,Dt!$AN$3:$AR$76,3,0) -> Energia alternativa, Centro Multidisciplinario de Investigación
B18: Grupo UMNG Principal | C18: Agua y Energía - AyE | L18: =IFERROR(VLOOKUP($C18,Dt!$AP$3:$AQ$76,2,0),0) -> COL0026486 | M18: =LEN(C18) -> 20 | AA18: 64 | AB18: =VLOOKUP($AA18,Dt!$AN$3:$AR$76,3,0) -> Epidemiología molecular de enfermedades endocrinas
B19: Link Colciencias: | C19: =IFERROR(VLOOKUP(L18,Dt!$AQ$3:$AS$76,3,0),"") -> https://scienti.colciencias.gov.co/gruplac/jsp/visualiza/visualizagr.jsp?nro=00000000000767 | I19: =IFERROR(VLOOKUP(L18,Dt!$AQ$3:$AS$76,2,0),"") -> C | L19: =COUNTIF($O$7:$O$9,I19) -> 0 | AA19: 70 | AB19: =VLOOKUP($AA19,Dt!$AN$3:$AR$76,3,0) -> Epidemiología y Salud Colectiva
B20: Líneas | L20: =IFERROR("DT!"&VLOOKUP($C18,Dt!$AP$3:$AT$76,5,0),0) -> DT!BB135:BB139 | AA20: 7 | AB20: =VLOOKUP($AA20,Dt!$AN$3:$AR$76,3,0) -> Estadística, Control y Optimización
AA21: 42 | AB21: =VLOOKUP($AA21,Dt!$AN$3:$AR$76,3,0) -> Estructuras y sísmica
A22: =IFERROR(VLOOKUP(D22,Dt!$AP$3:$AU$76,5,0),"") ->  | B22: Grupo UMNG Aliado 1 | L22: =IFERROR(VLOOKUP($C22,Dt!$AP$3:$AQ$76,2,0),0) -> 0 | AA22: 29 | AB22: =VLOOKUP($AA22,Dt!$AN$3:$AR$76,3,0) -> Estudios Internacionales y Políticos
B23: Link Colciencias: | C23: =IFERROR(VLOOKUP(L22,Dt!$AQ$3:$AS$76,3,0),"") ->  | I23: =IFERROR(VLOOKUP(L22,Dt!$AQ$3:$AS$76,2,0),"") ->  | AA23: 6 | AB23: =VLOOKUP($AA23,Dt!$AN$3:$AR$76,3,0) -> Fitopatologia molecular
A24: =IFERROR(VLOOKUP($C24,Dt!$BB$3:$BD$293,3,0),"") ->  | B24: Líneas | L24: =IFERROR("DT!"&VLOOKUP($C22,Dt!$AP$3:$AT$76,5,0),0) -> 0 | AA24: 1 | AB24: =VLOOKUP($AA24,Dt!$AN$3:$AR$76,3,0) -> Fitoplasmas y Virus
AA25: 68 | AB25: =VLOOKUP($AA25,Dt!$AN$3:$AR$76,3,0) -> GAFRED
B26: Grupo UMNG Aliado 2 | L26: =IFERROR(VLOOKUP($C26,Dt!$AP$3:$AQ$76,2,0),0) -> 0 | AA26: 47 | AB26: =VLOOKUP($AA26,Dt!$AN$3:$AR$76,3,0) -> GAV
B27: Link Colciencias: | C27: =IFERROR(VLOOKUP(L26,Dt!$AQ$3:$AS$76,3,0),"") ->  | I27: =IFERROR(VLOOKUP(L26,Dt!$AQ$3:$AS$76,2,0),"") ->  | AA27: 28 | AB27: =VLOOKUP($AA27,Dt!$AN$3:$AR$76,3,0) -> GECS (Grupo de Estudios en Educación, Contabilidad y Sociedad)
B28: Líneas | L28: =IFERROR("DT!"&VLOOKUP($C26,Dt!$AP$3:$AT$76,5,0),0) -> 0 | AA28: 36 | AB28: =VLOOKUP($AA28,Dt!$AN$3:$AR$76,3,0) -> GEOTECNIA
AA29: 40 | AB29: =VLOOKUP($AA29,Dt!$AN$3:$AR$76,3,0) -> GIDAM
A30: 3.- | B30: Instituciones Externas participantes. | G30: =ROW() -> 30 | H30: No. de Instituciones: --> | I30: 2 | AA30: 49 | AB30: =VLOOKUP($AA30,Dt!$AN$3:$AR$76,3,0) -> GI-iTEC - Grupo de Investigación e innovación Tecnológica en Electrónica y Comunicaciones
C31: s | AA31: 46 | AB31: =VLOOKUP($AA31,Dt!$AN$3:$AR$76,3,0) -> GISSIC: Grupo de Investigacion en Seguridad y Sistemas de Comunicaciones
B32: Nombre 1 | AA32: 51 | AB32: =VLOOKUP($AA32,Dt!$AN$3:$AR$76,3,0) -> GREST
B33: Grupo 1 | H33: Clasificación | I33: NA | AA33: 16 | AB33: =VLOOKUP($AA33,Dt!$AN$3:$AR$76,3,0) -> Grupo de Derecho Privado
B34: Investigadores | H34: Presupuesto en plan de compras: | I34: =R82 -> 0 | AA34: 15 | AB34: =VLOOKUP($AA34,Dt!$AN$3:$AR$76,3,0) -> Grupo de derecho público
B35: Nivel o alcance institucional de la entidad externa es : | H35: =$M$67 -> . | AA35: 14 | AB35: =VLOOKUP($AA35,Dt!$AN$3:$AR$76,3,0) -> Grupo de Docencia e Investigación en Física
B36: Link Colciencias: | L36: =IFERROR(SEARCH(M36,C36,1),0) -> 0 | M36: http://scienti.colciencias.gov.co:8085 | AA36: 8 | AB36: =VLOOKUP($AA36,Dt!$AN$3:$AR$76,3,0) -> Grupo de Ecotoxicología, Evolución, Medio ambiente y conservación (E = mc2)
AA37: 27 | AB37: =VLOOKUP($AA37,Dt!$AN$3:$AR$76,3,0) -> Grupo de estudios contemporáneos en contabilidad, gestión y organizaciones - GECCGO
B38: Nombre 2 | AA38: 25 | AB38: =VLOOKUP($AA38,Dt!$AN$3:$AR$76,3,0) -> Grupo de Estudios en Ciencias Económicas - CIE
B39: Grupo 2 | H39: Clasificación | AA39: 26 | AB39: =VLOOKUP($AA39,Dt!$AN$3:$AR$76,3,0) -> Grupo de Estudios Macroeconómicos
B40: Investigadores | H40: Presupuesto en plan de compras: | I40: =R83 -> 0 | AA40: 69 | AB40: =VLOOKUP($AA40,Dt!$AN$3:$AR$76,3,0) -> Grupo de inmunología Clínica Aplicada (GICA)
B41: Nivel o alcance institucional de la entidad externa es : | H41: =IF(I40>0,$M$67,".") -> . | AA41: 2 | AB41: =VLOOKUP($AA41,Dt!$AN$3:$AR$76,3,0) -> Grupo de investigación en Biodiversidad y ecología de abejas silvestres
B42: Link Colciencias: | L42: =IFERROR(SEARCH(M42,C42,1),0) -> 0 | M42: http://scienti.colciencias.gov.co:8085 | AA42: 58 | AB42: =VLOOKUP($AA42,Dt!$AN$3:$AR$76,3,0) -> Grupo de Investigacion en Dermatologia HMC
AA43: 9 | AB43: =VLOOKUP($AA43,Dt!$AN$3:$AR$76,3,0) -> Grupo de Investigación en Hidrobiología Aplicada (HIDROBIA)
B44: Nombre3 | AA44: 35 | AB44: =VLOOKUP($AA44,Dt!$AN$3:$AR$76,3,0) -> Grupo de Investigación en Multimedia -GIM-
B45: Grupo 3 | H45: Clasificación | AA45: 12 | AB45: =VLOOKUP($AA45,Dt!$AN$3:$AR$76,3,0) -> Grupo de investigación en química ambiental y tecnologías limpias - QUATELI
B46: Investigadores | H46: Presupuesto en plan de compras: | I46: =R84 -> 0 | AA46: 63 | AB46: =VLOOKUP($AA46,Dt!$AN$3:$AR$76,3,0) -> Grupo de Investigacion en Urologia HMC
B47: Nivel o alcance institucional de la entidad externa es : | H47: =IF(I46>0,$M$67,".") -> . | AA47: 73 | AB47: =VLOOKUP($AA47,Dt!$AN$3:$AR$76,3,0) -> Grupo de investigaciones sobre agentes radiológicos, biológicos y químicos
B48: Link Colciencias: | L48: =IFERROR(SEARCH(M48,C48,1),0) -> 0 | M48: http://scienti.colciencias.gov.co:8085 | AA48: 5 | AB48: =VLOOKUP($AA48,Dt!$AN$3:$AR$76,3,0) -> Grupo de Micología y Fitopatologia
AA49: 54 | AB49: =VLOOKUP($AA49,Dt!$AN$3:$AR$76,3,0) -> Grupo de Psoriasis e Inmunodermatologia
B50: Nombre4 | AA50: 35 | AB50: =VLOOKUP($AA50,Dt!$AN$3:$AR$76,3,0) -> Grupo de Investigación en Multimedia -GIM-
B51: Grupo 4 | H51: Clasificación | AA51: 12 | AB51: =VLOOKUP($AA51,Dt!$AN$3:$AR$76,3,0) -> Grupo de investigación en química ambiental y tecnologías limpias - QUATELI
B52: Investigadores | H52: Presupuesto en plan de compras: | I52: =R85 -> 0 | AA52: 63 | AB52: =VLOOKUP($AA52,Dt!$AN$3:$AR$76,3,0) -> Grupo de Investigacion en Urologia HMC
B53: Nivel o alcance institucional de la entidad externa es : | H53: =IF(I52>0,$M$67,".") -> . | AA53: 73 | AB53: =VLOOKUP($AA53,Dt!$AN$3:$AR$76,3,0) -> Grupo de investigaciones sobre agentes radiológicos, biológicos y químicos
B54: Link Colciencias: | L54: =IFERROR(SEARCH(M54,C54,1),0) -> 0 | M54: http://scienti.colciencias.gov.co:8085 | AA54: 5 | AB54: =VLOOKUP($AA54,Dt!$AN$3:$AR$76,3,0) -> Grupo de Micología y Fitopatologia
AA55: 9 | AB55: =VLOOKUP($AA55,Dt!$AN$3:$AR$76,3,0) -> Grupo de Investigación en Hidrobiología Aplicada (HIDROBIA)
B56: Nombre5 | AA56: 35 | AB56: =VLOOKUP($AA56,Dt!$AN$3:$AR$76,3,0) -> Grupo de Investigación en Multimedia -GIM-
B57: Grupo 5 | H57: Clasificación | AA57: 12 | AB57: =VLOOKUP($AA57,Dt!$AN$3:$AR$76,3,0) -> Grupo de investigación en química ambiental y tecnologías limpias - QUATELI
B58: Investigadores | H58: Presupuesto en plan de compras: | I58: =R86 -> 0 | AA58: 63 | AB58: =VLOOKUP($AA58,Dt!$AN$3:$AR$76,3,0) -> Grupo de Investigacion en Urologia HMC
B59: Nivel o alcance institucional de la entidad externa es : | H59: =IF(I58>0,$M$67,".") -> . | AA59: 73 | AB59: =VLOOKUP($AA59,Dt!$AN$3:$AR$76,3,0) -> Grupo de investigaciones sobre agentes radiológicos, biológicos y químicos
B60: Link Colciencias: | L60: =IFERROR(SEARCH(M60,C60,1),0) -> 0 | M60: http://scienti.colciencias.gov.co:8085 | AA60: 5 | AB60: =VLOOKUP($AA60,Dt!$AN$3:$AR$76,3,0) -> Grupo de Micología y Fitopatologia
AA61: 9 | AB61: =VLOOKUP($AA61,Dt!$AN$3:$AR$76,3,0) -> Grupo de Investigación en Hidrobiología Aplicada (HIDROBIA)
B62: Datos comprometidos. | AA62: 62 | AB62: =VLOOKUP($AA62,Dt!$AN$3:$AR$76,3,0) -> Grupo de Rehabilitacion HOMIC-UMNG
AA63: 60 | AB63: =VLOOKUP($AA63,Dt!$AN$3:$AR$76,3,0) -> Grupo de Salud Oral y Cirugia Maxilofacial
B64: Productividad comprometida | F64: $ Vicein: | G64: =IF(D64>0,Presupuesto!F172,0) -> 0 | I64: ="Limite en millones "&Integrantes!T4*0+70 -> Limite en millones 70 | K64: =IF(Productos!P60>0,1,0) ->  | AA64: 11 | AB64: =VLOOKUP($AA64,Dt!$AN$3:$AR$76,3,0) -> Grupo Integrado de Investigaciones en Química Bioorgánica (InQuiBio)
B65: * Las áreas sombreadas de color azul no son editables | L65: =SUM(I34,I40,I46,I52,I58) -> 0 | M65: <-- Sumatoria Presupuesto de entidades externas en Pg. General | AA65: 57 | AB65: =VLOOKUP($AA65,Dt!$AN$3:$AR$76,3,0) -> GRUPO NEUROCIENCIAS HMC
L66: =Presupuesto!H172 -> 0 | M66: <-- Sumatoria Presupuesto de entidades externas en Pg. Presupuesto | AA66: 55 | AB66: =VLOOKUP($AA66,Dt!$AN$3:$AR$76,3,0) -> Grupo para el estudio de enfermedades respiratorias en niños. Respira
B67: Observaciones o recomendaciones (no valida para calificación de Propuesta): | L67: =L65-L66 -> 0 | M67: =IF(L67=0,"."," Pendiente validar dif. $"&TEXT(L67,"###.###.###")) -> . | AA67: 32 | AB67: =VLOOKUP($AA67,Dt!$AN$3:$AR$76,3,0) -> HUMANITAS
AA68: 24 | AB68: =VLOOKUP($AA68,Dt!$AN$3:$AR$76,3,0) -> INAMPE
AA69: 19 | AB69: =VLOOKUP($AA69,Dt!$AN$3:$AR$76,3,0) -> INCONDIS
AA70: 43 | AB70: =VLOOKUP($AA70,Dt!$AN$3:$AR$76,3,0) -> INGENIERÍA, GEOMÁTICA Y EDUCACIÓN (IGE)
B71: Calificación del formato | AA71: 65 | AB71: =VLOOKUP($AA71,Dt!$AN$3:$AR$76,3,0) -> Insight
AA72: 61 | AB72: =VLOOKUP($AA72,Dt!$AN$3:$AR$76,3,0) -> Kokhlias.
B73: Observaciones : Ajustes y actualizaciones realizadas al formato. | I73: =MAX(I75:I214) -> 2019-09-05 | L73: Pts. Prueba | M73: 10 | O73: =IF(N77>2,O77,"") & IF(N78>2,"; "&O78,"")& IF(N76>2,"; "&O76,"") ->  | AA73: 50 | AB73: =VLOOKUP($AA73,Dt!$AN$3:$AR$76,3,0) -> LA TRAMOYA
AA74: 31 | AB74: =VLOOKUP($AA74,Dt!$AN$3:$AR$76,3,0) -> LIDERAZGO
B75: No | C75: Actualización, ajustes y cambios. | I75: Fecha | M75: =I30 -> 2 | AA75: 3 | AB75: =VLOOKUP($AA75,Dt!$AN$3:$AR$76,3,0) -> MATRIX
B76: =ROW()-63 -> 13 | C76: Ajuste de validaciones y opciones para convocatoria PAZ - SUE 2019 - 2 | I76: 2019-09-05 | M76: 3 | N76: =LEN(O76) -> 0 | O76: =CLEAN(C44) ->  | AA76: 21 | AB76: =VLOOKUP($AA76,Dt!$AN$3:$AR$76,3,0) -> Medios, Mediaciones y Procesos en Educación a Distancia
B77: =ROW()-63 -> 14 | C77: 0 | M77: 2 | N77: =LEN(O77) -> 0 | O77: =CLEAN(C38) ->  | AA77: 23 | AB77: =VLOOKUP($AA77,Dt!$AN$3:$AR$76,3,0) -> Modelos de simulación ICDIST
B78: 15 | C78: 0 | M78: 1 | N78: =LEN(O78) -> 0 | O78: =CLEAN(C32) ->  | AA78: 72 | AB78: =VLOOKUP($AA78,Dt!$AN$3:$AR$76,3,0) -> Nanofab
B79: 16 | C79: 0 | AA79: 22 | AB79: =VLOOKUP($AA79,Dt!$AN$3:$AR$76,3,0) -> PIREO "Procesos de Integración, Regionalización y Estructuras Organizacionales"
B80: 17 | C80: 0 | AA80: 39 | AB80: =VLOOKUP($AA80,Dt!$AN$3:$AR$76,3,0) -> PRODUCCION, INNOVACION Y TECNOLOGIA
B81: 18 | C81: 0 | M81: Int | AA81: 18 | AB81: =VLOOKUP($AA81,Dt!$AN$3:$AR$76,3,0) -> PROPPIO: Procesos organizacionales, programaticos y políticos para la promoción del desarrollo
B82: 19 | C82: 0 | M82: 1 | N82: =C32 -> 0 | R82: =Presupuesto!I118 -> 0 | AA82: 20 | AB82: =VLOOKUP($AA82,Dt!$AN$3:$AR$76,3,0) -> "PYDES" Pedagogía y didáctica en la educación superior
B83: 20 | C83: 0 | M83: 2 | N83: =CLEAN(C38) ->  | R83: =Presupuesto!I119 -> 0 | AA83: 17 | AB83: =VLOOKUP($AA83,Dt!$AN$3:$AR$76,3,0) -> Red de estudios sociojurídicos comparados y políticas públicas
B84: 21 | C84: 0 | M84: 3 | N84: =CLEAN(C44) ->  | R84: =Presupuesto!I120 -> 0 | AA84: 56 | AB84: =VLOOKUP($AA84,Dt!$AN$3:$AR$76,3,0) -> Salud y Comportamiento
B85: 22 | C85: 0 | M85: 4 | N85: =CLEAN(C50) ->  | R85: =Presupuesto!I121 -> 0 | AA85: 30 | AB85: =VLOOKUP($AA85,Dt!$AN$3:$AR$76,3,0) -> Sociedad, Estrategia y Seguridad
B86: 23 | C86: 0 | M86: 5 | N86: =CLEAN(C56) ->  | AA86: 37 | AB86: =VLOOKUP($AA86,Dt!$AN$3:$AR$76,3,0) -> TIGUM: Grupo de Investigacion en Telemedicina Universidad Militar
B87: 24 | C87: 0 | AA87: 38 | AB87: =VLOOKUP($AA87,Dt!$AN$3:$AR$76,3,0) -> VOLTA - Grupo de Materiales, Corrosión, Degradación y Protección (GMCDP)
B88: 25 | C88: 0
B89: 26 | C89: 0 | N89: =(N82&";"&N83&";"&N84&";"&N85&";"&N86) -> 0;;;;
B90: 27 | C90: 0
B91: 28 | C91: 0
B92: 29 | C92: 0
B93: 30 | C93: 0
B94: 31 | C94: 0
B95: =ROW()-49 -> 46
B96: =ROW()-49 -> 47

Sheet Resumen
A1: 2 | G1: *Pueden Ocultar las Filas que no se utilicen. | R1: https://www.ealde.es/niveles-riesgo-niveles-control/
C2: =General!B2 -> PRESENTACIÓN DE PROYECTOS DE INVESTIGACIÓN | D2: =General!$H$2 -> Fecha de Emisión: 2019/03/18 | E2: =General!$I$2 -> IN-IV-F-14 | G2: =SUM(G7:G19) -> 0 | H2: <=== N° palabras en total
D3: =General!$H$3 -> Revisión N°: 4 | E3: ="Página "&A1&" de "&Dt_TPG -> Página 2 de 11 | G3: Palabras | H3: Largo L
A5: 4.- | B5: # | C5: Resumen de la propuesta . | G5: =SUM(G6:G20) -> 0 | H5: =SUM(H6:H20) -> 0
B7: =ROW()-6 -> 1 | G7: =IF(C7="",0,LEN(TRIM(C7))-LEN(SUBSTITUTE(TRIM(C7)," ",""))+1) -> 0 | H7: =LEN(C7) -> 0
B8: =ROW()-6 -> 2 | G8: =IF(C8="",0,LEN(TRIM(C8))-LEN(SUBSTITUTE(TRIM(C8)," ",""))+1) -> 0 | H8: =LEN(C8) -> 0
B9: 3 | G9: =IF(C9="",0,LEN(TRIM(C9))-LEN(SUBSTITUTE(TRIM(C9)," ",""))+1) -> 0 | H9: =LEN(C9) -> 0
B10: 4 | G10: 0 | H10: 0
B11: 5 | G11: 0 | H11: 0
B12: 6 | G12: 0 | H12: 0
B13: 7 | G13: 0 | H13: 0
B14: 8 | G14: 0 | H14: 0
B15: 9 | G15: 0 | H15: 0
B16: 10 | G16: 0 | H16: 0
B17: 11 | G17: 0 | H17: 0
B18: 12 | G18: 0 | H18: 0
B19: 13 | G19: =IF(C19="",0,LEN(TRIM(C19))-LEN(SUBSTITUTE(TRIM(C19)," ",""))+1) -> 0 | H19: =LEN(C19) -> 0
C21: =IF(G2>250,I21, "-") -> -
A23: 5.- | B23: # | C23: Planteamiento y justificación de la propuesta. | G23: =SUM(G24:G302) -> 26 | H23: <=== Palabras en total
G24: =IF(C24="",0,LEN(TRIM(C24))-LEN(SUBSTITUTE(TRIM(C24)," ",""))+1) -> 0
B25: =ROW()-19 -> 6 | G25: 0
B26: =ROW()-19 -> 7 | G26: 0
B27: 8 | G27: 0
B28: 9 | G28: 0
B29: 10 | G29: 0
B30: 11 | G30: 0
B31: 12 | G31: 0
B32: 13 | G32: 0
B33: 14 | G33: 0
B34: 15 | G34: 0
G35: 0 | K35: Si hay duas en riesgos (Ir al documento)
A36: 5.b- | B36: # | C36: Tipos y probabilidad de ocurrencia de riesgos. | G36: =SUM(G37:G316) -> 13 | H36: <=== Palabras en total | K36: http://www.umng.edu.co/gestion-de-riesgos-institucional
G37: 0
C38: Identificación general del riesgo . Max 100 palabras | G38: =IF(C40="",0,LEN(TRIM(C40))-LEN(SUBSTITUTE(TRIM(C40)," ",""))+1) -> 0 | K38: Identificacion | L38: Impacto | M38: Probabilidad
J39: 1 | L39: Catastrofico | M39: Casi seguro
J40: 2 | L40: Mayor | M40: Probable
C41: Probabilidad | D41: Probable | J41: 3 | L41: Moderado | M41: Posible
C42: Impacto | D42: Insignificante | J42: 4 | L42: Menor | M42: Improbable
C43: Acciones de control, detección, mitigación o corrección. | J43: 5 | L43: Insignificante | M43: Rara vez
J44: 6
J45: 7
J46: 8
G52: =IF(C52="",0,LEN(TRIM(C52))-LEN(SUBSTITUTE(TRIM(C52)," ",""))+1) -> 0
G53: =IF(C53="",0,LEN(TRIM(C53))-LEN(SUBSTITUTE(TRIM(C53)," ",""))+1) -> 0
G54: =IF(C54="",0,LEN(TRIM(C54))-LEN(SUBSTITUTE(TRIM(C54)," ",""))+1) -> 0
C55: *Pueden Ocultar las Filas que no se utilicen ( Favor no eliminar filas). | G55: =IF(C55="",0,LEN(TRIM(C55))-LEN(SUBSTITUTE(TRIM(C55)," ",""))+1) -> 13

Sheet Estado_del_arte
A1: 3 | G1: *Pueden Ocultar las Filas que no se utilicen.
C2: =General!B2 -> PRESENTACIÓN DE PROYECTOS DE INVESTIGACIÓN | D2: =General!$H$2 -> Fecha de Emisión: 2019/03/18 | E2: =General!$I$2 -> IN-IV-F-14
D3: =General!$H$3 -> Revisión N°: 4 | E3: ="Página "&A1&" de "&Dt_TPG -> Página 3 de 11 | G3: =SUM(G7:G3528) -> 5 | H3: <== Total de palabras
A5: 6.- | B5: # | C5: Estado del arte de la propuesta o antecedentes. | G5: Largo
B7: =ROW()-6 -> 1 | C7: Este es un titulo Inicial. | G7: =IF(C7="",0,LEN(TRIM(C7))-LEN(SUBSTITUTE(TRIM(C7)," ",""))+1) -> 5
B8: =ROW()-6 -> 2 | G8: =IF(C8="",0,LEN(TRIM(C8))-LEN(SUBSTITUTE(TRIM(C8)," ",""))+1) -> 0
B9: 3 | G9: 0
B10: 4 | G10: 0
B11: 5 | G11: 0
B12: 6 | G12: 0
B13: 7 | G13: 0
B14: 8 | G14: 0
B15: 9 | G15: 0
B16: 10 | G16: 0
B17: 11 | G17: 0
B18: 12 | G18: 0
B19: 13 | G19: 0
B20: 14 | G20: 0
B21: 15 | G21: 0
B22: 16 | G22: 0
B23: 17 | G23: 0
B24: 18 | G24: 0
B25: 19 | G25: 0
B26: 20 | G26: =IF(C26="",0,LEN(TRIM(C26))-LEN(SUBSTITUTE(TRIM(C26)," ",""))+1) -> 0
B27: 21 | G27: 0
B28: 22 | G28: 0
B29: 23 | G29: 0
B30: 24 | G30: 0
B31: 25 | G31: 0
B32: 26 | G32: 0
B33: 27 | G33: 0
B34: 28 | G34: 0
B35: 29 | G35: 0
B36: 30 | G36: 0
B37: 31 | G37: 0
B38: 32 | G38: 0
B39: 33 | G39: 0
B40: 34 | G40: 0
B41: 35 | G41: 0
B42: 36 | G42: 0
B43: 37 | G43: 0
B44: 38 | G44: 0
B45: 39 | G45: =IF(C45="",0,LEN(TRIM(C45))-LEN(SUBSTITUTE(TRIM(C45)," ",""))+1) -> 0
B46: 40 | G46: 0
B47: 41 | G47: 0
B48: 42 | G48: 0
B49: 43 | G49: 0
B50: 44 | G50: 0
B51: 45 | G51: 0
B52: 46 | G52: 0
B53: 47 | G53: 0
B54: 48 | G54: 0
B55: 49 | G55: 0
B56: 50 | G56: 0
B57: 51 | G57: 0
B58: 52 | G58: 0
B59: 53 | G59: 0
B60: 54 | G60: 0
B61: 55 | G61: 0
B62: 56 | G62: 0
B63: 57 | G63: 0
B64: 58 | G64: 0
B68: *Pueden Ocultar las Filas que no se utilicen ( Favor no eliminar filas).

Sheet Objetivos
A1: 4
B2: =General!B2 -> PRESENTACIÓN DE PROYECTOS DE INVESTIGACIÓN | D2: =General!$H$2 -> Fecha de Emisión: 2019/03/18 | E2: =General!$I$2 -> IN-IV-F-14
D3: =General!$H$3 -> Revisión N°: 4 | E3: ="Página "&A1&" de "&Dt_TPG -> Página 4 de 11 | G3: =SUM(G7:G3500) -> 0 | H3: <== Total de palabras
A5: 7.- | B5: Objetivos de la propuesta. | G5: Largo
B7: *El especio del Item (0) Cero es para definir el objetivo general los demás corresponden a objetivos especificos
B8: =ROW()-8 -> 0 | G8: =IF(C8="",0,LEN(TRIM(C8))-LEN(SUBSTITUTE(TRIM(C8)," ",""))+1) -> 0
B9: =ROW()-8 -> 1 | G9: 0
B10: 2 | G10: 0
B11: 3 | G11: 0
B12: 4 | G12: 0
B13: 5 | G13: 0
B14: 6 | G14: 0
B15: 7 | G15: 0
B16: 8 | G16: 0
B17: 9 | G17: 0
B18: 10 | G18: 0
B19: 11 | G19: 0
B20: 12 | G20: 0
B21: 13 | G21: 0
B22: 14 | G22: 0
B23: 15 | G23: 0
B31: *Pueden Ocultar las Filas que no se utilicen ( Favor no eliminar filas).

Sheet Metodología
A1: 5 | G1: *Pueden Ocultar las Filas que no se utilicen.
C2: =General!B2 -> PRESENTACIÓN DE PROYECTOS DE INVESTIGACIÓN | D2: =General!$H$2 -> Fecha de Emisión: 2019/03/18 | E2: =General!$I$2 -> IN-IV-F-14
D3: =General!$H$3 -> Revisión N°: 4 | E3: ="Página "&A1&" de "&Dt_TPG -> Página 5 de 11 | G3: =SUM(G7:G3501) -> 0 | H3: <== Total de palabras
A5: 8.- | B5: # | C5: Metodología de la propuesta. | G5: Largo
B7: =ROW()-6 -> 1 | G7: =IF(C7="",0,LEN(TRIM(C7))-LEN(SUBSTITUTE(TRIM(C7)," ",""))+1) -> 0
B8: =ROW()-6 -> 2 | G8: =IF(C8="",0,LEN(TRIM(C8))-LEN(SUBSTITUTE(TRIM(C8)," ",""))+1) -> 0
B9: 3 | G9: 0
B10: 4 | G10: 0
B11: 5 | G11: 0
B12: 6 | G12: 0
B13: 7 | G13: 0
B14: 8 | G14: 0
B15: 9 | G15: 0
B16: 10 | G16: 0
B17: 11 | G17: 0
B18: 12 | G18: 0
B19: 13 | G19: 0
B20: 14 | G20: 0
B21: 15 | G21: 0
B22: 16 | G22: =IF(C22="",0,LEN(TRIM(C22))-LEN(SUBSTITUTE(TRIM(C22)," ",""))+1) -> 0
B23: 17 | G23: 0
B24: 18 | G24: 0
B25: 19 | G25: 0
B26: 20 | G26: 0
B27: 21 | G27: 0
B28: 22 | G28: 0
B29: 23 | G29: 0
B30: 24 | G30: 0
B31: 25 | G31: 0
B32: 26 | G32: 0
B33: 27 | G33: 0
B34: 28 | G34: 0
B35: 29 | G35: 0
B41: *Pueden Ocultar las Filas que no se utilicen. No eliminar filas.

Sheet Etica
A1: 5 | G1: *Pueden Ocultar las Filas que no se utilicen.
C2: =General!B2 -> PRESENTACIÓN DE PROYECTOS DE INVESTIGACIÓN | D2: =General!$H$2 -> Fecha de Emisión: 2019/03/18 | E2: =General!$I$2 -> IN-IV-F-14 | J2: Detalles:
D3: =General!$H$3 -> Revisión N°: 4 | E3: ="Página "&A1&" de "&Dt_TPG -> Página 5 de 11 | G3: =SUM(G5:G3524) -> 445 | H3: <== Total de palabras
C5: =$Q$13 -> .
A6: 8b.- | B6: 0 | C6: Consideraciones e implicaciones éticas de la investigación, bioética e integridad científica | E6: ( Si / No ) | G6: Palabras | M6: Validaciones
B7: 1 | C7: Proyecto de investigación en CTeI que involucra seres humanos | E7: No | G7: =IF(C7="",0,LEN(TRIM(C7))-LEN(SUBSTITUTE(TRIM(C7)," ",""))+1) -> 9 | H7: =I7-J7 -> 0 | I7: =IF(OR(E7="No",E7=0),0,1) -> 0 | J7: =MAX(I8:I23) -> 0 | L7: 1 | M7: =VLOOKUP($L7,$B$6:$J$68,7,0) -> 0 | N7: CTeI que involucra seres humanos | P7: =LEN(N7) -> 33 | Q7: =IF(M7=0,"",N7&"; ") -> 
B8: 1.1 | C8: ¿utiliza información exclusiva o reservada por parte de terceros y prevé su forma de acceso? | E8: No | G8: =IF(C8="",0,LEN(TRIM(C8))-LEN(SUBSTITUTE(TRIM(C8)," ",""))+1) -> 15 | I8: =IF(OR(E8="No",E8=0),0,1) -> 0 | L8: 2 | M8: 0 | N8: CTeI involucra animales | P8: 23
C9: =$J$2 -> Detalles: | G9: 1 | I9: =IF(OR(E9="No",E9=0),0,1) -> 0 | L9: 3 | M9: 0 | N9: CTeI involucra fuentes documentales | P9: 35
B10: 1.2 | C10: ¿utiliza información exclusiva o reservada por parte de terceros y prevé su forma de acceso? | E10: No | G10: 15 | I10: 0 | L10: 4 | M10: 0 | N10: CTeI involucra el ambiente | P10: 26
C11: =$J$2 -> Detalles: | G11: 1 | I11: 0 | L11: 5 | M11: 0 | N11: Aspectos de Integridad científica | P11: 33
B12: 1.3 | C12: ¿Utiliza datos personales? | E12: No | G12: 3 | I12: 0 | L12: 6 | M12: 0 | N12: otras razones que ameritan la revisión | P12: 39
C13: =$J$2 -> Detalles: | G13: 1 | I13: 0 | M13: =LEN(N13) -> 0 | N13: =Q7&Q8&Q9&Q10&Q11&Q12 ->  | Q13: =IF(M13>0,"Error, revisar el ítem: "&N13,".") -> .
B14: 1.4 | C14: ¿utiliza información confidencial? | E14: No | G14: 3 | I14: 0
C15: =$J$2 -> Detalles: | G15: 1 | I15: 0
B16: 1.5 | C16: ¿Requiere Consentimiento informado? | E16: No | G16: 3 | I16: 0
C17: =$J$2 -> Detalles: | G17: 1 | I17: 0
B18: 1.6 | C18: ¿indica un modelo de recopilación y conservación de información? | E18: No | G18: 9 | I18: 0
C19: =$J$2 -> Detalles: | G19: 1 | I19: 0
B20: 1.7 | C20: ¿Es una investigación con comunidades vulnerables (indígenas, afrodescendientes, menores o personal subordinado, entre otros)? | E20: No | G20: 14 | I20: 0
C21: =$J$2 -> Detalles: | G21: 1 | I21: 0
B22: 1.8 | C22: ¿Se evidencia conocimiento previo sobre aspectos políticos, económicos sociales y culturales de las comunidades indígenas? | E22: No | G22: 15 | I22: 0
C23: =$J$2 -> Detalles: | G23: 1 | I23: 0
B24: 1.9 | C24: ¿Realiza intervención a través cuestionarios, medicamentos, rutinas, modificación de actividades o estilo de vida? | G24: 14 | I24: 0
C25: =$J$2 -> Detalles: | G25: 1 | I25: 0
B26: 1.10 | C26: ¿incluye modelos de consentimiento informado, uso de datos personales u otro? | E26: No | G26: 11 | I26: 0
C27: =$J$2 -> Detalles: | G27: 1 | I27: 0
B28: 2 | C28: Proyecto de investigación en CTeI involucra animales | E28: No | G28: 7 | H28: =I28-J28 -> 0 | I28: 0 | J28: =MAX(I29:I40) -> 0
B29: 2.1 | C29: ¿Incluye un protocolo de investigación en animales? | E29: No | G29: 7 | I29: 0
C30: =$J$2 -> Detalles: | G30: 1 | I30: 0
B31: 2.2 | C31: ¿Incluye un protocolo de manipulación de recursos biológicos? | E31: No | G31: 8 | I31: 0
C32: =$J$2 -> Detalles: | G32: 1 | I32: 0
B33: 2.3 | C33: ¿Incluye un protocolo de manejo y disposición de sustancias peligrosas, agentes infecciosos y desechos? | E33: No | G33: 14 | I33: 0
C34: =$J$2 -> Detalles: | G34: 1 | I34: 0
B35: 2.4 | C35: ¿hay caracterización de los animales de experimentación criterios de selección de la especie? | E35: No | G35: 13 | I35: 0
C36: =$J$2 -> Detalles: | G36: 1 | I36: 0
B37: 2.5 | C37: ¿se prevé formación previa al equipo de laboratorio por parte del investigador sobre el cuidado permanente del animal y experimentación? | E37: No | G37: 20 | I37: 0
C38: =$J$2 -> Detalles: | G38: 1 | I38: 0
B39: 2.6 | C39: ¿se prevé declaración previa del origen y estado de los animales para experimentación? | E39: No | G39: 13 | I39: 0
C40: =$J$2 -> Detalles: | G40: 1 | I40: 0
B41: 3 | C41: El proyecto de investigación en CTeI involucra fuentes documentales | E41: No | G41: 9 | H41: =I41-J41 -> 0 | I41: 0 | J41: =SUM(I42:I47) -> 0
B42: 3.1 | C42: ¿hace referencia a la anonimización de datos? | E42: No | G42: 7 | I42: 0
C43: =$J$2 -> Detalles: | G43: 1 | I43: 0
B44: 3.2 | C44: ¿prevé conservación de datos de consulta? | E44: No | G44: 6 | I44: 0
C45: =$J$2 -> Detalles: | G45: 1 | I45: 0
B46: 3.3 | C46: ¿se identifica objetivamente que las bases de consulta de acceso abierto pueden ser calificadas de tal manera? | E46: No | G46: 17 | I46: 0
C47: =$J$2 -> Detalles: | G47: 1 | I47: 0
B48: 4 | C48: Proyecto de investigación en CTeI involucra el ambiente | E48: No | G48: 8 | H48: =I48-J48 -> 0 | I48: 0 | J48: =SUM(I49:I52) -> 0
B49: 4.1 | C49: ¿requiere permisos o licencias ambientales como recolección de especímenes, colecciones biológicas, manipulación o movilización de recursos bilógicas? | E49: No | G49: 17 | I49: 0
C50: =$J$2 -> Detalles: | G50: 1 | I50: 0
B51: 4.2 | C51: ¿requiere uso de recursos genéticos? | E51: No | G51: 5 | I51: 0
C52: =$J$2 -> Detalles: | G52: 1 | I52: 0
B53: 5 | C53: Aspectos de Integridad científica | E53: No | G53: 4 | H53: =I53-J53 -> 0 | I53: 0 | J53: =SUM(I54:I64) -> 0
B54: 5.1 | C54: ¿Podría darse un conflicto de interés no declarado entre quienes participan en el proyecto y/o las instituciones coejecutoras y/o las instancias de aprobación y seguimiento? | E54: No | G54: 25 | I54: 0
C55: =$J$2 -> Detalles: | G55: 1 | I55: 0
B56: 5.2 | C56: ¿Hay indicios de que se han fabricado o plagiado datos en la investigación? | E56: No | G56: 13 | I56: 0
C57: =$J$2 -> Detalles: | G57: 1 | I57: 0
B58: 5.3 | C58: ¿se presume que se incluye personal vinculado al proyecto que objetivamente podría no aportar técnica ni intelectualmente al proyecto? | E58: No | G58: 19 | I58: 0
C59: =$J$2 -> Detalles: | G59: 1 | I59: 0
B60: 5.4 | C60: ¿se estima que los recursos y tiempos de dedicación solicitados exceden lo necesario para financiación del proyecto o se prevé que los productos son escasos ante las capacidades y alcance de la propuesta? | E60: No | G60: 33 | I60: 0
C61: =$J$2 -> Detalles: | G61: 1 | I61: 0
B62: 5.5 | C62: ¿Podría darse un conflicto de interés no declarado entre quienes participan en el proyecto y/o las instituciones coejecutoras y/o las instancias de aprobación y seguimiento? | E62: No | G62: 25 | I62: 0
C63: =$J$2 -> Detalles: | G63: 1 | I63: 0
E64: No | G64: 0 | I64: 0
B65: 6 | C65: Existen otras razones que ameritan la revisión por parte del comité de ética de la investigación (indique cuales). | E65: No | G65: 18 | H65: =I65-J65 -> 0 | I65: 0 | J65: =SUM(I66:I68) -> 0
B66: 6.1 | C66: =$J$2 -> Detalles: | G66: 1 | I66: 0
C67: especificaciones de ética de la investigación, bioética e integridad científica que deban ser ampliadas en detalle (indique cuales). | E67: No | G67: 18 | I67: 0
B68: 6.1 | C68: =$J$2 -> Detalles: | G68: =IF(C68="",0,LEN(TRIM(C68))-LEN(SUBSTITUTE(TRIM(C68)," ",""))+1) -> 1 | I68: 0
I69: 0
G70: =IF(C70="",0,LEN(TRIM(C70))-LEN(SUBSTITUTE(TRIM(C70)," ",""))+1) -> 0 | I70: 0
G71: =IF(C71="",0,LEN(TRIM(C71))-LEN(SUBSTITUTE(TRIM(C71)," ",""))+1) -> 0

Sheet Cronograma
A1: 6 | I1: *Pueden Ocultar las Filas que no se utilicen. | L1: =("* Actualmente tiene "&G7&" meses de ejecución no superar los "& G5&" meses.") -> * Actualmente tiene 12 meses de ejecución no superar los 24 meses.
B2: =General!B2 -> PRESENTACIÓN DE PROYECTOS DE INVESTIGACIÓN | D2: =General!$H$2 -> Fecha de Emisión: 2019/03/18 | E2: =General!$I$2 -> IN-IV-F-14
D3: =General!$H$3 -> Revisión N°: 4 | E3: ="Página "&A1&" de "&Dt_TPG -> Página 6 de 11
A5: 9.- | B5: Cronograma de actividades a desarrollar | E5: =Integrantes!J6 -> 24 | G5: =E5 -> 24 | H5: Meses Maximo | I5: Palabras
B7: No | C7: Descripción básica de la actividad | D7: Mes de Inicio | E7: Duración en mes | G7: =MAX(G8:G27) -> 12 | H7: Meses de ejecición actuales | I7: =SUM(I8:I27) -> 0 | J7: <== Total de palabras
B8: =ROW()-7 -> 1 | D8: 0 | E8: 12 | G8: =SUM(D8:E8) -> 12 | I8: =IF(C8="",0,LEN(TRIM(C8))-LEN(SUBSTITUTE(TRIM(C8)," ",""))+1) -> 0
B9: =ROW()-7 -> 2 | D9: 12 | E9: 0 | G9: =SUM(D9:E9) -> 12 | I9: =IF(C9="",0,LEN(TRIM(C9))-LEN(SUBSTITUTE(TRIM(C9)," ",""))+1) -> 0
B10: 3 | G10: 0 | I10: 0
B11: 4 | G11: 0 | I11: 0
B12: 5 | G12: 0 | I12: 0
B13: 6 | G13: 0 | I13: 0
B14: 7 | G14: 0 | I14: 0
B15: 8 | G15: 0 | I15: 0
B16: 9 | G16: 0 | I16: 0
B17: 10 | G17: 0 | I17: 0
B18: 11 | G18: 0 | I18: 0
B19: 12 | G19: 0 | I19: 0
B20: 13 | G20: 0 | I20: 0
B21: 14 | G21: 0 | I21: 0
B22: 15 | G22: 0 | I22: 0
B23: 16 | G23: 0 | I23: 0
B24: 17 | G24: 0 | I24: 0
B25: 18 | G25: 0 | I25: 0
B26: 19 | G26: 0 | I26: 0
B27: 20 | G27: 0 | I27: 0
C29: =IF(G7>G5,L1,".") -> .
B33: *Pueden Ocultar las Filas que no se utilicen. No eliminen filas

Sheet Crono (hidden)
A1: 6
B2: =General!B2 -> PRESENTACIÓN DE PROYECTOS DE INVESTIGACIÓN | P2: =General!$H$2 -> Fecha de Emisión: 2019/03/18 | Q2: =General!$I$2 -> IN-IV-F-14
P3: =General!$H$3 -> Revisión N°: 4 | Q3: ="Página "&A1&" de "&Dt_TPG -> Página 6 de 11
A5: 9.- | B5: Cronograma de actividades a desarrollar
B8: Actividades - Meses de ejecucion | D8: 1 | E8: =D8+1 -> 2 | F8: 3 | G8: 4 | H8: 5 | I8: 6 | J8: 7 | K8: 8 | L8: 9 | M8: 10 | N8: 11 | O8: 12 | P8: Inicia | Q8: Termina
B11: =TEXT(ROW()-10,"00") -> 01
B12: =TEXT(ROW()-10,"00") -> 02
B13: 03
B14: 04
B15: 05
B16: 06
B17: 07
B18: 08
B19: 09
B20: 10
B21: 11
B22: 12
B23: 13
B24: 14
B25: 15
B26: 16
B27: 17
B28: 18
B29: 19
B30: 20

Sheet Integrantes
A1: 8
B3: =Productos!B2 -> PRESENTACIÓN DE PROYECTOS DE INVESTIGACIÓN | F3: =General!$H$2 -> Fecha de Emisión: 2019/03/18 | G3: IN-IV-F-14 | M3: Ok | N3: Puntos | O3: IP Max | P3: IP Min | Q3: CO Max | R3: CO Min | S3: CR
F4: =General!$H$3 -> Revisión N°: 4 | G4: ="Página "&A1&" de "&Dt_TPG -> Página 8 de 11 | H4: ="Página "&A2&" de "&Dt_TPG -> Página de 11 | J4: 20 | M4: 1 | N4: =S8 -> 0 | O4: =VLOOKUP($M$4,$M$8:$T$23,3,0) -> 40 | P4: =VLOOKUP($M$4,$M$8:$T$23,4,0) -> 0 | Q4: =VLOOKUP($M$4,$M$8:$T$23,5,0) -> 40 | R4: =VLOOKUP($M$4,$M$8:$T$23,6,0) -> 0 | S4: =VLOOKUP($M$4,$M$8:$T$23,2,0) -> 20 | T4: =VLOOKUP($M$4,$M$8:$T$23,8,0) -> 25
A6: 11.- | B6: Investigadores Integrantes del proyecto. | F6: =Cel_TP -> PAZ | G6: =Cel_Fac -> NT | H6: =V_Max -> 0 | J6: =IF(F6="INV",12,24) -> 24 | W6: * Cuadro para tener relación entre Fincion y Tipo de Vinculo
B8: No | C8: Identificacion | D8: Nombres | E8: Apellidos | F8: Nivel Academico | G8: Mes | H8: Horas | J8: Max | K8: Min | M8: Ok | N8: Puntos | O8: IP Max | P8: IP Min | Q8: CO Max | R8: CO Min | S8: =H6 -> 0 | T8: Valores | W8: Funcion | X8: y | Y8: Vinculo | Z8: Mes | AA8: Fila
B9: 1 | D9: Luis Alexander | G9: 12 | H9: 25 | J9: =O4 -> 40 | K9: =P4 -> 0 | L9: =IF(OR(H9>J9,H9<K9),1,0) -> 0 | M9: =IF(SUM(M10:M23)=0,1,IF(N9=S9,1,0)) -> 1 | N9: 20 | O9: 40 | P9: 0 | Q9: =O9 -> 40 | R9: =P9 -> 0 | S9: =INT(S8/20)*20 -> 0 | T9: 25 | W9: Investigador Principal | X9: =$X$8&"9:"&$X$8&"10" -> y9:y10 | Y9: Doc. Carrera TC | Z9: =G9 -> 12 | AA9: =ROW() -> 9
C10: Funcion : | D10: Investigador Principal | J10: =IFERROR(VLOOKUP($F10,V_IdNBC,2,0),0) -> 0 | L10: Doc. Carrera MT | M10: =IF(N10=S10,1,0) -> 0 | N10: 40 | O10: 40 | P10: 0 | Q10: =O10 -> 40 | R10: 0 | S10: =INT(S9/20)*20 -> 0 | T10: 50 | W10: Investigador Principal | X10: =$X$8&"9:"&$X$8&"10" -> y9:y10 | Y10: Doc. Carrera MT | Z10: =Z9 -> 12 | AA10: =ROW() -> 10
C11: CvLac: | J11: =IF($D10=$W$19,20,IFERROR(VLOOKUP($E10,$Y$8:$Z$20,2,0),$G$9)) -> 12 | K11: =IF($D10=$W$11,IF($E10=$Y$13,10,12),0) -> 0 | M11: 0 | N11: 60 | O11: 40 | P11: 0 | Q11: 40 | R11: 0 | S11: 0 | T11: 75 | W11: Coinvestigador | X11: =$X$8&"11:"&$X$8&"14" -> y11:y14 | Y11: Doc. Carrera TC | Z11: =Z10 -> 12 | AA11: =ROW() -> 11
C12: Contribuciones | M12: 0 | N12: 80 | O12: 40 | P12: 0 | Q12: 40 | R12: 0 | S12: 0 | T12: 100 | W12: Coinvestigador | X12: =$X$8&"11:"&$X$8&"14" -> y11:y14 | Y12: Doc. Carrera MT | Z12: =Z11 -> 12 | AA12: =ROW() -> 12
B13: 2 | G13: 12 | H13: 0 | J13: =J9 -> 40 | K13: =IF(E14=$Y$14,0,IF($D14="Coinvestigador",$R$4,0)) -> 0 | L13: =IF(OR(H13>J13,H13<K13),1,0) -> 0 | M13: 0 | N13: =N12+20 -> 100 | O13: 40 | P13: 0 | Q13: 40 | R13: 0 | S13: 0 | T13: 100 | W13: Coinvestigador | X13: =$X$8&"11:"&$X$8&"14" -> y11:y14 | Y13: Doc. Ocasional | Z13: 10 | AA13: =ROW() -> 13
B14: =+B13 -> 2 | C14: Funcion : | D14: Coinvestigador | E14: Doc. Ocasional | J14: =IFERROR(VLOOKUP($F14,V_IdNBC,2,0),0) -> 0 | K14: =IF($D14=$K$10,"Ok","") ->  | M14: 0 | N14: =N13+20 -> 120 | O14: 40 | P14: 0 | Q14: 40 | R14: 0 | S14: 0 | T14: 100 | W14: Coinvestigador | X14: =$X$8&"11:"&$X$8&"14" -> y11:y14 | Y14: Externo a la UMNG | Z14: =Z12 -> 12 | AA14: =ROW() -> 14
B15: =+B14 -> 2 | C15: CvLac: | J15: =IF($D14=$W$19,20,IFERROR(VLOOKUP($E14,$Y$8:$Z$20,2,0),$G$9)) -> 10 | K15: =IF($D14=$W$11,IF($E14=$Y$13,10,12),0) -> 10 | M15: 0 | N15: =N14+20 -> 140 | O15: 40 | P15: 0 | Q15: 40 | R15: 0 | S15: 0 | T15: 100 | W15: Asesor | X15: =$X$8&AA15&":"&$X$8&AA15 -> y15:y15 | Y15: Externo a la UMNG | Z15: =Z14 -> 12 | AA15: =ROW() -> 15
C16: =C12 -> Contribuciones | M16: 0 | N16: =N15+20 -> 160 | O16: 40 | P16: 0 | Q16: 40 | R16: 0 | S16: 0 | T16: 100 | W16: Investigador UNAL | X16: y16:y16 | Y16: Investigador Externo | Z16: 10 | AA16: =ROW() -> 16
B17: =B13+1 -> 3 | G17: 12 | J17: =J13 -> 40 | K17: =IF(E18=$Y$14,0,IF($D18="Coinvestigador",$R$4,0)) -> 0 | L17: =IF(OR(H17>J17,H17<K17),1,0) -> 0 | M17: 0 | N17: =N16+20 -> 180 | O17: 40 | P17: 0 | Q17: 40 | R17: 0 | S17: 0 | T17: 100 | W17: Investigador UDFJC | X17: y17:y17 | Y17: Investigador Externo | Z17: 10 | AA17: =ROW() -> 17
B18: =+B17 -> 3 | C18: Funcion : | D18: Coinvestigador | E18: Externo a la UMNG | J18: =IFERROR(VLOOKUP($F18,V_IdNBC,2,0),0) -> 0 | K18: =IF($D18=$K$10,"Ok","") ->  | M18: 0 | N18: 200 | O18: 40 | P18: 0 | Q18: 40 | R18: 0 | S18: 0 | T18: 250 | W18: Investigador UPN | X18: y18:y18 | Y18: Investigador Externo | Z18: 10 | AA18: =ROW() -> 18
B19: =+B18 -> 3 | C19: CvLac: | J19: =IF($D18=$W$19,20,IFERROR(VLOOKUP($E18,$Y$8:$Z$20,2,0),$G$9)) -> 12 | K19: =IF($D18=$W$11,IF($E18=$Y$13,10,12),0) -> 12 | M19: 0 | N19: =N18+20 -> 220 | O19: 40 | P19: 0 | Q19: 40 | R19: 0 | S19: =INT(S18/20)*20 -> 0 | T19: 250 | W19: Investigador CMC | X19: y19:y19 | Y19: Investigador Externo | Z19: 10 | AA19: =ROW() -> 19
C20: =C16 -> Contribuciones | M20: 0 | N20: =N19+20 -> 240 | O20: 40 | P20: 0 | Q20: 40 | R20: 0 | S20: =INT(S19/20)*20 -> 0 | T20: 250 | W20: Estudiante | X20: y20:y20 | Y20: Auxiliar de Investigación | Z20: 10 | AA20: =ROW() -> 20
B21: =B17+1 -> 4 | G21: 12 | J21: =IF($E22=$Y$15,IF($D22=$W$15,0,40),IF($D22="Coinvestigador",J$9/2,40)) -> 40 | K21: =IF(E22=$Y$14,0,IF($D22="Coinvestigador",$R$4,0)) -> 0 | L21: =IF(OR(H21>J21,H21<K21),1,0) -> 0 | M21: 0 | N21: =N20+20 -> 260 | O21: 40 | P21: 0 | Q21: 40 | R21: 0 | S21: =INT(S20/20)*20 -> 0 | T21: 250
B22: =+B21 -> 4 | C22: Funcion : | D22: Investigador UPN | E22: Investigador Externo | J22: =IFERROR(VLOOKUP($F22,V_IdNBC,2,0),0) -> 0 | K22: =IF($D22=$K$10,"Ok","") ->  | M22: 0 | N22: =N21+20 -> 280 | O22: 40 | P22: 0 | Q22: 40 | R22: 0 | S22: =INT(S21/20)*20 -> 0 | T22: 250
B23: =+B22 -> 4 | C23: CvLac: | J23: =IF($D22=$W$19,20,IFERROR(VLOOKUP($E22,$Y$8:$Z$20,2,0),$G$9)) -> 10 | K23: =IF($D22=$W$11,IF($E22=$Y$13,10,12),0) -> 0 | M23: 0 | N23: =N22+20 -> 300 | O23: 40 | P23: 0 | Q23: 40 | R23: 0 | S23: =INT(S22/20)*20 -> 0 | T23: 250
C24: =C20 -> Contribuciones
B25: =B21+1 -> 5 | G25: 12 | J25: =IF($E26=$Y$15,IF($D26=$W$15,0,40),IF($D26="Coinvestigador",J$9/2,40)) -> 40 | K25: =IF(E26=$Y$14,0,IF($D26="Coinvestigador",$R$4,0)) -> 0 | L25: =IF(OR(H25>J25,H25<K25),1,0) -> 0 | M25: N | N25: Tipos | O25: 1 | P25: 2 | Q25: 3 | R25: No | W25: Clasificación de grupo máximo asociado a la propuesta | Z25: =Gp_Max -> C
B26: =+B25 -> 5 | C26: Funcion : | D26: Investigador UDFJC | E26: OPS - Prestación Servicios | J26: =IFERROR(VLOOKUP($F26,V_IdNBC,2,0),0) -> 0 | K26: =IF($D26=$K$10,"Ok","") ->  | M26: 1 | N26: Investigador Principal | R26: =COUNTIF($D$10:$D$49,$N26) -> 1 | Z26: Inv IP
B27: =+B26 -> 5 | C27: CvLac: | J27: =IF($D26=$W$19,20,IFERROR(VLOOKUP($E26,$Y$8:$Z$20,2,0),$G$9)) -> 12 | K27: =IF($D26=$W$11,IF($E26=$Y$13,10,12),0) -> 0 | M27: 2 | N27: Coinvestigador | R27: 2 | W27: Grupos | X27: Millon | Y27: Entre | Z27: Max | AA27: Min
C28: =C24 -> Contribuciones | M28: 3 | N28: Asistente OPS | R28: 1 | W28: Avalados | X28: 25 | Y28: 20-39 | AD28: 8 | AE28: 4
B29: =B25+1 -> 6 | F29: Doctorado | G29: 12 | J29: =IF($E30=$Y$15,IF($D30=$W$15,0,40),IF($D30="Coinvestigador",J$9/2,40)) -> 40 | K29: =IF(E30=$Y$14,0,IF($D30="Coinvestigador",$R$4,0)) -> 0 | L29: =IF(OR(H29>J29,H29<K29),1,0) -> 0 | M29: 4 | N29: Joven Investigador | R29: 0 | W29: No reconicido | X29: 25 | Y29: 20-39 | AD29: 12 | AE29: 8
B30: =+B29 -> 6 | C30: Funcion : | D30: Auxiliar de Investigación. | E30: Estímulo a estudiante | J30: =IFERROR(VLOOKUP($F30,V_IdNBC,2,0),0) -> 0 | K30: =IF($D30=$K$10,"Ok","") ->  | M30: 5 | N30: Asistente Graduado | R30: 0 | W30: Reconocidos | X30: 50 | Y30: 40-59 | AD30: 16 | AE30: 12
B31: =+B30 -> 6 | C31: CvLac: | J31: =IF($D30=$W$19,20,IFERROR(VLOOKUP($E30,$Y$8:$Z$20,2,0),$G$9)) -> 12 | K31: =IF($D30=$W$11,IF($E30=$Y$13,10,12),0) -> 0 | M31: 6 | N31: Asesor | R31: 0 | W31: Mayores de Cat. C | X31: 75 | Y31: 60-79 | AD31: 20 | AE31: 16
C32: =C28 -> Contribuciones | M32: 7 | N32: Estudiante | R32: 0 | W32: Mayores de Cat. C | X32: 100 | Y32: 80-199 | AD32: 24 | AE32: 10
B33: =B29+1 -> 7 | G33: 12 | J33: =IF($E34=$Y$15,IF($D34=$W$15,0,40),IF($D34="Coinvestigador",J$9/2,40)) -> 40 | K33: =IF(E34=$Y$14,0,IF($D34="Coinvestigador",$R$4,0)) -> 0 | L33: =IF(OR(H33>J33,H33<K33),1,0) -> 0 | W33: IMP | X33: 250 | Y33: 200-300
B34: =+B33 -> 7 | C34: Funcion : | J34: =IFERROR(VLOOKUP($F34,V_IdNBC,2,0),0) -> 0 | K34: =IF($D34=$K$10,"Ok","") -> Ok | M34: N | N34: Nivel | R34: No
B35: =+B34 -> 7 | C35: CvLac: | J35: =IF($D34=$W$19,20,IFERROR(VLOOKUP($E34,$Y$8:$Z$20,2,0),$G$9)) -> 12 | K35: =IF($D34=$W$11,IF($E34=$Y$13,10,12),0) -> 0 | N35: Postdoctorado | R35: =IF($F$9=N35,1,0) -> 0 | V35: No | W35: Mensaje de Error
C36: =C32 -> Contribuciones | N36: Doctorado | R36: =IF($F$9=N36,1,0) -> 0 | V36: 0
B37: =B33+1 -> 8 | F37: Esp. Tecnológica | G37: 12 | J37: =IF($E38=$Y$15,IF($D38=$W$15,0,40),IF($D38="Coinvestigador",J$9/2,40)) -> 40 | K37: =IF(E38=$Y$14,0,IF($D38="Coinvestigador",$R$4,0)) -> 0 | L37: =IF(OR(H37>J37,H37<K37),1,0) -> 0 | N37: Maestría | R37: =IF($F$9=N37,1,0) -> 0 | V37: 1 | W37: Error: El lider del proyecto debe tener titulación doctoral.
B38: =+B37 -> 8 | C38: Funcion : | D38: Asistente OPS | E38: OPS - Prestación Servicios | J38: =IFERROR(VLOOKUP($F38,V_IdNBC,2,0),0) -> 0 | K38: =IF($D38=$K$10,"Ok","") ->  | V38: 2
B39: =+B38 -> 8 | C39: CvLac: | J39: =IF($D38=$W$19,20,IFERROR(VLOOKUP($E38,$Y$8:$Z$20,2,0),$G$9)) -> 12 | K39: =IF($D38=$W$11,IF($E38=$Y$13,10,12),0) -> 0
C40: =C36 -> Contribuciones | M40: ERR | N40: =VLOOKUP(Y40,M41:O50,2,0) ->  | T40: Validaciones | Y40: =MAX(Y41:Y48) -> 0 | AC40: =Presupuesto!H24 -> 0
B41: =B37+1 -> 9 | G41: 12 | J41: =IF($E42=$Y$15,IF($D42=$W$15,0,40),IF($D42="Coinvestigador",J$9/2,40)) -> 40 | K41: =IF(E42=$Y$14,0,IF($D42="Coinvestigador",$R$4,0)) -> 0 | L41: =IF(OR(H41>J41,H41<K41),1,0) -> 0 | M41: 0 | T41: 1 | U41: Validacion IMP Lider doctoral | Y41: =IF(F6="IMP",IF(SUM(R35:R36)=0,1,0),0) -> 0 | AC41: =Presupuesto!G172 -> 0
B42: =+B41 -> 9 | C42: Funcion : | J42: =IFERROR(VLOOKUP($F42,V_IdNBC,2,0),0) -> 0 | K42: =IF($D42=$K$10,"Ok","") -> Ok | M42: 1 | N42: El Investigador Principal debe tener doctorado para proyecto de Alto Impacto. | T42: 2 | U42: No hay integrantes | Y42: =IF(Z42=0,2,0) -> 0 | Z42: =SUM(H9,H13,H17,H21,H25,H29,H33,H37,H41,H45) -> 25
B43: =+B42 -> 9 | C43: CvLac: | J43: =IF($D42=$W$19,20,IFERROR(VLOOKUP($E42,$Y$8:$Z$20,2,0),$G$9)) -> 12 | K43: =IF($D42=$W$11,IF($E42=$Y$13,10,12),0) -> 0 | M43: 2 | N43: Error : hasta el momento no tiene integrantes con horas | T43: 3 | U43: Validación de las horas de investigación estan bien | Y43: =IF(SUM(L45,L41,L37,L33,L29,L25,L21,L17,L13,L9)>0,2,0) -> 0
C44: =C40 -> Contribuciones | M44: 3 | N44: Error : hay integrantes con las horas mal diligenidas | T44: 4 | U44: Validacion de contrapartida | Y44: =IF(AC40=AC41,0,4) -> 0
B45: =B41+1 -> 10 | G45: 12 | J45: =IF($E46=$Y$15,IF($D46=$W$15,0,40),IF($D46="Coinvestigador",J$9/2,40)) -> 40 | K45: =IF(E46=$Y$14,0,IF($D46="Coinvestigador",$R$4,0)) -> 0 | L45: =IF(OR(H45>J45,H45<K45),1,0) -> 0 | M45: 4 | N45: Error: debe poner atención en los integrantes IP o CO que carge de contrapartida | T45: 5 | U45: Validacion si hay asistente graduado en INV | Y45: =IF(AND(Z45="INV",R30>0),5,0) -> 0 | Z45: =F6 -> PAZ | AB45: =SUM(Presupuesto!Q39:Q40) -> 0
B46: =+B45 -> 10 | C46: Funcion : | J46: =IFERROR(VLOOKUP($F46,V_IdNBC,2,0),0) -> 0 | K46: =IF($D46=$K$10,"Ok","") -> Ok | M46: 5 | N46: Error: No puede seleccionar Asistente graduado en proyectos INV | T46: 6 | U46: Validacion Que Asistentes graduados esten en los dos lados | Y46: =IF(R30<=AB45,0,6) -> 0
B47: =+B46 -> 10 | C47: CvLac: | J47: =IF($D46=$W$19,20,IFERROR(VLOOKUP($E46,$Y$8:$Z$20,2,0),$G$9)) -> 12 | K47: =IF($D46=$W$11,IF($E46=$Y$13,10,12),0) -> 0 | M47: 6 | N47: Error Hay Asistentes graduados sin diligenciar en presupuesto o integrantes Verificar | T47: 7
C48: =C44 -> Contribuciones | M48: 7 | T48: 8
M49: 8 | T49: 9
M50: 9 | T50: 10
C52: Su termino de participacion en el proyecto sera interrumpido en razón de su vinculación contractual ver numeral No3 de la convocatoria; con la limintante de 10 meses maximo por vigencia

Sheet Productos
A1: 7
B2: =Cronograma!B2 -> PRESENTACIÓN DE PROYECTOS DE INVESTIGACIÓN | G2: =General!$H$2 -> Fecha de Emisión: 2019/03/18 | H2: =General!$I$2 -> IN-IV-F-14
G3: =General!$H$3 -> Revisión N°: 4 | H3: ="Página "&A1&" de "&Dt_TPG -> Página 7 de 11 | I3: =IF(H5="INV",4,5) -> 5 | K3: N | L3: Cod | M3: Abreviatura | N3: IdClase | O3: INV | P3: IMP | Q3: Clase | R3: Tipo de Productos | S3: Indicadores | T3: o | U3: Ok | V3: IdClase
G4: =IF(H5="INV",3,4) -> 4 | K4: =ROW()-3 -> 1 | L4: 101 | M4: 101-Libro | N4: GNC | O4: 1 | P4: 1 | Q4: Productos Generacion Nuevo Conocimiento (Minimo 3 productos). | S4: Soportes de sometimiento Evaluation positiva del libro por parte de los pares academicos | V4: 0
A5: 10.- | B5: Productividad comprometida | F5: Tipo de proyecto: | H5: =General!$H$1 -> PAZ | K5: =ROW()-3 -> 2 | L5: 102 | M5: 102-Capitulo de libro | N5: GNC | O5: 1 | P5: 1 | Q5: Productos Generacion Nuevo Conocimiento (Minimo 3 productos). | S5: Soportes de sometimiento Copia del capitulo, portada y pagina legal del libro en el que fue publicado. | V5: 0
C6: Selección de topes comprometidos | K6: 3 | L6: 103 | M6: 103-Articulo en revista cientifica | N6: GNC | O6: 1 | P6: 1 | Q6: Productos Generacion Nuevo Conocimiento (Minimo 3 productos). | S6: Soportes de sometimiento, aceptacion y/o publicacion. | V6: 0
B7: N° | C7: Resultado/Producto esperado | D7: Descripción o detalles del producto esperado | E7: Indicador | F7: Cantidad | G7: Clase | H7: Beneficiario | K7: 4 | L7: 104 | M7: 104-Articulo en revista cientifica indexada en bases de datos de caracter internacional | N7: GNC | O7: 1 | P7: 1 | Q7: Productos Generacion Nuevo Conocimiento (Minimo 3 productos). | S7: Soportes de sometimiento, aceptacion y/o publicacion. | V7: 0
B8: =ROW()-7 -> 1 | E8: =IFERROR(VLOOKUP($I8,$L$3:$V$55,8,0)," ") ->  | F8: 1 | G8: =IFERROR(VLOOKUP($I8,L3:V55,3)," ") ->  | I8: =IFERROR(ABS(LEFT(C8,3)),0) -> 0 | K8: 5 | L8: 105 | M8: 105-Producto cartografico (mapa, planos, cartas, etc.). | N8: GNC | O8: 1 | P8: 1 | Q8: Productos Generacion Nuevo Conocimiento (Minimo 3 productos). | S8: Copia del material. | V8: 0
B9: =ROW()-7 -> 2 | E9: =IFERROR(VLOOKUP($I9,$L$3:$V$55,8,0)," ") ->  | F9: 1 | G9: =IFERROR(VLOOKUP($I9,L4:V56,3)," ") ->  | I9: =IFERROR(ABS(LEFT(C9,3)),0) -> 0 | K9: 6 | L9: 106 | M9: 106-Proyecto de investigation para presentar a Convocatorias financiadas por entidades externas. | N9: GNC | O9: 1 | P9: 1 | Q9: Productos Generacion Nuevo Conocimiento (Minimo 3 productos). | S9: Propuesta de investigacion presentada por los integrantes de la alianza como miembros de las universidades del SUE, y soportes de presentation a Convocatorias financiadas por entidades externas (Colciencias, Regalias, Erasmus, etc). | V9: 0
B10: 3 | F10: 1 | G10: =IFERROR(VLOOKUP($I10,L5:V56,3)," ") ->  | I10: 0 | K10: 7 | L10: 201 | M10: 201-Exposiciones en recintos de prestigio, con catalogo y/o memoria en medio audiovisual | N10: ART | O10: 1 | P10: 1 | Q10: Productos de creacion artistica, memoria fotografica y/o audiovisual de los objetos de arte desarrollados en el proyecto (opcional). | S10: Certification de la Facultad de Artes o registros correspondientes ante la autoridad competente. | V10: 0
B11: 4 | F11: 1 | G11: =IFERROR(VLOOKUP($I11,L6:V56,3)," ") ->  | I11: 0 | K11: 8 | L11: 202 | M11: 202-Audiciones de concierto en recintos de prestigio, con programa y memoria de audio | N11: ART | O11: 1 | P11: 1 | Q11: Productos de creacion artistica, memoria fotografica y/o audiovisual de los objetos de arte desarrollados en el proyecto (opcional). | S11: Certificacion de la Facultad de Artes o registros correspondientes ante la autoridad competente. | V11: 0
B12: 5 | F12: 1 | G12: =IFERROR(VLOOKUP($I12,L7:V56,3)," ") ->  | I12: 0 | K12: 9 | L12: 203 | M12: 203-Formato audiovisual listo para publication | N12: ART | O12: 1 | P12: 1 | Q12: Productos de creacion artistica, memoria fotografica y/o audiovisual de los objetos de arte desarrollados en el proyecto (opcional). | S12: Certificacion de la Facultad de Artes o registros correspondientes ante la autoridad competente. | V12: 0
B13: 6 | F13: 1 | G13: =IFERROR(VLOOKUP($I13,L8:V56,3)," ") ->  | I13: 0 | K13: 10 | L13: 204 | M13: 204-Partitura final lista para impresion | N13: ART | O13: 1 | P13: 1 | Q13: Productos de creacion artistica, memoria fotografica y/o audiovisual de los objetos de arte desarrollados en el proyecto (opcional). | S13: Certificacion de la Facultad de Artes o registros correspondientes ante la autoridad competente. | V13: 0
B14: 7 | F14: 1 | G14: =IFERROR(VLOOKUP($I14,L9:V56,3)," ") ->  | I14: 0 | K14: 11 | L14: 205 | M14: 205-Grabacion lista para publicacion | N14: ART | O14: 1 | P14: 1 | Q14: Productos de creacion artistica, memoria fotografica y/o audiovisual de los objetos de arte desarrollados en el proyecto (opcional). | S14: Certificacion de la Facultad de Artes o registros correspondientes ante la autoridad competente. | V14: 0
B15: 8 | F15: 1 | G15: =IFERROR(VLOOKUP($I15,L10:V56,3)," ") ->  | I15: 0 | K15: 12 | L15: 206 | M15: 206-Pieza literaria | N15: ART | O15: 1 | P15: 1 | Q15: Productos de creacion artistica, memoria fotografica y/o audiovisual de los objetos de arte desarrollados en el proyecto (opcional). | S15: Certificacion de la Facultad de Artes o registros correspondientes ante la autoridad competente. | V15: 0
B16: 9 | F16: 1 | G16: =IFERROR(VLOOKUP($I16,L11:V56,3)," ") ->  | I16: 0 | K16: 13 | L16: 207 | M16: 207-eporte tecnico escrito, indicando la importancia y signification de la obra. Cuando se trate de pinturas y esculturas debe apoyarse con registros fotograficos, videos, catalogos, etc. | N16: ART | O16: 1 | P16: 1 | Q16: Productos de creacion artistica, memoria fotografica y/o audiovisual de los objetos de arte desarrollados en el proyecto (opcional). | S16: Certification de la Facultad de Artes o registros correspondientes ante la autoridad competente. | V16: 0 | AA16: Publicación en la gaceta del ICA, Constancia expedida por el ICA que indique en qué etapa del proceso se encuentra la solicitud.
B17: 10 | F17: 1 | G17: =IFERROR(VLOOKUP($I17,L12:V56,3)," ") ->  | I17: 0 | K17: 14 | L17: 208 | M17: 208-Obra o Creation Eflmera: Interpretation musical, Perfomancias, Escenograflas, Documental. Videoarte, Animation, Danza, | N17: ART | O17: 1 | P17: 1 | Q17: Productos de creacion artistica, memoria fotografica y/o audiovisual de los objetos de arte desarrollados en el proyecto (opcional). | S17: Certificacion de la Facultad de Artes o registros correspondientes ante la autoridad competente. | V17: 0
B18: 11 | F18: 1 | G18: =IFERROR(VLOOKUP($I18,L13:V56,3)," ") ->  | I18: 0 | K18: 15 | L18: 301 | M18: 301-Proyecto de regulation o de normatividad | N18: NRM | O18: 1 | P18: 1 | Q18: Proyectos de normas emanadas del proyecto (opcional). | S18: Certificacion de la Secretarla del Senado de la Republica en la que se haga expllcito la participation del Grupo de Investigation o Investigador en su desarrollo. | V18: 0
B19: 12 | F19: 1 | G19: =IFERROR(VLOOKUP($I19,L14:V56,3)," ") ->  | I19: 0 | K19: 16 | L19: 302 | M19: 302-Norma tecnica | N19: NRM | O19: 1 | P19: 1 | Q19: Proyectos de normas emanadas del proyecto (opcional). | S19: Certificado de la entidad o institucion que emitio el producto, indicando la participacion del grupo o de alguno de sus integrantes en la construccion. | V19: 0
B20: 13 | F20: 1 | G20: =IFERROR(VLOOKUP($I20,L15:V56,3)," ") ->  | I20: 0 | K20: 17 | L20: 401 | M20: 401-Trabajo de grado | N20: FRH | O20: 1 | P20: 1 | Q20: Productos de formacion (Minimo 4 productos). | S20: Acta de sustentacion emitida por el programa curricular y documento final del trabajo de grado. | V20: 0
B21: 14 | F21: 1 | G21: =IFERROR(VLOOKUP($I21,L16:V56,3)," ") ->  | I21: 0 | K21: 18 | L21: 402 | M21: 402-Tesis de maestrla | N21: FRH | O21: 1 | P21: 1 | Q21: Productos de formacion (Minimo 4 productos). | S21: Acta de sustentacion de trabajo de grado de Maestrla emitida por coordination del programa de Maestrla y documento de trabajo grado de maestrla. | V21: 0
B22: 15 | F22: 1 | G22: =IFERROR(VLOOKUP($I22,L17:V56,3)," ") ->  | I22: 0 | K22: 19 | L22: 403 | M22: 403-Tesis doctoral | N22: FRH | O22: 1 | P22: 1 | Q22: Productos de formacion (Minimo 4 productos). | S22: Acta de sustentacion de tesis doctoral emitida por coordinacion del programa de doctorado y documento de tesis doctoral. | V22: 0
B23: 16 | F23: 1 | I23: 0 | K23: 20 | L23: 404 | M23: 404-Documento de avance de tesis de maestrla | N23: FRH | O23: 1 | P23: 1 | Q23: Productos de formacion (Minimo 4 productos). | S23: Documento de resultados parciales (con visto bueno del investigador principal) y certificado de participacion del investigador en evento institucional de socialization de resultados de investigacion | V23: 0
B24: 17 | F24: 1 | I24: 0 | K24: 21 | L24: 405 | M24: 405-Documento de avance de tesis de doctorado | N24: FRH | O24: 1 | P24: 1 | Q24: Productos de formacion (Minimo 4 productos). | S24: Documento de resultados parciales (con visto bueno del investigador principal) y | V24: 0
B25: 18 | F25: 1 | I25: 0 | K25: 22 | L25: 406 | M25: 406-Documento de avance de trabajo de grado | N25: FRH | O25: 1 | P25: 1 | Q25: Productos de formacion (Minimo 4 productos). | S25: Documento de resultados parciales (con visto bueno del investigador principal) y certificado de participacion del investigador en evento institucional de socializacion de resultados de investigacion | V25: 0
B26: 19 | F26: 1 | I26: 0 | K26: 23 | L26: 407 | M26: 407-Desarrollo de un curso dirigido a estudiantes de pregrado o posgrado | N26: FRH | O26: 1 | P26: 1 | Q26: Productos de formacion (Minimo 4 productos). | S26: Certification expedida por la Universidad en donde se avale el desarrollo del curso-taller | V26: 0
B27: 20 | F27: 1 | I27: 0 | K27: 24 | L27: 408 | M27: 408-Apoyo a la creacion de programas de formation en maestria o doctorado | N27: FRH | O27: 1 | P27: 1 | Q27: Productos de formacion (Minimo 4 productos). | S27: Documento conceptual avalado por el Consejo de Facultad. | V27: 0
K28: 25 | L28: 501 | M28: 501-Producto tecnologico | N28: TEC | O28: 1 | P28: 1 | Q28: Productos procesos tecnologicos (opcional) | S28: Registro del producto o solicitud de registro radicada ante la entidad competente. | V28: 0
B29: T | C29: ="En el caso de aprobacion se liquidara el proyecto con "&V_Max&" Pts." -> En el caso de aprobacion se liquidara el proyecto con 0 Pts. | F29: =SUM(F7:F27) -> 20 | G29: =INT(SUM(G7:G27)) -> 0 | K29: 26 | L29: 502 | M29: 502-Diseno industrial | N29: TEC | O29: 1 | P29: 1 | Q29: Productos procesos tecnologicos (opcional) | S29: Registro del producto o solicitud de registro radicada ante la entidad competente. | V29: 0
B30: =IF(V_Max>H67,Q60,"") ->  | K30: 27 | L30: 503 | M30: 503-Proceso pedagogico | N30: TEC | O30: 1 | P30: 1 | Q30: Productos procesos tecnologicos (opcional) | S30: Registro del proceso o solicitud de registro radicada ante la entidad competente. | V30: 0
K31: 28 | L31: 504 | M31: 504-Desarrollo de software | N31: TEC | O31: 1 | P31: 1 | Q31: Productos procesos tecnologicos (opcional) | S31: Descripcion del Analisis, Diseno, Implementation y Validation. | V31: 0
B32: N | D32: Grupos | G32: Sigla | H32: No Prod. | K32: 29 | L32: 505 | M32: 505-Proceso industrial | N32: TEC | O32: 1 | P32: 1 | Q32: Productos procesos tecnologicos (opcional) | S32: Registro del proceso o solicitud de registro radicada ante la entidad competente. | V32: 0
A33: GNC | B33: 1 | C33: =CLEAN(TRIM(VLOOKUP($G33,$N$3:$U$55,4,0))) -> Productos Generacion Nuevo Conocimiento (Minimo 3 productos). | G33: GNC | H33: =SUMIFS($F$7:$F$27,$G$7:$G$27,$G33) -> 0 | I33: 3 | K33: 30 | L33: 506 | M33: 506-Proceso terapeutico | N33: TEC | O33: 1 | P33: 1 | Q33: Productos procesos tecnologicos (opcional) | S33: Registro del proceso o solicitud de registro radicada ante la entidad competente. | V33: 0
A34: FRH | B34: 2 | C34: Productos de creacion artistica, memoria fotografica y/o audiovisual de los objetos de arte desarrollados en el proyecto (opcional). | G34: ART | H34: =SUMIFS($F$7:$F$27,$G$7:$G$27,$G34) -> 0 | K34: 31 | L34: 507 | M34: 507-Proceso analitico | N34: TEC | O34: 1 | P34: 1 | Q34: Productos procesos tecnologicos (opcional) | S34: Registro del proceso o solicitud de registro radicada ante la entidad competente. | V34: 0
A35: SAC | B35: 3 | C35: =CLEAN(TRIM(VLOOKUP($G35,$N$3:$U$55,4,0))) -> Proyectos de normas emanadas del proyecto (opcional). | G35: NRM | H35: 0 | K35: 32 | L35: 508 | M35: 508-Proceso instrumental | N35: TEC | O35: 1 | P35: 1 | Q35: Productos procesos tecnologicos (opcional) | S35: Registro del proceso o solicitud de registro radicada ante la entidad competente. | V35: 0
B36: 4 | C36: =CLEAN(TRIM(VLOOKUP($G36,$N$3:$U$55,4,0))) -> Productos de formacion (Minimo 4 productos). | G36: FRH | H36: 0 | I36: 4 | K36: 33 | L36: 509 | M36: 509-Esquema de trazado de circuito integrado | N36: TEC | O36: 1 | P36: 1 | Q36: Productos procesos tecnologicos (opcional) | S36: Registro del producto o solicitud de registro radicada ante la entidad competente. | V36: 0
B37: 5 | C37: Productos procesos tecnologicos (opcional) | G37: TEC | H37: 0 | K37: 34 | L37: 510 | M37: 510-Nueva variedad (vegetal o animal), o nueva raza | N37: TEC | O37: 1 | P37: 1 | Q37: Productos procesos tecnologicos (opcional) | S37: Nombre de la variedad, autor, fecha, tipo de ciclo (corto o largo) y estado de la solicitud, en proceso u obtenida. | V37: 0
B38: 6 | C38: Productos o procesos tecnologicos patentables o susceptibles de ser protegidos por secreto industrial (opcional). | G38: INO | H38: 0 | K38: 35 | L38: 511 | M38: 511-Patentes o su tramite | N38: TEC | O38: 1 | P38: 1 | Q38: Productos procesos tecnologicos (opcional) | S38: Patente o solicitud de patente radicada ante la entidad competente. | V38: 0
B39: 7 | C39: Productos de apropiación social del conocimiento | G39: ASC | H39: 0 | K39: 36 | L39: 512 | M39: 512-Modelos de utilidad o su tramite | N39: TEC | O39: 1 | P39: 1 | Q39: Productos procesos tecnologicos (opcional) | S39: Modelo de utilidad o solicitud de modelo radicada ante la entidad competente. | V39: 0
B40: 8 | C40: Productos de divulgacion de resultados (Minimo 2 productos). | G40: DIB | H40: 0 | I40: 2 | K40: 37 | L40: 513 | M40: 513-Propuesta de transferencia tecnologica y/o creacion de spin off, y/o plan de negocios de empresa de base tecnologica | N40: TEC | O40: 1 | P40: 1 | Q40: Productos procesos tecnologicos (opcional) | S40: Nombre de Empresa creada, Certificado Camara de comercio, NIT o codigo de registro tributario si la empresa radica fuera de Colombia; Certificacion institucional describiendo el campo tecnologico de las empresas creadas | V40: 0
B41: 9 | C41: Otros. | G41: OTO | H41: 0 | K41: 38 | L41: 601 | M41: 601-Prototipo industrial | N41: INO | O41: 1 | P41: 1 | Q41: Productos o procesos tecnologicos patentables o susceptibles de ser protegidos por secreto industrial (opcional). | S41: Registro del producto o solicitud de registro radicada ante la entidad competente. | V41: 0
H42: =SUMIFS($U$3:$U$57,$N$3:$N$57,$A42) -> 0 | K42: 39 | L42: 602 | M42: 602-Planta piloto | N42: INO | O42: 1 | P42: 1 | Q42: Productos o procesos tecnologicos patentables o susceptibles de ser protegidos por secreto industrial (opcional). | S42: Registro del producto o copia digital de los contratos de desarrollo de la Planta Piloto | V42: 0
H43: =SUM(H33:H42) -> 0 | K43: 40 | L43: 603 | M43: 603-Productos o procesos protegidos por secreto industrial | N43: INO | O43: 1 | P43: 1 | Q43: Productos o procesos tecnologicos patentables o susceptibles de ser protegidos por secreto industrial (opcional). | S43: Registro del producto o solicitud de registro radicada ante la entidad competente. | V43: 0
K44: 41 | L44: 604 | M44: 604-Proceso instrumental | N44: INO | O44: 1 | P44: 1 | Q44: Productos o procesos tecnologicos patentables o susceptibles de ser protegidos por secreto industrial (opcional). | S44: Registro del proceso o solicitud de registro radicada ante la entidad competente. | V44: 0
B45: N | C45: Lineas Tematicas asociadas a la presente propuesta. | F45: =SUM(F23:F43) -> 25 | K45: 42 | L45: 605 | M45: 605-Prototipo de productos nuevos que puedan ser fabricados por el sector empresarial | N45: INO | O45: 1 | P45: 1 | Q45: Productos o procesos tecnologicos patentables o susceptibles de ser protegidos por secreto industrial (opcional). | S45: Registro del producto o solicitud de registro radicada ante la entidad competente. | V45: 0
K46: 43 | L46: 606 | M46: 606-Diseno de sistemas o procesos que constituyan una innovacion tecnologica | N46: INO | O46: 1 | P46: 1 | Q46: Productos o procesos tecnologicos patentables o susceptibles de ser protegidos por secreto industrial (opcional). | S46: nombre de la innovacion, fecha, autor(es); Certificados de implementation en pequenas, medianas y grande empresas | V46: 0
B47: N | C47: Nombres de las lineas tematicas | H47: Aplica (Si o No) | K47: 44 | L47: 701 | M47: 701-Participation ciudadana CTel y creation. Participacion ciudadana o comunidad(es) en proyectos de investigation. Espacio/evento de participacion ciudadana o de comunidad(es) en relation con la CTel | N47: ASC | O47: 1 | P47: 1 | Q47: Productos de apropiación social del conocimiento | S47: Titulo del proyecto de investigacion, fecha de inicio, investigador principal, nombre de la comunidad o comunidades participantes, instituciones o entidades vinculadas al proyecto. Nombre del espacio/evento de participacion ciudadana, fecha de inicio, lider, investigadores participantes, nombre de la comunidad o comunidades participantes, instituciones o entidades vinculadas. | V47: 0
B48: 1 | C48: Educación y pedagogías para la paz | H48: No | K48: 45 | L48: 702 | M48: 702-Estrategias pedagogicas para el Programa de fomento a la CTel. Programa /estrategia pedagogica de fomento CTU. Incluye la formation de redes de fomento de la apropiacion social del conocimiento | N48: ASC | O48: 1 | P48: 1 | Q48: Productos de apropiación social del conocimiento | S48: Nombre de la estrategia pedagogica, fecha de inicio, institucion(es) o entidad(es) vinculada(s), investigador principal. | V48: 0
B49: 2 | C49: Desarrollo territorial, comunidades, organizaciones y movimientos sociales | H49: No | K49: 46 | L49: 703 | M49: 703-Comunicacion social del conocimiento. Estrategias de comunicacion del conocimiento, generation de contenidos impresos, multimedia y virtuales | N49: ASC | O49: 1 | P49: 1 | Q49: Productos de apropiación social del conocimiento | S49: Nombre de la estrategia de comunicacion, fecha de inicio, lider, nombre de la comunidad o comunidades participantes, instituciones o entidades vinculadas a la estrategia. Certificacion de production y contenido por parte de la institucion o empresa, donde conste la participacion del grupo en la generacion de contenidos. | V49: 0
B50: 3 | C50: Historia y memoria | H50: No | K50: 47 | L50: 704 | M50: 704-Reconocimientos. Premios o distinciones otorgadas por instituciones u organizaciones publicas o privadas que utilizan parametros de excelencia para reconocer la gestion, la productividad y los aportes y el impacto de la investigation o el desarrollo tecnologico, en un area del conocimiento | N50: ASC | O50: 1 | P50: 1 | Q50: Productos de apropiación social del conocimiento | S50: Institucion u organization que lo otorga, fecha de otorgamiento. | V50: 0
B51: 4 | C51: Derechos humanos y justicia: víctimas y excombatientes | H51: No | K51: 48 | L51: 801 | M51: 801-Realizar un evento academico, de caracter cientifico, tecnologico, artistico y cultural, entre otros. | N51: DIB | O51: 1 | P51: 1 | Q51: Productos de divulgacion de resultados (Minimo 2 productos). | S51: Informe de realization del evento con los respectivos soportes. Memorias del evento organizado, en donde se aprecie la participacion del investigador como miembro del comite organizador. | V51: 0
B52: 5 | C52: Fortalecimiento institucional, Estado, sistema político, economía para el pos-acuerdo y política exterior | H52: No | K52: 49 | L52: 802 | M52: 802-Presentation o conferencia en eventos academicos de caracter cientifico, tecnologico, artistico y cultural, entre otros | N52: DIB | O52: 1 | P52: 1 | Q52: Productos de divulgacion de resultados (Minimo 2 productos). | S52: Certificado de participacion como ponente en un seminario o congreso nacional o internacional, emitido por la institution que organizo el evento. | V52: 0
B53: 6 | C53: Problemáticas ambientales, agropecuarias y de seguridad alimentaria en el pos-acuerdo | H53: No | K53: 50 | L53: 803 | M53: 803-Material didactico de divulgacion | N53: DIB | O53: 1 | P53: 1 | Q53: Productos de divulgacion de resultados (Minimo 2 productos). | S53: Copia del material | V53: 0
B54: 7 | C54: Salud, habilitación y rehabilitación para víctimas y excombatientes | H54: No | K54: 51 | L54: 804 | M54: 804-Circulation de conocimiento especializado. Eventos cientificos y participacion en redes de conocimiento, talleres de creation, eventos culturales y artisticos, documentos de trabajo (working papers), boletines divulgativos de resultado de investigacion, ediciones de revista cientifica o de libros resultado de investigacion e informes finales de investigacion. | N54: DIB | O54: 1 | P54: 1 | Q54: Productos de divulgacion de resultados (Minimo 2 productos). | S54: Certificado de participacion como ponente en un seminario o congreso nacional o internacional, emitido por la institucion que organizo el evento. Memorias del evento organizado en donde se aprecie la participacion del investigador como miembro del comite organizador. Titulo del documento, autor(es), ano en que elaboro el documento, instituciones vinculadas en la realizacion del documento, pagina WEB (del working paper) o DOI en donde se encuentra publicado el documento (si la tiene). Titulo del boletfn, autor(es), fecha en que elaboro el boletin, institucion que lo publica. Titulo de la revista o titulo del libro, ISSN o ISBN, nombre del editor, fecha en el cual fue editor, ano de publicacion, Pagina WEB de la revista o del libro. Titulo del Informe Final de Investigacion. Nombre del proyecto de investigacion. Fecha de elaboracion. | V54: 0
B55: 8 | C55: Arte y cultura para la paz en el marco del pos-acuerdo | H55: No | K55: 52 | L55: 901 | M55: 901-Otros. Se aplica a todos aquellos Productos Academicos que no puedan ser ubicados en alguno de los grupos y subgrupos de la presente tabla. | N55: OTO | O55: 1 | P55: 1 | Q55: Otros. | V55: 0
K56: 53 | V56: 0
K57: 54 | L57: =IFERROR(ABS(LEFT(M57,3)),0) -> 0 | M57: =IFERROR(V57&"- "&VLOOKUP($K57,Dt_prod2,5,0),"XX") -> XX | N57: GI | O57: =IFERROR(VLOOKUP($K57,Dt_prod2,7,0),0) -> 0 | P57: =IFERROR(VLOOKUP($K57,Dt_prod2,8,0),0) -> 0 | Q57: =IFERROR(VLOOKUP($K57,Dt_prod2,3,0),0) -> 0 | R57: =IFERROR(VLOOKUP($K57,Dt_prod2,4,0),0) -> 0 | S57: =IFERROR(VLOOKUP($K57,Dt_prod2,6,0),0) -> 0 | T57: 0 | U57: 0 | V57: 0
L58: }
F59: Validación de productividad | N59: Preupuesto
F60: =IF(H60>=0,1,0) -> 0 | G60: =G33 -> GNC | H60: =H33-I33 -> -3 | M60: Pts Sobrantes | N60: =V_Max-M61 -> -80 | P60: =V_Max-H67 ->  | Q60: ="*Nota: supera en "&P60&" Pts. el limite máximo puntos por nivel de grupo de :"&H67&" Pts." ->  | R60: =General!C7 -> Investigación en Paz y Pos-acuerdo. SUE | S60: T | T60: INV | U60: IMP
F61: =IF(H61>=0,1,0) -> 0 | G61: =G36 -> FRH | H61: =H36-I36 -> -4 | L61: TRUE | M61: =VLOOKUP($L$61,$L$63:$N$69,2,0) -> 80 | N61: =IFERROR(VLOOKUP($L$61,$L$63:$N$68,3,0),0) -> 100 | O61: << Tope al que aplica el proyecto | Q61: * debe por lo menos tener 20 puntos para cumplir los topes requisto de la convocatoria (INV) | S61: A | T61: 199 | U61: 300
F62: =IF(H62>=0,1,0) -> 0 | G62: =G40 -> DIB | H62: =H40-I40 -> -2 | S62: A1 | T62: 199 | U62: 300
F63: =SUM(F60:F62) -> 0 | G63: <== Si es 3 Ok , Menos Mal | L63: =V_Max>=M63 -> FALSE | M63: 200 | N63: 250 | S63: B | T63: 199 | U63: 300
L64: FALSE | M64: 100 | N64: 100 | Q64: =L78 -> Se debe escoger por lo menos una línea tematica. | S64: C | T64: 199 | U64: 300
G65: Validacion Lineas | H65: =COUNTIF($H$48:$H$55,"No") -> 8 | L65: TRUE | M65: 80 | N65: 100 | S65: R | T65: 59 | U65: 0
B66: Cuadro validación de productos por Sigla | H66: Max Puntos | L66: FALSE | M66: 60 | N66: 75 | S66: NR | T66: 39 | U66: 0
H67: Max Puntos | L67: FALSE | M67: 40 | N67: 50 | S67: NA | T67: 0 | U67: 0
L68: FALSE | M68: 20 | N68: 25
C69: Grupo Maximo | D69: =Gp_Max -> C | E69: =M61+19 & " Pts. Maximos" -> 99 Pts. Maximos | G69: ="Con : $"&N61&" Millones Max" -> Con : $100 Millones Max | L69: TRUE | M69: 0 | N69: 25 | S69: Pts | U69: 10
C71: Validación de cumplimiento de productividad por siglas.
B72: Puntos | N72: No | O72: Codigo | P72: Grupos Participantes
K73: Clasificacion | L73: =IFERROR(VLOOKUP($P73,Dt_GrpClas,2,0),0) -> C | O73: 1 | P73: =General!L18 -> COL0026486 | Q73: =General!C18 -> Agua y Energía - AyE
L74: =IFERROR(VLOOKUP($P74,Dt_GrpClas,2,0),0) -> 0 | O74: 2 | P74: =General!L22 -> 0 | Q74: =General!D22 -> 0
C75: =A33&"-"&C33 -> GNC-Productos Generacion Nuevo Conocimiento (Minimo 3 productos). | E75: =H33 -> 0 | F75: =IF(E75>0,0,1) -> 1 | G75: =IF(F75>0,"( "&LEFT(C75,3) &" ) ","") -> ( GNC ) | L75: =IFERROR(VLOOKUP($P75,Dt_GrpClas,2,0),0) -> 0 | O75: 3 | P75: =General!L26 -> 0 | Q75: =General!D26 -> 0
C76: =A34&"-"&C34 -> FRH-Productos de creacion artistica, memoria fotografica y/o audiovisual de los objetos de arte desarrollados en el proyecto (opcional). | E76: =H34 -> 0 | F76: =IF(AND(V_Max>0,E76=0),1,0) -> 0 | G76: =IF(F76>0,"( "&LEFT(C76,3) &" ) ","") -> 
C77: =A35&"-"&C35 -> SAC-Proyectos de normas emanadas del proyecto (opcional). | E77: =H35 -> 0 | F77: =IF(AND(V_Max>40,E77=0),1,0) -> 0 | G77: =IF(F77>0,"( "&LEFT(C77,3) &" ) ","") ->  | L77: Tabla de Errores | N77: Validaciones | O77: =MAX(O78:O91) -> 4
C78: =A44&"-"&C44 -> - | E78: =H44 -> 0 | G78: =IF(F78>0,"( "&LEFT(C78,3) &" ) ","") ->  | H78: =IF(F78>0,G78,"") ->  | L78: =IFERROR(VLOOKUP($O$77,K79:L89,2,0),".") -> Se debe escoger por lo menos una línea tematica.
C79: =A45&"-"&C45 -> -Lineas Tematicas asociadas a la presente propuesta. | E79: =H45 -> 0 | G79: =IF(F79>0,C79,"") ->  | H79: =IF(F79>0,G79,"") ->  | M79: Ok sin Error | O79: 0
F80: =SUM(F75:F79) -> 1 | K80: 0 | L80: . | O80: 0 | Q80: =COUNTA(C8:C27) -> 0
K81: 1 | L81: ="Pendiente tener en cuenta: "&C33 -> Pendiente tener en cuenta: Productos Generacion Nuevo Conocimiento (Minimo 3 productos). | N81: Validacion Minimo de productos Item 1 | O81: =IF(H60<0,1,0) -> 1 | Q81: =SUM(F8:F27) -> 20
K82: 2 | L82: ="Pendiente tener en cuenta: "&C36 -> Pendiente tener en cuenta: Productos de formacion (Minimo 4 productos). | N82: Validacion Minimo de productos Item 2 | O82: =IF(H61<0,2,0) -> 2
K83: 3 | L83: ="Pendiente tener en cuenta: "&C40 -> Pendiente tener en cuenta: Productos de divulgacion de resultados (Minimo 2 productos). | N83: Validacion Minimo de productos Item 2 | O83: =IF(H62<0,3,0) -> 3 | R83: =COUNTIF(F8:F27,">"&0) -> 20
B84: Hay error de productos si es mayor a 0 | K84: 4 | L84: ="Se debe escoger por lo menos una línea tematica." -> Se debe escoger por lo menos una línea tematica. | N84: Validcion por lo menos 1 linea | O84: =IF(H65>=8,4,0) -> 4
B85: =IF(E85>0,"Error: Debe seleccionar producto(s) de esta(s) categoria(s): "&F85&" ","OK") -> OK | E85: =SUM(C81:F81) -> 0 | F85: =TRIM(C82&D82&E82&F82) ->  | K85: 5
B86: Validacion de Grupos con la mayor categoría | K86: 6
B87: N | K87: 7
B88: 1 | C88: No Grpos General | D88: Clasif | E88: Millo por tope | F88: Ptoy | G88: 0 | K88: 8
B89: 2 | C89: =COUNTIF(Dt!$AR$3:$AR$243,D89) -> 7 | D89: A | F89: =COUNTIF($L$72:$L$75,D89) -> 0 | G89: =IF(G88=0,IF(F89>0,D89,0),G88) -> 0 | K89: 9
B90: 3 | C90: =COUNTIF(Dt!$AR$3:$AR$243,D90) -> 3 | D90: A1 | F90: 0 | G90: 0 | K90: 10
B91: 4 | C91: =COUNTIF(Dt!$AR$3:$AR$243,D91) -> 6 | D91: B | F91: 0 | G91: 0
B92: 5 | C92: =COUNTIF(Dt!$AR$3:$AR$243,D92) -> 42 | D92: C | F92: 1 | G92: C
B93: 6 | C93: =COUNTIF(Dt!$AR$3:$AR$243,D93) -> 6 | D93: R | F93: 0 | G93: C
B94: 7 | C94: =COUNTIF(Dt!$AR$3:$AR$243,D94) -> 9 | D94: NR | F94: 0 | G94: C
C95: =COUNTIF(Dt!$AR$3:$AR$243,D95) -> 2 | D95: NA | E95: 0 | F95: 0 | G95: C
E97: Mayor Grupo | F97: Final | G97: =G95 -> C
K104: GNC
K105: ART
K106: NRM
K107: FRH
K108: TEC
K109: INO
K110: ASC
K111: DIB
K112: OTO

Sheet Presupuesto
A1: 9 | R1: Tabla de Topes
M2: 1.-> Limite presupuestal | N2: =IF(MIN(N6:P6)<1, 0,MIN(N6:P6)) -> 0 | R2: Clasif | V2: =General!I19 -> C
B3: =Integrantes!B3 -> PRESENTACIÓN DE PROYECTOS DE INVESTIGACIÓN | H3: =General!$H$2 -> Fecha de Emisión: 2019/03/18 | I3: =General!$I$2 -> IN-IV-F-14 | N3: Limite Grupo | O3: Limite Producto | P3: Limite Convo | R3: A | S3: =IF($H$10="IMP",250,100) -> 100 | V3: =General!I23 -> 
H4: =General!$H$3 -> Revisión N°: 4 | I4: ="Página "&$A$1&" de "&Dt_TPG -> Página 9 de 11 | M4: Mayor Grupo | N4: =Productos!G97 -> C | O4: =Productos!M61 -> 80 | P4: =IF(H10="IMP",250,100) -> 100 | R4: A1 | S4: =IF($H$10="IMP",250,100) -> 100 | V4: =General!I27 -> 
R5: B | S5: =IF($H$10="IMP",250,100) -> 100
M6: 1000000 | N6: =IF(N7>2,P6,0) -> 70000000 | O6: =IF(O7=3,P6,0) -> 0 | P6: 70000000 | R6: C | S6: =IF($H$10="IMP",250,100) -> 100
B7: T | C7: Título de la Propuesta : | D7: =General!B9 -> Formato: actualizado a 06 Sep 2019 | N7: =General!M18 -> 20 | O7: =Productos!F63 -> 0 | R7: R | S7: =IF($H$10="IMP",250,50) -> 50
B8: L | C8: Lider responsable | D8: =General!C10 -> Luis Alexander Chirivi | G8: Codigo VICEIN: | H8: =CLEAN(General!H7) ->  | R8: NR | S8: =IF($H$10="IMP",250,25) -> 25
R9: NA | S9: 0
A10: 12.- | B10: Presupuesto rubro personal asocidado a la propuesta | G10: =V_Max -> 0 | H10: =Cel_TP -> PAZ | I10: =Gp_Max -> C
I11: 1.66
B12: a. | C12: Personal de planta o ocasional que integra al proyecto de investigación. | H12: Valores de Contrapartida.
A13: =ROW() -> 13 | B13: N° | C13: Sueldo Neto | D13: Factor | E13: Tipo de Vinculo UMNG | F13: Numero de meses | G13: Número Horas / Semanal | H13: Valor Final | I13: Identificación | L13: *tabla de consolidacion por año para proyectos IMP
B14: =ROW()-$A$13 -> 1 | D14: =I11 -> 1.66 | E14: =INDIRECT($I$24&"E"&$J14+1,1) -> 0 | F14: =INDIRECT($I$24&"G"&$J14,1) -> 12 | G14: =INDIRECT($I$24&"H"&$J14,1) -> 25 | H14: =INT(((C14*F14)/40)*G14*$I$11) -> 0 | I14: =INDIRECT($I$24&"C"&$J14,1) -> 0 | J14: 9 | L14: 0 | M14: Tipo Vinculo UMNG | N14: Año1 | O14: Año2 | Q14: Validación Presupuestal
B15: =ROW()-$A$13 -> 2 | D15: =D14 -> 1.66 | E15: 0 | F15: 0 | G15: 0 | H15: 0 | I15: Contribuciones | J15: =J14+3 -> 12 | L15: 1 | M15: Doc. Carrera TC | N15: =(SUMIF($E$14:$E$23,$M15,$H$14:$H$23)/2) -> 0 | O15: =N15 -> 0 | Q15: ="Validación de "&M36 -> Validación de (Au.) -Auxiliar Pregrado | S15: Ajustado por adenda no 2
B16: 3 | D16: =D15 -> 1.66 | E16: 0 | F16: 0 | G16: 0 | H16: 0 | I16: CvLac: | J16: =J15+3 -> 15 | L16: 2 | M16: Doc. Carrera MT | N16: =(SUMIF($E$14:$E$23,$M16,$H$14:$H$23)/2) -> 0 | O16: =N16 -> 0 | Q16: Parte | R16: Cntidad | S16: por uno solo | T16: Debe ser | U16: Error de Asistente
B17: 4 | D17: 1.66 | E17: 0 | F17: 0 | G17: 0 | H17: 0 | I17: Funcion : | J17: 18 | L17: 3 | M17: Doc. Ocasional | N17: =SUMIF($E$14:$E$23,$M17,$H$14:$H$23) -> 0 | O17: 0 | Q17: No de AU Preg | R17: =COUNTIF($E$29:$E$44,$M$36) -> 0 | T17: 1 | U17: 0 | X17: 25 | Y17: 0.1 | AA17: 0.05
B18: 5 | D18: 1.66 | E18: Investigador Externo | F18: 12 | G18: 0 | H18: 0 | I18: 0 | J18: 21 | L18: 1 | M18: Contrapartida Facultad IMP: | N18: =SUM(N15:N17) -> 0 | O18: =SUM(O15:O17) -> 0 | Q18: No Horas | R18: =SUMIF($E$29:$E$43,$M$36,G29:G43) -> 0 | S18: =IFERROR(R18/R17,0) -> 0 | T18: 20 | U18: =IF(S18<=T18,0,1) -> 0 | X18: 50 | Y18: 0.1 | AA18: 0.1
B19: 6 | D19: 1.66 | E19: 0 | F19: 0 | G19: 0 | H19: 0 | I19: Contribuciones | J19: 24 | L19: 2 | M19: Contrapartida Facultad INV: | N19: =SUM(N15:O17) -> 0 | Q19: No Meses | R19: =SUMIF($E$29:$E$43,$M$36,F29:F43) -> 0 | S19: =IFERROR(R19/R17,0) -> 0 | T19: 6 | U19: =IF(S19=T19,0,1) -> 1 | X19: 75 | Y19: 0.1 | AA19: 0.15
B20: 7 | D20: 1.66 | E20: 0 | F20: 0 | G20: 0 | H20: 0 | I20: CvLac: | J20: 27 | T20: Si es Mas de 1 tiene problema en Auxiliar de pregrado --->> | U20: =SUM(U17:U19) -> 1 | X20: 100 | Y20: 0.1 | AA20: 0.15
B21: 8 | D21: 1.66 | E21: 0 | F21: 0 | G21: 0 | H21: 0 | I21: Funcion : | J21: 30 | Q21: Estiimulo a estudiantes | S21: =INT(N2/1000000) -> 0 | T21: =SUM(R36:R38) -> 0 | U21: =T21/N2 ->  | X21: 250 | Y21: 0.1 | AA21: 0.15
B22: 9 | D22: 1.66 | E22: 0 | F22: 12 | G22: 0 | H22: 0 | I22: 0 | J22: 33 | Q22: Limite inferior de estimulo a estudiantes | T22: =(S21*1000000)*U22 -> 0 | U22: 0.09
B23: 10 | D23: 1.66 | E23: 0 | F23: 0 | G23: 0 | H23: 0 | I23: Contribuciones | J23: 36 | T23: =ABS(T22-T21) -> 0
C24: Sumatoria del calculo de personal de planta "Valor contrapartida Facultades":Diligenciado VICEIN | H24: =INT(SUBTOTAL(109,H14:H23)) -> 0 | I24: Integrantes! | M24: Incremento al salario
M25: 0 | P25: =(J26/6)/6 -> 0
B26: b. | C26: Asistentes externos o temporales contratados OPS y Estimulo Estudiantes. | K26: =VLOOKUP(E30,M29:O38,3,0) ->  | M26: Valor SMLV | N26: Max Mes
B27: > | C27: Salario Minimo Legal Vigente (SMIV) : | F27: 828116 | M27: =F27*(1+M25) -> 828116 | N27: 12
A29: =ROW() -> 29 | B29: No | C29: Valor mensual | D29: Factor Salarial | E29: Tipo de vinculación | F29: ="Numero de meses" -> Numero de meses | G29: Número Horas / Semanal | H29: Valor total | I29: Valores de entidades externas | J29: Máximos | K29: (Au.) | L29: No | M29: Tipo | N29: Valor total del contrato (10 mes) | O29: SMMLV por 10 Meses | P29: Valor mes contrato | Q29: Hay | R29: Hay en $ | V29: Valor mes contrato | X29: Va desde hasta | Y29: Salarios Minimos | AA29: Figuras | AB29: arranca desde | AC29: Maximo Factor
B30: =ROW()-$A$29 -> 1 | C30: =IFERROR(H30/F30,0) -> 0 | D30: 0 | F30: 1 | G30: 0 | H30: =INT(($F$27*D30*F30)/IF($E30=$M$36,10,1)*IF(COUNTIF($M$30:$M$35,$E30)=1,G30/40,1)) -> 0 | J30: =IF($E30=$M$36,K30,IFERROR(VLOOKUP($E30,$M$29:$O$38,2,0),0)*IF($H$10="IMP",2,1)) -> 0 | K30: =IFERROR(IF(FIND($K$29,$E30,1)=1,VLOOKUP($E30,$M$38:$AC$40,2,0),0),0)/IF($E30=$M$36,10,1) -> 0 | L30: 1 | M30: (A.I.) -Técnico | N30: =$M$27*O30 -> 16562320 | O30: 20 | P30: =N30/10 -> 1656232 | Q30: =COUNTIF($E$29:$E$44,$M30) -> 0 | R30: =SUMIF($E$30:$E$44,$M30,$H$30:$H$44) -> 0 | V30: 1475434 | X30: ="Y"&ROW() -> Y30 | Y30: 6 | AA30: =E30 -> 0 | AB30: =IFERROR(VLOOKUP($AA30,$M$29:$S$38,7,0)/10,0) -> 0 | AC30: =IFERROR(VLOOKUP($AA30,$M$29:$R$38,3,0)/IF($AA30=$M$36,6,10),0) -> 0
B31: =ROW()-$A$29 -> 2 | C31: =IFERROR(H31/F31,0) -> 0 | D31: 0 | F31: 0 | G31: 0 | H31: 0 | J31: 0 | K31: 0 | L31: 2 | M31: (A.I.) -Profesional | N31: 28984060 | O31: 35 | P31: 2898406 | Q31: 0 | R31: 0 | V31: 2582009.5 | X31: ="Y"&ROW() -> Y31 | Y31: =Y30-0.5 -> 5.5 | AA31: =E31 -> 0 | AB31: 0 | AC31: 0
B32: 3 | C32: 0 | D32: 0 | F32: 0 | G32: 0 | H32: 0 | J32: 0 | K32: 0 | L32: 3 | M32: (A.I.) -Profesional especilizado | N32: 33124640 | O32: 40 | P32: 3312464 | Q32: 0 | R32: 0 | V32: 2950868 | X32: Y32 | Y32: =Y31-0.5 -> 5 | AA32: 0 | AB32: 0 | AC32: 0
B33: 4 | C33: 0 | D33: 0 | F33: 0 | G33: 0 | H33: 0 | J33: 0 | K33: 0 | L33: 4 | M33: (A.I.) -Profesional magister | N33: 37265220 | O33: 45 | P33: 3726522 | Q33: 0 | R33: 0 | V33: 3319726.5 | X33: Y33 | Y33: 4.5 | AA33: 0 | AB33: 0 | AC33: 0
B34: 5 | C34: 0 | D34: 0 | F34: 0 | G34: 0 | H34: 0 | J34: 0 | K34: 0 | L34: 5 | M34: (A.I.) -Profesional doctorado | N34: 45546380 | O34: 55 | P34: 4554638 | Q34: 0 | R34: 0 | V34: 4057443.5 | X34: Y34 | Y34: 4 | AA34: 0 | AB34: 0 | AC34: 0
B35: 6 | C35: 0 | D35: 0 | F35: 0 | G35: 0 | H35: 0 | J35: 0 | K35: 0 | L35: 6 | M35: (J.I) -Joven investigador | N35: 28984060 | O35: 35 | P35: 2898406 | Q35: 0 | R35: 0 | V35: 2582009.5 | X35: Y35 | Y35: 3.5 | AA35: 0 | AB35: 0 | AC35: 0
B36: 7 | C36: 0 | D36: 0 | F36: 0 | G36: 0 | H36: 0 | J36: 0 | K36: 0 | L36: 7 | M36: (Au.) -Auxiliar Pregrado | N36: 24843480 | O36: 30 | P36: =F27*3 -> 2484348 | Q36: 0 | R36: 0 | V36: NA | X36: Y36 | Y36: 3 | AA36: 0 | AB36: 0 | AC36: 0
B37: 8 | C37: 0 | D37: 0 | F37: 0 | G37: 0 | H37: 0 | J37: 0 | K37: 0 | L37: 8 | M37: (Au.) -Auxiliar Postgrado Mg. | N37: 16562320 | O37: 20 | P37: =N37/5 -> 3312464 | Q37: 0 | R37: 0 | V37: NA | X37: Y37 | Y37: 2.5 | AA37: 0 | AB37: 0 | AC37: 0
B38: 9 | C38: 0 | D38: 0 | F38: 0 | G38: 0 | H38: 0 | J38: 0 | K38: 0 | L38: 9 | M38: (Au.) -Auxiliar Postgrado Dr. | N38: 24843480 | O38: 30 | P38: =N38/5 -> 4968696 | Q38: 0 | R38: 0 | V38: NA | X38: Y38 | Y38: 2 | AA38: 0 | AB38: 0 | AC38: 0
B39: 10 | C39: 0 | D39: 0 | F39: 0 | G39: 0 | H39: 0 | J39: 0 | K39: 0 | L39: 10 | M39: (A.G) -Asistente graduado Mg. | N39: =$M$27*O39 -> 0 | O39: =45*0 -> 0 | P39: =N39/10 -> 0 | Q39: =COUNTIF($E$29:$E$44,$M39) -> 0 | R39: =SUMIF($E$30:$E$44,$M39,$H$30:$H$44) -> 0 | V39: 3688585 | X39: Y39 | Y39: 1.5 | AA39: =E39 -> 0 | AB39: 0 | AC39: 0
B40: 11 | C40: 0 | D40: 0 | F40: 0 | G40: 0 | H40: 0 | J40: 0 | K40: 0 | L40: 11 | M40: (A.G) -Asistente graduado Dr. | N40: =$M$27*O40 -> 0 | O40: =60*0 -> 0 | P40: =N40/10 -> 0 | Q40: =COUNTIF($E$29:$E$44,$M40) -> 0 | R40: =SUMIF($E$30:$E$44,$M40,$H$30:$H$44) -> 0 | V40: 5164019 | X40: Y40 | Y40: 1 | AA40: =E40 -> 0 | AB40: 0 | AC40: 0
B41: 12 | C41: 0 | D41: 0 | F41: 0 | G41: 0 | H41: 0 | J41: 0 | K41: 0 | N41: Salario 12 meses | S41: Validacion de estimulo a estudiantes | V41: =G10 -> 0 | X41: Y41 | Y41: 0.5 | AA41: =E41 -> 0 | AB41: 0 | AC41: 0
B42: 13 | C42: 0 | D42: 0 | F42: 0 | G42: 0 | H42: 0 | J42: 0 | K42: 0 | U42: % | AA42: =E42 -> 0 | AB42: 0 | AC42: 0
B43: 14 | C43: 0 | D43: 0 | F43: 0 | G43: 0 | H43: 0 | J43: 0 | K43: 0 | M43: Joven investigador Colciencias | N43: =M27*3*12 -> 29812176 | S43: TRUE | T43: Estudiantes Min | U43: =IFERROR(VLOOKUP($S$43,$S$44:$V$48,3,0),0) -> 0 | V43: =IFERROR(VLOOKUP($S$43,$S$44:$V$48,4,0),0) -> 0 | AA43: =E43 -> 0 | AB43: 0 | AC43: 0
B44: =14-COUNTIF(E30:E43,"") -> 0 | C44: Sumatoria del calculo de OPS "Valor financiado Vicein" en rubro de (Personal): | G44: =IF(H44>N2,"Esta superando el total de presupuesto","") ->  | H44: =IFERROR(INT(SUM(H30:H43)),0) -> 0 | I44: 0 | J44: =IFERROR(VLOOKUP($E44,$M$29:$O$38,2,0),0)*IF($H$10="IMP",2,1) -> 0 | S44: =T44<$V$41 -> FALSE | T44: 100 | U44: 0.09 | V44: =(T44*U44)*1000000 -> 9000000
J45: 4 | L45: Instrucción ver Comentario… OJO VER EN ESTO IMP | S45: =T45<$V$41 -> FALSE | T45: 80 | U45: 0.09 | V45: =((T45-5)*U45)*1000000 -> 6750000
A46: 13.- | B46: Presupuesto detalle de Plan de compras general .- La siguiente tabla debe diligenciarse manualmente ya que no arrastra informacion de otros campos | L46: 1 | M46: Para IMP - Contrapartida Facultad Año 1 es : | O46: =N18 -> 0 | P46: =SUMIF($C$51:$C$86,$C$51,$H$51:$H$86) -> 0 | S46: =T46<$V$41 -> FALSE | T46: 60 | U46: 0.09 | V46: =((15+T46)*U46)*1000000 -> 6750000
L47: 2 | M47: Para IMP - Contrapartida Facultad Año 2 es : | O47: =O18 -> 0 | S47: =T47<$V$41 -> FALSE | T47: 40 | U47: 0.09 | V47: =((10+T47)*U47)*1000000 -> 4500000
B48: =IFERROR("Nota : "&VLOOKUP(I10,Dt_Limite,3,0)," ") -> Nota : Puede aplicar al maximo de presupuesto dependiendo los puntos comprometidos | L48: 3 | M48: Para Presupuesto $ VICEIN la mitad de OPS es : | O48: =H44/2 -> 0 | S48: =T48<$V$41 -> FALSE | T48: 20 | U48: 0.09 | V48: =((5+T48)*U48)*1000000 -> 2250000
L49: Consulte sobre los items
A50: =ROW() -> 50 | B50: No | C50: Rubro / Destino | D50: Año de Vigencia | E50: Descripción (Entidad- Rubro) | G50: Finaciación Vicein $ SUE | H50: =G125&" UMNG" -> $ Contrapartida Facultad UMNG | I50: Totales | L50: No | M50: Nombre Rubro | N50: Rubro | O50: Limite% | P50: =N2 -> 0 | Q50: Solicitado $Vicein | R50: Limites de topes | X50: Ok OPS y Extimulo
B51: =ROW()-$A$50 -> 1 | C51: Personal | D51: 1 | E51: Horas de descarga academica UMNG | G51: 0 | H51: =IF(H10="INV",N19,N18) -> 0 | I51: =SUM(G51:H51) -> 0 | L51: =ROW()-50 -> 1 | M51: Honorarios | N51: 611401 | O51: 1 | P51: =SUMIF($C$50:$C$86,$M51,$G$50:$G$86) -> 0 | Q51: =IFERROR(P51/$P$50,0) -> 0 | R51: =($P$50/100)*O51*100 -> 0 | S51: Personal | T51: =SUM(R30:R35) -> 0 | U51: =SUMIF($C$51:$C$86,$S51,$G$51:$G$86) -> 0 | V51: =U51-T51 -> 0 | X51: =IF(T51=U51,0,1) -> 0
B52: =ROW()-$A$50 -> 2 | D52: 1 | I52: =SUM(G52:H52) -> 0 | L52: =ROW()-50 -> 2 | M52: Materiales | N52: 612101 | O52: 1 | P52: 0 | Q52: =IFERROR(P52/$P$50,0) -> 0 | R52: 0 | S52: =M56 -> Estímulo a estudiantes Pregrado | T52: =SUM(R35) -> 0 | U52: =SUMIF($C$51:$C$86,$S52,$G$51:$G$86) -> 0 | V52: =U52-T52 -> 0
B53: 3 | D53: 1 | I53: 0 | L53: 3 | M53: Salidas de Campo | N53: 612104 | O53: 1 | P53: 0 | Q53: 0 | R53: 0 | S53: =M57 -> Estímulo a estudiantes Posgrado | T53: =SUM(R36) -> 0 | U53: =SUMIF($C$51:$C$86,$S53,$G$51:$G$86) -> 0 | V53: =U53-T53 -> 0 | X53: =IF(T53=U53,0,1) -> 0
B54: 4 | D54: 1 | I54: 0 | L54: 4 | M54: Servicios Técnicos | N54: 612103 | O54: 1 | P54: 0 | Q54: 0 | R54: 0 | S54: =M61 -> 0 | T54: =SUM(R39:R40,R37:R38) -> 0 | U54: =SUMIF($C$51:$C$86,$S54,$G$51:$G$86) -> 0 | V54: =U54-T54 -> 0 | X54: =IF(T54=U54,0,1) -> 0
B55: 5 | D55: 1 | I55: 0 | L55: 5 | M55: Recursos Biblograficos | N55: 633 | O55: 1 | P55: 0 | Q55: 0 | R55: 0 | V55: =SUM(V51:V54) -> 0 | X55: =SUM(X51:X54) -> 0
B56: 6 | D56: 1 | I56: 0 | L56: 6 | M56: Estímulo a estudiantes Pregrado | N56: Pendiente | O56: 0.2 | P56: 0 | Q56: 0 | R56: 0
B57: 7 | D57: 1 | I57: 0 | L57: 7 | M57: Estímulo a estudiantes Posgrado | N57: Pendiente | O57: 0.2 | P57: 0 | Q57: 0 | R57: 0 | T57: Validación | U57: Plan | V57: OPS Catedra
B58: 8 | D58: 1 | I58: 0 | L58: 8 | M58: Movilidad | N58: 635020 | O58: 1 | P58: 0 | Q58: 0 | R58: 0 | T58: =M51 -> Honorarios | U58: =COUNTIF($C$51:$C$70,T58) -> 0 | V58: =SUM(Q30:Q35) -> 0 | W58: =IF(U58<=V58,1,0) -> 1
B59: 9 | D59: 1 | I59: 0 | L59: 9 | M59: Capacitacion | O59: 1 | P59: 0 | Q59: 0 | R59: 0 | T59: =M60 -> Otros gastos | U59: =COUNTIF($C$51:$C$70,T59) -> 0 | V59: =SUM(Q36:Q38)-Q36 -> 0 | W59: =IF(U59<V59,1,0) -> 0
B60: 10 | D60: 1 | I60: 0 | L60: 10 | M60: Otros gastos | O60: 1 | P60: 0 | Q60: 0 | R60: 0 | T60: Diferencias | V60: =IF(V55=0,0,1) -> 0 | W60: =SUM(W58:W59)+V60 -> 1
B61: 11 | D61: 1 | I61: 0 | L61: 11 | P61: 0 | Q61: 0 | R61: 0
B62: 12 | D62: 1 | I62: 0 | L62: 12 | P62: 0 | Q62: 0 | R62: 0 | S62: =V43 -> 0 | AA62: 25000000 | AB62: 0.09 | AC62: =AA62*AB62 -> 2250000
B63: 13 | D63: 1 | I63: 0 | L63: 13 | P63: 0 | Q63: 0 | R63: 0 | AA63: =AA62+AA62 -> 50000000 | AB63: 0.09 | AC63: =AA63*AB63 -> 4500000
B64: 14 | D64: 1 | I64: 0 | L64: 14 | Q64: 0 | AA64: =AA63+AA62 -> 75000000 | AB64: 0.09 | AC64: =AA64*AB64 -> 6750000
B65: 15 | D65: 1 | I65: 0 | L65: 15 | Q65: 0 | AA65: =AA64+AA62 -> 100000000 | AB65: 0.09 | AC65: =AA65*AB65 -> 9000000
B66: 16 | D66: 1 | I66: 0 | L66: 16 | Q66: 0
B67: 17 | D67: 1 | I67: 0 | L67: 17 | Q67: 0
B68: 18 | D68: 1 | I68: 0 | L68: 18 | Q68: 0
B69: 19 | D69: 1 | I69: 0
B70: 20 | D70: 1 | I70: 0
B71: 21 | D71: 1 | I71: 0
B72: 22 | D72: 1 | I72: 0 | L72: 564564
B73: 23 | D73: 1 | I73: 0
B74: 24 | D74: 1 | I74: 0
B75: 25 | D75: 1 | I75: 0
B76: 26 | D76: 1 | I76: 0
B77: 27 | D77: 1 | I77: 0
B78: 28 | D78: 1 | I78: 0 | L78: No | M78: Texto | N78: Condicion | R78: Validacion
B79: 29 | D79: 1 | I79: 0
B80: 30 | D80: 1 | I80: 0 | M80: Tabla de errores posibles
B81: 31 | D81: 1 | I81: 0 | M81: =IFERROR(VLOOKUP($R$81,$L$81:$M$136,2,0),".") ->  | O81: Verificacion de condiciones | R81: =IFERROR(MAX(R82:R133),0) -> 0
B82: 32 | D82: 1 | I82: 0 | L82: 0
B83: 33 | D83: 1 | I83: 0 | L83: =L82+1 -> 1 | M83: ="Error esta superando el máximo de presupuesto VICEIN UMNG en: "&TEXT(G90,"$ #.##0") -> Error esta superando el máximo de presupuesto VICEIN UMNG en: $ 0 | N83: Validacion máximo de presupuesto | R83: =IF(G90<0,1,0) -> 0
B84: 34 | D84: 1 | I84: 0 | L84: =L83+1 -> 2 | M84: ="Error: Hay diferencia en presupuesto VICEIN en: "&TEXT(F180,"$ #.##0")&" Verificar." -> Error: Hay diferencia en presupuesto VICEIN en: $ 0 Verificar. | N84: Validacion que todo presupuesto VICEIN Este en el cuadro consolidado | R84: =IF(F180=0,0,2) -> 0
B85: 35 | D85: 1 | I85: 0 | L85: 3 | M85: ="Error "&M56&" Supera el máximo permitido: "&TEXT(ABS(R56),"$ #.##0") -> Error Estímulo a estudiantes Pregrado Supera el máximo permitido: $ 0 | N85: ="Validacion de "&M56 -> Validacion de Estímulo a estudiantes Pregrado | R85: =IF(P56>R56,3,0) -> 0
L86: 4 | M86: ="Error "&M57&" Supera el máximo permitido: "&TEXT(R57,"$ #.##0") -> Error Estímulo a estudiantes Posgrado Supera el máximo permitido: $ 0 | N86: ="Validacion de "&M57 -> Validacion de Estímulo a estudiantes Posgrado | R86: =IF(P57>R57,4,0) -> 0
C87: Sumatoria general de plan de compras : | F87: =SUM(G87:I87) -> 0 | G87: =SUM(G88:G89) -> 0 | H87: =SUM(H88:H89) -> 0 | I87: =SUM(I88:I89) -> 0 | L87: 5 | M87: ="Error: Hay diferencia en presupuesto Contrapartida en: "&TEXT(G180,"$ #.##0")&" Verificar." -> Error: Hay diferencia en presupuesto Contrapartida en: $ 0 Verificar. | N87: Validacion que todo presupuesto Contrapartida Este en el cuadro consolidado | R87: =IF(G180=0,0,5) -> 0
D88: 1 | E88: ="Total Presupuesto Año 1 "&IF(H10="IMP","IMP","")&":" -> Total Presupuesto Año 1 : | G88: =IF(Cel_TP="IMP",SUMIF($D$51:$D$86,$D88,G$51:G$86),SUM(G$51:G$86)) -> 0 | H88: =SUMIF($D$51:$D$86,$D88,H$51:H$86) -> 0 | I88: =SUMIF($D$51:$D$86,$D88,I$51:I$86) -> 0 | L88: 6 | M88: ="Error: Hay diferencia en presupuesto contrapartida Externos en: "&TEXT(H180,"$ #.##0")&" Verificar." -> Error: Hay diferencia en presupuesto contrapartida Externos en: $ 0 Verificar. | N88: Validacion que todo presupuesto Contrapartida Este en el cuadro consolidado | R88: =IF(H180=0,0,6) -> 0
D89: 2 | E89: Total Presupuesto Año 2 (IMP) : | G89: =IF(H10="INV",0,SUMIF($D$51:$D$86,$D89,G$51:G$86)) -> 0 | H89: =IF(H10="INV",0,SUMIF($D$51:$D$86,$D89,H$51:H$86)) -> 0 | I89: =IF(H10="INV",0,SUMIF($D$51:$D$86,$D89,I$51:I$86)) -> 0 | L89: 7
C90: Firma :_______________ | E90: =IF(G90>0,"Presupuesto por definir."," Error - Supero el presupuesto en : ") -> Error - Supero el presupuesto en : | G90: =E172-G87 -> 0 | L90: 8
D91: =IF(H10="INV",1,2) -> 2 | E91: Limite de presupuesto VICEIN por año : | G91: =IFERROR(IF($H$10="IMP",$P$6/2,$N$2),"0") -> 0
C93: Plan de compras entidades extenas SUE
A94: 94 | B94: No | C94: Rubro | D94: año | E94: Entidad Externa | G94: Finaciación Vicein $ SUE | H94: Contrapartida | I94: Totales
B95: =ROW()-$A$94 -> 1 | D95: 1 | G95: 0 | H95: =IF(H54="INV",N63,N62) -> 0 | I95: =SUM(G95:H95) -> 0 | K95: =General!N82 -> 0
B96: =ROW()-$A$94 -> 2 | D96: 1 | I96: =SUM(G96:H96) -> 0 | K96: =General!N83 -> 
B97: =ROW()-$A$94 -> 3 | D97: 1 | I97: 0 | K97: =General!N84 -> 
B98: 4 | D98: 1 | I98: 0 | K98: =General!N85 -> 
B99: 5 | D99: 1 | I99: 0 | K99: =General!N86 -> 
B100: 6 | D100: 1 | I100: 0
B101: 7 | D101: 1 | I101: 0
B102: 8 | D102: 1 | I102: 0 | K102: ="K"&K105&".K"&MAX(K105:K110) -> K0.K0
B103: 9 | D103: 1 | I103: 0
B104: 10 | D104: 1 | I104: 0
B105: 11 | D105: 1 | I105: 0 | K105: =IF(LEN(K95)>2,ROW()-10,0) -> 0
B106: 12 | D106: 1 | I106: 0 | K106: =IF(LEN(K96)>2,ROW()-10,0) -> 0
B107: 13 | D107: 1 | I107: 0 | K107: 0
B108: 14 | D108: 1 | I108: 0 | K108: 0
B109: 15 | D109: 1 | I109: 0 | K109: 0
B110: 16 | D110: 1 | I110: 0
B111: 17 | D111: 1 | I111: 0
B112: 18 | D112: 1 | I112: 0
B113: 19 | D113: 1 | I113: 0
B114: 20 | D114: 1 | I114: 0
I115: 0
C117: Universidad y/o Entidad | G117: =G94 -> Finaciación Vicein $ SUE | H117: =H94 -> Contrapartida | I117: Totales
B118: 1 | C118: =IF(LEN(K95)>3,K95," ") ->  | G118: =SUMIF($E$94:$F$115,$C118,G$94:G$115) -> 0 | H118: =SUMIF($E$94:$F$115,$C118,H$94:H$115) -> 0 | I118: =SUM(G118:H118) -> 0
B119: 2 | C119: =IF(LEN(K96)>3,K96," ") ->  | G119: =SUMIF($E$94:$F$115,$C119,G$94:G$115) -> 0 | H119: 0 | I119: =SUM(G119:H119) -> 0
B120: 3 | G120: 0 | H120: 0 | I120: 0
B121: 4 | G121: 0 | H121: 0 | I121: 0
B122: 5 | G122: 0 | H122: 0 | I122: 0
B123: TT | C123: Totales generales | G123: =SUM(G118:G122) -> 0 | H123: =SUM(H118:H122) -> 0 | I123: 0
B125: No | C125: Rubro | D125: % | E125: Porcentaje | F125: $ Financiación solicitada a VICEIN | G125: $ Contrapartida Facultad | H125: $ Contrapartida Externa | I125: $ Total Rubro | J125: 0
B126: 1 | C126: =C128 -> Honorarios | D126: =IFERROR(F126/F128,0) -> 0 | E126: =D126 -> 0 | F126: =SUMIFS(G$50:G$86,$C$50:$C$86,$C126,$D$50:$D$86,$J126) -> 0 | G126: 0 | I126: =SUM(F126:H126) -> 0 | J126: 1 | K126: =IFERROR(VLOOKUP($B124,$L$50:$Q$68,4,0),0) -> 0
B127: 1 | C127: =C128 -> Honorarios | D127: =IFERROR(F126/F128,0) -> 0 | E127: 0 | F127: 0 | G127: 0 | I127: 0 | J127: 2
B128: 1 | C128: =M51 -> Honorarios | D128: =IFERROR(VLOOKUP($B128,Dt_TblaPresu,6,0),0) -> 0 | E128: 0 | F128: =SUM(F126:F127) -> 0 | G128: =SUM(G126:G127) -> 0 | I128: 0 | J128: 3 | K128: =IFERROR(VLOOKUP($B126,$L$50:$Q$68,4,0),0) -> 1
B129: =B126+1 -> 2 | C129: =C131 -> Materiales | D129: =IFERROR(F129/F131,0) -> 0 | E129: 0 | F129: =SUMIFS(G$50:G$86,$C$50:$C$86,$C129,$D$50:$D$86,$J129) -> 0 | G129: 0 | I129: 0 | J129: =J126 -> 1 | K129: =IFERROR(VLOOKUP($B127,$L$50:$Q$68,4,0),0) -> 1
B130: =B127+1 -> 2 | C130: =C131 -> Materiales | D130: =IFERROR(F129/F131,0) -> 0 | E130: 0 | F130: 0 | G130: 0 | I130: 0 | J130: =J127 -> 2 | K130: 1
B131: 2 | C131: =M52 -> Materiales | D131: =IFERROR(VLOOKUP($B131,$L$50:$Q$68,6,0),0) -> 0 | E131: 0 | F131: =SUM(F129:F130) -> 0 | G131: =SUM(G129:G130) -> 0 | I131: 0 | J131: =J128 -> 3 | K131: 1
B132: 3 | C132: =C134 -> Salidas de Campo | D132: =IFERROR(F132/F134,0) -> 0 | E132: 0 | F132: =SUMIFS(G$50:G$86,$C$50:$C$86,$C132,$D$50:$D$86,$J132) -> 0 | G132: 0 | I132: 0 | J132: 1 | K132: 1
B133: 3 | C133: =C134 -> Salidas de Campo | D133: =IFERROR(F132/F134,0) -> 0 | E133: 0 | F133: 0 | G133: 0 | I133: 0 | J133: 2 | K133: 1
B134: 3 | C134: =M53 -> Salidas de Campo | D134: =IFERROR(VLOOKUP($B134,$L$50:$Q$68,6,0),0) -> 0 | E134: 0 | F134: =SUM(F132:F133) -> 0 | G134: =SUM(G132:G133) -> 0 | I134: 0 | J134: 3 | K134: 1
B135: 4 | C135: =C137 -> Servicios Técnicos | D135: =IFERROR(F135/F137,0) -> 0 | E135: 0 | F135: =SUMIFS(G$50:G$86,$C$50:$C$86,$C135,$D$50:$D$86,$J135) -> 0 | G135: 0 | I135: 0 | J135: 1 | K135: 1
B136: 4 | C136: =C137 -> Servicios Técnicos | D136: =IFERROR(F135/F137,0) -> 0 | E136: 0 | F136: 0 | G136: 0 | I136: 0 | J136: 2 | K136: 1
B137: 4 | C137: =M54 -> Servicios Técnicos | D137: =IFERROR(VLOOKUP($B137,$L$50:$Q$68,6,0),0) -> 0 | E137: 0 | F137: =SUM(F135:F136) -> 0 | G137: =SUM(G135:G136) -> 0 | I137: 0 | J137: 3 | K137: 1
B138: 5 | C138: =C140 -> Recursos Biblograficos | D138: =IFERROR(F138/F140,0) -> 0 | E138: 0 | F138: =SUMIFS(G$50:G$86,$C$50:$C$86,$C138,$D$50:$D$86,$J138) -> 0 | G138: 0 | I138: 0 | J138: 1 | K138: 1
B139: 5 | C139: =C140 -> Recursos Biblograficos | D139: =IFERROR(F138/F140,0) -> 0 | E139: 0 | F139: 0 | G139: 0 | I139: 0 | J139: 2 | K139: 1
B140: 5 | C140: =M55 -> Recursos Biblograficos | D140: =IFERROR(VLOOKUP($B140,$L$50:$Q$68,6,0),0) -> 0 | E140: 0 | F140: =SUM(F138:F139) -> 0 | G140: =SUM(G138:G139) -> 0 | I140: 0 | J140: 3 | K140: 1
B141: 6 | C141: =C143 -> Estímulo a estudiantes Pregrado | D141: =IFERROR(F141/F143,0) -> 0 | E141: 0 | F141: =SUMIFS(G$50:G$86,$C$50:$C$86,$C141,$D$50:$D$86,$J141) -> 0 | G141: 0 | I141: 0 | J141: 1 | K141: 1
B142: 6 | C142: =C143 -> Estímulo a estudiantes Pregrado | D142: =IFERROR(F141/F143,0) -> 0 | E142: 0 | F142: 0 | G142: 0 | I142: 0 | J142: 2 | K142: 1
B143: 6 | C143: =M56 -> Estímulo a estudiantes Pregrado | D143: =IFERROR(VLOOKUP($B143,$L$50:$Q$68,6,0),0) -> 0 | E143: 0 | F143: =SUM(F141:F142) -> 0 | G143: =SUM(G141:G142) -> 0 | I143: 0 | J143: 3 | K143: 0.2
B144: 7 | C144: =C146 -> Estímulo a estudiantes Posgrado | D144: =IFERROR(F144/F146,0) -> 0 | E144: 0 | F144: =SUMIFS(G$50:G$86,$C$50:$C$86,$C144,$D$50:$D$86,$J144) -> 0 | G144: 0 | I144: 0 | J144: 1 | K144: 0.2
B145: 7 | C145: =C146 -> Estímulo a estudiantes Posgrado | D145: =IFERROR(F144/F146,0) -> 0 | E145: 0 | F145: 0 | G145: 0 | I145: 0 | J145: 2 | K145: 0.2
B146: 7 | C146: =M57 -> Estímulo a estudiantes Posgrado | D146: =IFERROR(VLOOKUP($B146,$L$50:$Q$68,6,0),0) -> 0 | E146: 0 | F146: =SUM(F144:F145) -> 0 | G146: =SUM(G144:G145) -> 0 | I146: 0 | J146: 3 | K146: 0.2
B147: 8 | C147: =C149 -> Movilidad | D147: =IFERROR(F147/F149,0) -> 0 | E147: 0 | F147: =SUMIFS(G$50:G$86,$C$50:$C$86,$C147,$D$50:$D$86,$J147) -> 0 | G147: 0 | I147: 0 | J147: 1 | K147: 0.2
B148: 8 | C148: =C149 -> Movilidad | D148: =IFERROR(F147/F149,0) -> 0 | E148: 0 | F148: 0 | G148: 0 | I148: 0 | J148: 2 | K148: 0.2 | M148: La siguiente tabla de plan de compras debe diligenciarse manualmente ya que no arrastra informacion de otros campos exceptuando la parte de contrapartida
B149: 8 | C149: =M58 -> Movilidad | D149: =IFERROR(VLOOKUP($B149,$L$50:$Q$68,6,0),0) -> 0 | E149: 0 | F149: =SUM(F147:F148) -> 0 | G149: =SUM(G147:G148) -> 0 | I149: 0 | J149: 3 | K149: 1
B150: 9 | C150: =C152 -> Capacitacion | D150: =IFERROR(F150/F152,0) -> 0 | E150: 0 | F150: =SUMIFS(G$50:G$86,$C$50:$C$86,$C150,$D$50:$D$86,$J150) -> 0 | G150: 0 | I150: 0 | J150: 1 | K150: 1
B151: 9 | C151: =C152 -> Capacitacion | D151: =IFERROR(F150/F152,0) -> 0 | E151: 0 | F151: 0 | G151: 0 | I151: 0 | J151: 2 | K151: 1
B152: 9 | C152: =M59 -> Capacitacion | D152: =IFERROR(VLOOKUP($B152,$L$50:$Q$68,6,0),0) -> 0 | E152: 0 | F152: =SUM(F150:F151) -> 0 | G152: =SUM(G150:G151) -> 0 | I152: 0 | J152: 3 | K152: 1
B153: 10 | C153: =C155 -> Otros gastos | D153: =IFERROR(F153/F155,0) -> 0 | E153: =D153 -> 0 | F153: =SUMIFS(G$50:G$86,$C$50:$C$86,$C153,$D$50:$D$86,$J153) -> 0 | G153: 0 | I153: =SUM(F153:H153) -> 0 | J153: =J150 -> 1 | K153: 1
B154: 10 | C154: =C155 -> Otros gastos | D154: =IFERROR(F153/F155,0) -> 0 | E154: 0 | F154: 0 | G154: 0 | I154: =SUM(F154:H154) -> 0 | J154: 2 | K154: 1
B155: 10 | C155: =M60 -> Otros gastos | D155: =IFERROR(VLOOKUP($B153,$L$50:$Q$68,6,0),0) -> 0 | E155: =D155 -> 0 | F155: =SUM(F153:F154) -> 0 | G155: =SUM(G153:G154) -> 0 | I155: =SUM(F155:H155) -> 0 | J155: 3 | K155: 1
B156: 11 | C156: =C158 -> Extenos | D156: =IFERROR(F156/F158,0) -> 0 | E156: 0 | F156: =SUMIFS(G$50:G$86,$C$50:$C$86,$C156,$D$50:$D$86,$J156) -> 0 | G156: 0 | H156: =SUM(G123:H123) -> 0 | I156: 0 | J156: 1 | K156: 1
B157: 11 | C157: =C158 -> Extenos | D157: =IFERROR(F156/F158,0) -> 0 | E157: 0 | F157: 0 | G157: 0 | I157: 0 | J157: 2 | K157: 1
B158: 11 | C158: ="Extenos" -> Extenos | D158: =IFERROR(VLOOKUP($B156,$L$50:$Q$68,6,0),0) -> 0 | E158: =D158 -> 0 | F158: =SUM(F156:F157) -> 0 | G158: =SUM(G156:G157) -> 0 | H158: 0 | I158: 0 | J158: 3 | K158: 0
B159: 12 | C159: =C161 -> 0 | D159: =IFERROR(VLOOKUP($B157,$L$50:$Q$68,6,0),0) -> 0 | E159: 0 | F159: =SUMIFS(G$50:G$86,$C$50:$C$86,$C159,$D$50:$D$86,$J159) -> 0 | G159: 0 | I159: =SUM(F159:H159) -> 0 | J159: =J150 -> 1 | K159: 0
B160: 11 | C160: =C161 -> 0 | D160: 0 | E160: 0 | F160: 0 | G160: 0 | I160: =SUM(F160:H160) -> 0 | J160: 2 | K160: 0
B161: 11 | C161: =M62 -> 0 | D161: 0 | E161: =D161 -> 0 | F161: =SUM(F159:F160) -> 0 | G161: =SUM(G159:G160) -> 0 | I161: =SUM(F161:H161) -> 0 | J161: 3 | K161: 0
B162: 13 | C162: =C164 -> 0 | D162: 0 | E162: 0 | F162: =SUMIFS(G$50:G$86,$C$50:$C$86,$C162,$D$50:$D$86,$J162) -> 0 | G162: 0 | I162: 0 | J162: 1 | K162: 0
B163: 12 | C163: =C164 -> 0 | D163: 0 | E163: 0 | F163: 0 | G163: 0 | I163: 0 | J163: 2 | K163: 0
B164: 12 | C164: =M63 -> 0 | D164: 0 | E164: 0 | F164: =SUM(F162:F163) -> 0 | G164: =SUM(G162:G163) -> 0 | I164: 0 | J164: 3 | K164: 0
B165: 13 | C165: Viajes | F165: =SUMIFS(G$50:G$86,$C$50:$C$86,$C165,$D$50:$D$86,$J165) -> 0 | G165: =SUMIFS(H$50:H$86,$C$50:$C$86,$C165) -> 0 | I165: 0 | J165: =J164 -> 3
B166: 14 | C166: Mantenimiento | F166: =SUMIFS(G$50:G$86,$C$50:$C$86,$C166,$D$50:$D$86,$J166) -> 0 | G166: =SUMIFS(H$50:H$86,$C$50:$C$86,$C166) -> 0 | I166: 0 | J166: =J165 -> 3
B167: 15 | C167: Administración | F167: =SUMIFS(G$50:G$86,$C$50:$C$86,$C167,$D$50:$D$86,$J167) -> 0 | G167: 0 | I167: 0 | J167: =J166 -> 3
B168: 16 | C168: Construcciones | F168: =SUMIFS(G$50:G$86,$C$50:$C$86,$C168,$D$50:$D$86,$J168) -> 0 | G168: 0 | I168: 0 | J168: =J167 -> 3
B169: 17 | C169: Otros Gastos | F169: =SUMIFS(G$50:G$86,$C$50:$C$86,$C169,$D$50:$D$86,$J169) -> 0 | G169: 0 | I169: 0 | J169: =J168 -> 3
B170: T1 | C170: $ Total General (Año 1) | F170: =SUMIFS(F$126:F$169,$J$126:$J$169,$J170) -> 0 | G170: =SUMIFS(G$126:G$169,$J$126:$J$169,$J170)+SUM(G165:G169) -> 0 | H170: =SUMIFS(H$126:H$169,$J$126:$J$169,$J170)+SUM(H165:H169) -> 0 | I170: 0 | J170: 1
B171: T2 | C171: $ Total General (Año 2) | F171: =SUMIFS(F$126:F$169,$J$126:$J$169,$J171) -> 0 | G171: =SUMIFS(G$126:G$169,$J$126:$J$169,$J171) -> 0 | H171: =SUMIFS(H$126:H$169,$J$126:$J$169,$J171) -> 0 | I171: 0 | J171: 2
B172: T3 | C172: ="TotalesPlan compras - (máximo):" -> TotalesPlan compras - (máximo): | E172: =N2 -> 0 | F172: =SUMIFS(F$126:F$169,$J$126:$J$169,$J172) -> 0 | G172: =SUMIFS(G$126:G$169,$J$126:$J$169,$J172) -> 0 | H172: =SUMIFS(H$126:H$169,$J$126:$J$169,$J172) -> 0 | I172: 0 | J172: 3
B174: Nombre Institución Externa : | E174: =IF(General!I30>0,CLEAN(K174)," ") -> No tiene. | J174: =General!I30 -> 2 | K174: =IF(General!N89=M174,"No tiene.",General!N89) -> No tiene. | M174: 0;;;;
D176: Propuesta: | E176: =D7 -> Formato: actualizado a 06 Sep 2019
C178: Firma de responsable
E180: Diferencias En plan compras | F180: =G87-F170 -> 0 | G180: =H87-G170 -> 0 | H180: =I123-H170 -> 0
C183: *Pueden Ocultar las Filas que no se utilicen ( Favor no eliminar filas).
C184: ** en el caso de necesitar mas filas en el plan de compras (Comunicarse con la VICEIN para que se pueda realizar el ajuste)

Sheet Impactos
A1: 10 | I1: *Pueden Ocultar las Filas que no se utilicen.
C2: =General!B2 -> PRESENTACIÓN DE PROYECTOS DE INVESTIGACIÓN | F2: =General!$H$2 -> Fecha de Emisión: 2019/03/18 | G2: =General!$I$2 -> IN-IV-F-14 | J2: Palabras Minimas | M2: 2000
F3: =General!$H$3 -> Revisión N°: 4 | G3: ="Página "&$A$1&" de "&Dt_TPG -> Página 10 de 11 | I3: =SUM(I7:I3502) -> 82 | J3: <== Total de palabras | M3: Tipo de Impacto (Objetivos de Desarrollo Sostenible): Link Presione
A5: 14.- | B5: # | C5: Impactos asociados a la propuesta. | I5: Largo
M6: Esplicaciones
B7: N° | C7: Describa en detalle el impacto a desarrollar en el proyecto | I7: =IF(C7="",0,LEN(TRIM(C7))-LEN(SUBSTITUTE(TRIM(C7)," ",""))+1) -> 10
B8: =ROW()-7 -> 1 | C8: Impacto principal | D8: Ambiental | E8: Principal objetivo de desarrollo sostenible: | F8: Paz, justicia e instituciones sólidas | I8: =IF(C8="",0,LEN(TRIM(C8))-LEN(SUBSTITUTE(TRIM(C8)," ",""))+1) -> 2 | M8: Transferencia e intercambio de conocimiento | N8: Promover el desarrollo de iniciativas de extensión y transferencia del conocimiento científico y tecnológico que permitan su efectiva integración a contextos locales y sociales específicos, contribuyendo a su desarrollo.
B9: =ROW()-7 -> 2 | C9: Alcance | D9: Nacional | E9: Lineas de apropiación social | F9: Participación ciudadana en CTeI | I9: =IF(E9="",0,LEN(TRIM(E9))-LEN(SUBSTITUTE(TRIM(E9)," ",""))+1) -> 4 | M9: Gestión del conocimiento para la apropiación | N9: Incentivar el desarrollo de mecanismos de formación y medición para construir conocimiento acerca de las diversas formas en que el conocimiento científico tecnológico es apropiado en la sociedad colombiana, por los diversos grupos e individuos que la componen
B10: =ROW()-7 -> 3 | C10: =M13 -> Tener en cuenta :Fomentar la participación ciudadana en la construcción de política pública en CTI, fortaleciendo las capacidades de la sociedad para tomar decisiones que contribuyan a la resolución de conflictos que involucran conocimientos científico-tecnológicos. | I10: =IF(C10="",0,LEN(TRIM(C10))-LEN(SUBSTITUTE(TRIM(C10)," ",""))+1) -> 35 | M10: Participación ciudadana en CTeI | N10: Fomentar la participación ciudadana en la construcción de política pública en CTI, fortaleciendo las capacidades de la sociedad para tomar decisiones que contribuyan a la resolución de conflictos que involucran conocimientos científico-tecnológicos.
M11: Comunicación del conocimiento | N11: Favorecer el desarrollo de proyectos de comunicación reflexivos y contextualizados para la comprensión, el diálogo y la formación de opinión sobre las relaciones ciencia, tecnología, innovación y sociedad.
B12: . | C12: Evolución del nivel de madurez social del impacto SRL (Societal Readiness Levels )
B13: =ROW()-9 -> 4 | C13: Estado actual del SRL | E13: SRL 0 – Identificación del problema. | I13: =IF(C13="",0,LEN(TRIM(C13))-LEN(SUBSTITUTE(TRIM(C13)," ",""))+1) -> 4 | K13: =IFERROR(ABS(RIGHT(LEFT(E13,6),2)),-1) -> 0 | M13: ="Tener en cuenta :"& VLOOKUP($F$9,M6:P11,2,0) -> Tener en cuenta :Fomentar la participación ciudadana en la construcción de política pública en CTI, fortaleciendo las capacidades de la sociedad para tomar decisiones que contribuyan a la resolución de conflictos que involucran conocimientos científico-tecnológicos.
B14: =ROW()-9 -> 5 | C14: SRL Comprometido al finalizar el proyecto | E14: SRL 6 – Soluciones demostradas en un entorno relevante, en cooperación con las partes interasadas relevantes para obtener retroalimentación inicial subre impactos potenciales | I14: =IF(C14="",0,LEN(TRIM(C14))-LEN(SUBSTITUTE(TRIM(C14)," ",""))+1) -> 6 | K14: =IFERROR(ABS(RIGHT(LEFT(E14,6),2)),0) -> 6
I15: =IF(C15="",0,LEN(TRIM(C15))-LEN(SUBSTITUTE(TRIM(C15)," ",""))+1) -> 0 | K15: =IFERROR(IF(K13<K14,"","No esta bien definido la selección de los SRL. Por favor confirmar."),"") -> 
B16: =ROW()-8 -> 8 | C16: Evolución del impacto alcanzado como resultado de proyectos anteriores | I16: =IF(C16="",0,LEN(TRIM(C16))-LEN(SUBSTITUTE(TRIM(C16)," ",""))+1) -> 9
B17: 9 | I17: =IF(C17="",0,LEN(TRIM(C17))-LEN(SUBSTITUTE(TRIM(C17)," ",""))+1) -> 0
B18: 10 | C18: Descripción de los Beneficiario(s) del impacto del proyecto | I18: 8
B19: 11 | I19: 0
B20: 12 | C20: Descripción del impacto esperado. | I20: 4
B21: 13 | I21: 0
B22: 14 | I22: 0
B23: 15 | I23: 0
B24: 16 | I24: 0
B25: 17 | I25: 0
C30: *Pueden Ocultar las Filas que no se utilicen ( Favor no eliminar filas).
B41: *Pueden Ocultar las Filas que no se utilicen.

Sheet Bibliografía
A1: 11 | G1: *Pueden Ocultar las Filas que no se utilicen.
C2: =General!B2 -> PRESENTACIÓN DE PROYECTOS DE INVESTIGACIÓN | D2: =General!$H$2 -> Fecha de Emisión: 2019/03/18 | E2: =General!$I$2 -> IN-IV-F-14
D3: =General!$H$3 -> Revisión N°: 4 | E3: ="Página "&$A$1&" de "&Dt_TPG -> Página 11 de 11 | G3: =SUM(G7:G3500) -> 0 | H3: <== Total de palabras
A5: 15.- | B5: # | C5: Bibliografía de la propuesta. | G5: Largo
B7: =ROW()-6 -> 1 | G7: =IF(C7="",0,LEN(TRIM(C7))-LEN(SUBSTITUTE(TRIM(C7)," ",""))+1) -> 0
B8: =ROW()-6 -> 2 | G8: =IF(C8="",0,LEN(TRIM(C8))-LEN(SUBSTITUTE(TRIM(C8)," ",""))+1) -> 0
B9: 3 | G9: 0
B10: 4 | G10: 0
B11: 5 | G11: 0
B12: 6 | G12: 0
B13: 7 | G13: 0
B14: 8 | G14: 0
B15: 9 | G15: 0
B16: 10 | G16: 0
B17: 11 | G17: 0
B18: 12 | G18: 0
B19: 13 | G19: 0
B20: 14 | G20: 0
B21: 15 | G21: 0
B22: 16 | G22: 0
B23: 17 | G23: 0
B24: 18 | G24: 0
B25: 19 | G25: 0
B26: 20 | G26: 0
B27: 21 | G27: 0
B28: 22 | G28: 0
B29: 23 | G29: 0
B30: 24 | G30: 0
B31: 25 | G31: 0
B32: 26 | G32: 0
B33: 27 | G33: 0
B34: 28 | G34: 0
B35: 29 | G35: 0
B39: *Pueden Ocultar las Filas que no se utilicen ( Favor no eliminar filas).
